{"text_format":"1","workbook":"xlsx","n_sheets":22,"sheets":["MENU","CARATULA","C. FILIACION","CODIGO Y FOTOGRAFIA ","ASIS. 1° B","VAL. 1° B","REG-OBS","ASIS. 2° B","VAL. 2° B","REG-OBS2","ASIS. 3° B","VAL. 3° B","REG-OBS3","ASIS. 4° B","VAL. 4° B","REG-OBS4","CENTRALIZADOR","% REP-APR","CEN. POR AREA","BOLETINES ","NOT_ALT","EST_DEST"],"not_rendered":{"charts":9,"images":14,"macros":1,"external_links":5,"defined_names":127,"comments":7,"pivot_tables":0},"unopened":[],"bounds":{"document_bytes":16777216,"sheet_cells":100000,"rows_first":2000,"rows_last":500,"rows_between":2000,"halvings":0,"cell_chars":16384,"cell_head_chars":4096},"cells_cut":0,"cells_raw":0,"read":"whole","date_system":"1900"}

{"sheet":"MENU","index":0,"n_rows":0,"n_cols":0,"rows_kept":0,"cut":false,"hidden":false,"merged":[]}

{"sheet":"CARATULA","index":1,"n_rows":84,"n_cols":18,"rows_kept":84,"cut":false,"hidden":false,"merged":[[1,14,1,17],[39,3,39,7],[23,6,23,7],[25,6,25,7],[29,6,29,7],[31,6,31,7],[33,6,33,7],[11,3,11,7],[15,6,15,7],[17,6,17,7],[19,6,19,7],[21,6,21,7]]}
[]
[]
[]
[]
[]
[]
[]
[null,null,null,null,null,null,null,null,null,null,null,null,null,null,null,"2019-02-07",null,"2019-04-20"]
[]
[]
[]
[null,null,null,"DATOS REFERENCIALES "]
[null,null,null,null,null,null,null,null,null,null,null,null,null,null,null,"2019-04-23",null,"2019-06-30"]
[]
[]
[null,null,null,"DISTRITO EDUCATIVO ",":"]
[]
[null,null,null,"RED/NÚCLEO EDUCATIVO",":"]
[null,null,null,null,null,null,null,null,null,null,null,null,null,null,null,"2019-07-17",null,"2019-09-28"]
[null,null,null,"UNIDAD EDUCATIVA ",":"]
[]
[null,null,null,"DIRECTORA/OR",":"]
[]
[null,null,null,"MAESTRA/O",":"]
[null,null,null,null,null,null,null,null,null,null,null,null,null,null,null,"2019-10-01",null,"2019-11-30"]
[null,null,null,"NIVEL ",":"]
[]
[null,null,null,"AÑO DE ESCOLARIDAD ",":"]
[]
[null,null,null,"CAMPO ",":"]
[]
[null,null,null,"ÁREA ",":"]
[]
[null,null,null,"GESTIÓN ",":",null,2019]
[]
[]
[]
[]
[]
[]
[]
[null,null,null,null,null,null,"Fecha",{"$f":"TODAY()","v":"2019-04-16"}]
[]
[]
[]
[]
[]
[]
[null,null,"ED. SECUNDARIA COMUNITARIA PRODUCTIVA"]
[]
[null,null,"A"]
[null,null,"B"]
[null,null,"C"]
[null,null,"D"]
[null,null,"E"]
[null,null,"F"]
[]
[]
[null,null,"PRIMERO "]
[null,null,"SEGUNDO "]
[null,null,"TERCERO "]
[null,null,"CUARTO "]
[null,null,"QUINTO "]
[null,null,"SEXTO "]
[]
[null,null,null,"CIENCIA TECNOLOGÍA Y PRODUCCIÓN "]
[null,null,null,"COMUNIDAD Y SOCIEDAD "]
[null,null,null,"VIDA TIERRA Y TERRITORIO "]
[null,null,null,"COSMOS Y PENSAMIENTO "]
[]
[null,null,"COMUNICIÓN Y LENGUAJES: L.C. Y O."]
[null,null,"LENGUA EXTRANJERA"]
[null,null,"CIENCIAS SOCIALES"]
[null,null,"EDUCACIÓN FÍSICA Y DEPORTES"]
[null,null,"EDUCACIÓN MUSICAL"]
[null,null,"ARTES PLÁSTICAS Y VISUALES"]
[null,null,"MATEMÁTICA"]
[null,null,"TÉCNICA TECNOLÓGICA GENERAL"]
[null,null,"TÉCNICA TECNOLÓGICA ESPECIALIZADA"]
[null,null,"CIENCIAS NATURALES: BIOLOGÍA-GEOGRAFÍA"]
[null,null,"CIENCIAS NATURALES: FÍSICA "]
[null,null,"CIENCIAS NATURALES: QUÍMICA "]
[null,null,"COSMOVISIONES, FILOSOFÍA Y SICOLOGÍA"]
[null,null,"VALORES, ESPIRITUALIDAD Y RELIGIONES"]

{"sheet":"C. FILIACION","index":2,"n_rows":100,"n_cols":18,"rows_kept":100,"cut":false,"hidden":false,"merged":[[60,4,60,7],[61,4,61,7],[1,1,2,16],[12,2,12,3],[12,5,12,7],[12,11,12,12],[4,15,4,16],[9,15,10,16]]}
[]
[null,"REGISTRO Y CUADRO DE AFILIACIÓN "]
[]
[]
[null,null,"UNIDAD EDUCATIVA ",":",{"$f":"CARATULA!G20","v":0},null,null,null,null,null,"FECHA:",{"$f":"TODAY()","v":"2019-04-16"},null,"TOTAL FEMENINO (F)","TOTAL MASCULINO (M)","DATOS DE REGISTRO"]
[null,null,"NIVEL ",":",{"$f":"CARATULA!G26","v":0},null,null,null,null,null,null,null,null,{"$f":"COUNTIF(E14:E58,\"F\")","v":0},{"$f":"COUNTIF(E14:E58,\"M\")","v":0},"INSCRITOS",{"$f":"COUNTIF(R14:R58,\"*\")","v":0}]
[null,null,"AÑO DE ESCOLARIDAD",":",{"$f":"CONCATENATE(CARATULA!G28,\" \",CARATULA!H28)","v":" "},null,null,null,null,null,null,null,null,null,null,"RETIRO O ABANDONO",{"$f":"COUNTIF(R14:R58,\"RETIRO O ABANDONO\")","v":0}]
[null,null,"DIRECTORA/OR",":",{"$f":"CARATULA!G22","v":0},null,null,null,null,null,null,null,null,null,null,"NO INCORPORADO",{"$f":"COUNTIF(R14:R58,\"NO INCORPORADO\")","v":0}]
[null,null,"MAESTRA/O",":",{"$f":"CARATULA!G24","v":0},null,null,null,null,null,null,null,null,null,null,"EFECTIVOS",{"$f":"Q6-(Q7+Q8)","v":0}]
[null,null,"CAMPO ",":",{"$f":"CARATULA!G30","v":0},null,null,null,null,null,null,null,null,null,null,"ES IMPORTANTE QUE REGISTRE EL ESTADO DEL ESTUDIANTE "]
[null,null,"ÁREA",":",{"$f":"CARATULA!G32","v":0}]
[]
[null,"N°","APELLIDOS Y NOMBRES ",null,"GÉNERO","FECHA NACIMIENTO",null,null,"EDAD","LUGAR DE NAC.","RUDE","CI ",null,"DIRECCIÓN ACTUAL","NOMBRE DE TUTOR ","PARENTESCO","TELF/CEL","REGISTRO"]
["A1",1,null,null,null,null,null,null,{"$f":"(YEAR(TODAY())-YEAR(DATE(H14,G14,F14)))","v":{"$error":"#NUM!"}}]
["A2",2,null,null,null,null,null,null,{"$f":"(YEAR(TODAY())-YEAR(DATE(H15,G15,F15)))","v":{"$error":"#NUM!"}}]
["A3",3,null,null,null,null,null,null,{"$f":"(YEAR(TODAY())-YEAR(DATE(H16,G16,F16)))","v":{"$error":"#NUM!"}}]
["A4",4,null,null,null,null,null,null,{"$error":"#NUM!"}]
["A5",5,null,null,null,null,null,null,{"$error":"#NUM!"}]
["A6",6,null,null,null,null,null,null,{"$error":"#NUM!"}]
["A7",7,null,null,null,null,null,null,{"$error":"#NUM!"}]
["A8",8,null,null,null,null,null,null,{"$error":"#NUM!"}]
["A9",9,null,null,null,null,null,null,{"$error":"#NUM!"}]
["A10",10,null,null,null,null,null,null,{"$error":"#NUM!"}]
["A11",11,null,null,null,null,null,null,{"$error":"#NUM!"}]
["A12",12,null,null,null,null,null,null,{"$error":"#NUM!"}]
["A13",13,null,null,null,null,null,null,{"$error":"#NUM!"}]
["A14",14,null,null,null,null,null,null,{"$error":"#NUM!"}]
["A15",15,null,null,null,null,null,null,{"$error":"#NUM!"}]
["A16",16,null,null,null,null,null,null,{"$error":"#NUM!"}]
["A17",17,null,null,null,null,null,null,{"$error":"#NUM!"}]
["A18",18,null,null,null,null,null,null,{"$error":"#NUM!"}]
["A19",19,null,null,null,null,null,null,{"$error":"#NUM!"}]
["A20",20,null,null,null,null,null,null,{"$error":"#NUM!"}]
["A21",21,null,null,null,null,null,null,{"$error":"#NUM!"}]
["A22",22,null,null,null,null,null,null,{"$error":"#NUM!"}]
["A23",23,null,null,null,null,null,null,{"$error":"#NUM!"}]
["A24",24,null,null,null,null,null,null,{"$error":"#NUM!"}]
["A25",25,null,null,null,null,null,null,{"$error":"#NUM!"}]
["A26",26,null,null,null,null,null,null,{"$error":"#NUM!"}]
["A27",27,null,null,null,null,null,null,{"$error":"#NUM!"}]
["A28",28,null,null,null,null,null,null,{"$error":"#NUM!"}]
["A29",29,null,null,null,null,null,null,{"$error":"#NUM!"}]
["A30",30,null,null,null,null,null,null,{"$error":"#NUM!"}]
["A31",31,null,null,null,null,null,null,{"$error":"#NUM!"}]
["A32",32,null,null,null,null,null,null,{"$error":"#NUM!"}]
["A33",33,null,null,null,null,null,null,{"$error":"#NUM!"}]
["A34",34,null,null,null,null,null,null,{"$error":"#NUM!"}]
["A35",35,null,null,null,null,null,null,{"$error":"#NUM!"}]
["A36",36,null,null,null,null,null,null,{"$error":"#NUM!"}]
["A37",37,null,null,null,null,null,null,{"$error":"#NUM!"}]
["A38",38,null,null,null,null,null,null,{"$error":"#NUM!"}]
["A39",39,null,null,null,null,null,null,{"$error":"#NUM!"}]
["A40",40,null,null,null,null,null,null,{"$error":"#NUM!"}]
["A41",41,null,null,null,null,null,null,{"$error":"#NUM!"}]
["A42",42,null,null,null,null,null,null,{"$error":"#NUM!"}]
["A43",43,null,null,null,null,null,null,{"$error":"#NUM!"}]
["A44",44,null,null,null,null,null,null,{"$error":"#NUM!"}]
["A45",45,null,null,null,null,null,null,{"$error":"#NUM!"}]
[]
[]
[]
[null,null,null,null,{"$f":"CARATULA!G22","v":0},null,null,null,null,{"$f":"CARATULA!G24","v":0}]
[]
["INSCRITO"]
["RETIRO O ABANDONO"]
["NO INCORPORADO"]
[null,"M"]
[null,"F"]
[]
[null,1,1997,null,"LP"]
[null,2,1998,null,"SC"]
[null,3,1999,null,"CB"]
[null,4,2000,null,"TR"]
[null,5,2001,null,"PT"]
[null,6,2002,null,"BN"]
[null,7,2003,null,"PN"]
[null,8,2004,null,"OR"]
[null,9,2005,null,"SCR"]
[null,10,2006]
[null,11,2007]
[null,12,2008]
[null,13,2009]
[null,14,2010]
[null,15,2011]
[null,16,2012]
[null,17,2013]
[null,18,2014]
[null,19,2015]
[null,20,2016]
[null,21,2017]
[null,22,2018]
[null,23]
[null,24]
[null,25]
[null,26]
[null,27]
[null,28]
[null,29]
[null,30]
[null,31]

{"sheet":"CODIGO Y FOTOGRAFIA ","index":3,"n_rows":47,"n_cols":5,"rows_kept":47,"cut":false,"hidden":false,"merged":[]}
[]
[null,"CÓDIGO ","APELLIDOS Y NOMBRES ","FOTOGRAFÍA "]
[null,"A1",{"$f":"'C. FILIACION'!C14:D14","v":0},null,"IMAG1"]
[null,"A2",{"$f":"'C. FILIACION'!C15:D15","v":0},null,"IMAG2"]
[null,"A3",{"$f":"'C. FILIACION'!C16:D16","v":0},null,"IMAG3"]
[null,"A4",{"$f":"'C. FILIACION'!C17:D17","v":0},null,"IMAG4"]
[null,"A5",{"$f":"'C. FILIACION'!C18:D18","v":0},null,"IMAG5"]
[null,"A6",{"$f":"'C. FILIACION'!C19:D19","v":0},null,"IMAG6"]
[null,"A7",{"$f":"'C. FILIACION'!C20:D20","v":0},null,"IMAG7"]
[null,"A8",{"$f":"'C. FILIACION'!C21:D21","v":0},null,"IMAG8"]
[null,"A9",{"$f":"'C. FILIACION'!C22:D22","v":0},null,"IMAG9"]
[null,"A10",{"$f":"'C. FILIACION'!C23:D23","v":0},null,"IMAG10"]
[null,"A11",{"$f":"'C. FILIACION'!C24:D24","v":0},null,"IMAG11"]
[null,"A12",{"$f":"'C. FILIACION'!C25:D25","v":0},null,"IMAG12"]
[null,"A13",{"$f":"'C. FILIACION'!C26:D26","v":0},null,"IMAG13"]
[null,"A14",{"$f":"'C. FILIACION'!C27:D27","v":0},null,"IMAG14"]
[null,"A15",{"$f":"'C. FILIACION'!C28:D28","v":0},null,"IMAG15"]
[null,"A16",{"$f":"'C. FILIACION'!C29:D29","v":0},null,"IMAG16"]
[null,"A17",{"$f":"'C. FILIACION'!C30:D30","v":0},null,"IMAG17"]
[null,"A18",{"$f":"'C. FILIACION'!C31:D31","v":0},null,"IMAG18"]
[null,"A19",{"$f":"'C. FILIACION'!C32:D32","v":0},null,"IMAG19"]
[null,"A20",{"$f":"'C. FILIACION'!C33:D33","v":0},null,"IMAG20"]
[null,"A21",{"$f":"'C. FILIACION'!C34:D34","v":0},null,"IMAG21"]
[null,"A22",{"$f":"'C. FILIACION'!C35:D35","v":0},null,"IMAG22"]
[null,"A23",{"$f":"'C. FILIACION'!C36:D36","v":0},null,"IMAG23"]
[null,"A24",{"$f":"'C. FILIACION'!C37:D37","v":0},null,"IMAG24"]
[null,"A25",{"$f":"'C. FILIACION'!C38:D38","v":0},null,"IMAG25"]
[null,"A26",{"$f":"'C. FILIACION'!C39:D39","v":0},null,"IMAG26"]
[null,"A27",{"$f":"'C. FILIACION'!C40:D40","v":0},null,"IMAG27"]
[null,"A28",{"$f":"'C. FILIACION'!C41:D41","v":0},null,"IMAG28"]
[null,"A29",{"$f":"'C. FILIACION'!C42:D42","v":0},null,"IMAG29"]
[null,"A30",{"$f":"'C. FILIACION'!C43:D43","v":0},null,"IMAG30"]
[null,"A31",{"$f":"'C. FILIACION'!C44:D44","v":0},null,"IMAG31"]
[null,"A32",{"$f":"'C. FILIACION'!C45:D45","v":0},null,"IMAG32"]
[null,"A33",{"$f":"'C. FILIACION'!C46:D46","v":0},null,"IMAG33"]
[null,"A34",{"$f":"'C. FILIACION'!C47:D47","v":0},null,"IMAG34"]
[null,"A35",{"$f":"'C. FILIACION'!C48:D48","v":0},null,"IMAG35"]
[null,"A36",{"$f":"'C. FILIACION'!C49:D49","v":0},null,"IMAG36"]
[null,"A37",{"$f":"'C. FILIACION'!C50:D50","v":0},null,"IMAG37"]
[null,"A38",{"$f":"'C. FILIACION'!C51:D51","v":0},null,"IMAG38"]
[null,"A39",{"$f":"'C. FILIACION'!C52:D52","v":0},null,"IMAG39"]
[null,"A40",{"$f":"'C. FILIACION'!C53:D53","v":0},null,"IMAG40"]
[null,"A41",{"$f":"'C. FILIACION'!C54:D54","v":0},null,"IMAG41"]
[null,"A42",{"$f":"'C. FILIACION'!C55:D55","v":0},null,"IMAG42"]
[null,"A43",{"$f":"'C. FILIACION'!C56:D56","v":0},null,"IMAG43"]
[null,"A44",{"$f":"'C. FILIACION'!C57:D57","v":0},null,"IMAG44"]
[null,"A45",{"$f":"'C. FILIACION'!C58:D58","v":0},null,"IMAG45"]

{"sheet":"ASIS. 1° B","index":4,"n_rows":63,"n_cols":61,"rows_kept":63,"cut":false,"hidden":false,"merged":[[57,2,57,3],[58,2,58,3],[49,2,49,3],[50,2,50,3],[51,2,51,3],[52,2,52,3],[53,2,53,3],[54,2,54,3],[35,2,35,3],[45,2,45,3],[46,2,46,3],[55,2,55,3],[56,2,56,3],[47,2,47,3],[48,2,48,3],[37,2,37,3],[38,2,38,3],[39,2,39,3],[40,2,40,3],[41,2,41,3],[42,2,42,3],[43,2,43,3],[44,2,44,3],[30,2,30,3],[31,2,31,3],[32,2,32,3],[33,2,33,3],[34,2,34,3],[25,2,25,3],[26,2,26,3],[27,2,27,3],[28,2,28,3],[29,2,29,3],[24,2,24,3],[12,60,13,60],[62,4,62,14],[62,47,62,56],[12,2,13,3],[14,2,14,3],[15,2,15,3],[16,2,16,3],[17,2,17,3],[18,2,18,3],[19,2,19,3],[20,2,20,3],[21,2,21,3],[22,2,22,3],[23,2,23,3],[36,2,36,3],[12,1,13,1],[12,4,12,55],[12,56,12,59],[8,51,8,56],[8,57,8,59],[1,1,2,60],[4,51,4,56],[6,51,6,56],[4,57,4,59],[6,57,6,59],[3,1,3,60]]}
[]
[null,"REGISTRO DE ASISTENCIA 1⁰ BIMESTRE "]
[]
[]
[null,null,"UNIDAD EDUCATIVA ",":",{"$f":"CARATULA!G20","v":0},null,null,null,null,null,null,null,null,null,null,null,null,null,null,null,null,null,null,null,null,null,null,null,null,null,null,null,null,null,null,null,null,null,null,null,null,null,null,null,null,null,null,null,null,null,null,"INICIO DE BIMESTRE ",null,null,null,null,null,{"$f":"CARATULA!P8","v":"2019-02-07"}]
[null,null,"NIVEL ",":",{"$f":"CARATULA!G26","v":0}]
[null,null,"AÑO DE ESCOLARIDAD",":",{"$f":"CONCATENATE(CARATULA!G28,\" \",CARATULA!H28)","v":" "},null,null,null,null,null,null,null,null,null,null,null,null,null,null,null,null,null,null,null,null,null,null,null,null,null,null,null,null,null,null,null,null,null,null,null,null,null,null,null,null,null,null,null,null,null,null,"FIN DE BIMESTRE ",null,null,null,null,null,{"$f":"CARATULA!R8","v":"2019-04-20"}]
[null,null,"DIRECTORA/OR",":",{"$f":"CARATULA!G22","v":0}]
[null,null,"MAESTRA/O",":",{"$f":"CARATULA!G24","v":0},null,null,null,null,null,null,null,null,null,null,null,null,null,null,null,null,null,null,null,null,null,null,null,null,null,null,null,null,null,null,null,null,null,null,null,null,null,null,null,null,null,null,null,null,null,null,"FECHA ACTUAL",null,null,null,null,null,{"$f":"TODAY()","v":"2019-04-16"}]
[null,null,"CAMPO ",":",{"$f":"CARATULA!G30","v":0}]
[null,null,"ÁREA",":",{"$f":"CARATULA!G32","v":0}]
[]
[null,"N","APELLIDOS Y NOMBRES ",null," 1ER BIMESTRE",null,null,null,null,null,null,null,null,null,null,null,null,null,null,null,null,null,null,null,null,null,null,null,null,null,null,null,null,null,null,null,null,null,null,null,null,null,null,null,null,null,null,null,null,null,null,null,null,null,null,null,"TOTALES ",null,null,null," DÍAS TRABAJADOS "]
[null,null,null,null,null,null,null,null,null,null,null,null,null,null,null,null,null,null,null,null,null,null,null,null,null,null,null,null,null,null,null,null,null,null,null,null,null,null,null,null,null,null,null,null,null,null,null,null,null,null,null,null,null,null,null,null,"ASISTENCIAS (A)","FALTAS (F)","RETRASOS (R)","LICENCIAS (L)"]
[null,1,{"$f":"'C. FILIACION'!C14","v":0},null,null,null,null,null,null,null,null,null,null,null,null,null,null,null,null,null,null,null,null,null,null,null,null,null,null,null,null,null,null,null,null,null,null,null,null,null,null,null,null,null,null,null,null,null,null,null,null,null,null,null,null,null,{"$f":"IF(COUNTIF(E15:BD15,\"A\")=0,\"\",COUNTIF(E15:BD15,\"A\"))","v":""},{"$f":"IF(COUNTIF(E15:BD15,\"F\")=0,\"\",COUNTIF(E15:BD15,\"F\"))","v":""},{"$f":"IF(COUNTIF(E15:BD15,\"R\")=0,\"\",COUNTIF(E15:BD15,\"R\"))","v":""},{"$f":"IF(COUNTIF(E15:BD15,\"L\")=0,\"\",COUNTIF(E15:BD15,\"L\"))","v":""},{"$f":"IF((IF(BE15=\"\",0,BE15)+IF(BG15=\"\",0,BG15))=0,\"\",(IF(BE15=\"\",0,BE15)+IF(BG15=\"\",0,BG15)))","v":""}]
[null,2,{"$f":"'C. FILIACION'!C15","v":0},null,null,null,null,null,null,null,null,null,null,null,null,null,null,null,null,null,null,null,null,null,null,null,null,null,null,null,null,null,null,null,null,null,null,null,null,null,null,null,null,null,null,null,null,null,null,null,null,null,null,null,null,null,"","","","",{"$f":"IF((IF(BE16=\"\",0,BE16)+IF(BG16=\"\",0,BG16))=0,\"\",(IF(BE16=\"\",0,BE16)+IF(BG16=\"\",0,BG16)))","v":""}]
[null,3,{"$f":"'C. FILIACION'!C16","v":0},null,null,null,null,null,null,null,null,null,null,null,null,null,null,null,null,null,null,null,null,null,null,null,null,null,null,null,null,null,null,null,null,null,null,null,null,null,null,null,null,null,null,null,null,null,null,null,null,null,null,null,null,null,"","","","",""]
[null,4,{"$f":"'C. FILIACION'!C17","v":0},null,null,null,null,null,null,null,null,null,null,null,null,null,null,null,null,null,null,null,null,null,null,null,null,null,null,null,null,null,null,null,null,null,null,null,null,null,null,null,null,null,null,null,null,null,null,null,null,null,null,null,null,null,"","","","",""]
[null,5,{"$f":"'C. FILIACION'!C18","v":0},null,null,null,null,null,null,null,null,null,null,null,null,null,null,null,null,null,null,null,null,null,null,null,null,null,null,null,null,null,null,null,null,null,null,null,null,null,null,null,null,null,null,null,null,null,null,null,null,null,null,null,null,null,"","","","",""]
[null,6,{"$f":"'C. FILIACION'!C19","v":0},null,null,null,null,null,null,null,null,null,null,null,null,null,null,null,null,null,null,null,null,null,null,null,null,null,null,null,null,null,null,null,null,null,null,null,null,null,null,null,null,null,null,null,null,null,null,null,null,null,null,null,null,null,"","","","",""]
[null,7,{"$f":"'C. FILIACION'!C20","v":0},null,null,null,null,null,null,null,null,null,null,null,null,null,null,null,null,null,null,null,null,null,null,null,null,null,null,null,null,null,null,null,null,null,null,null,null,null,null,null,null,null,null,null,null,null,null,null,null,null,null,null,null,null,"","","","",""]
[null,8,{"$f":"'C. FILIACION'!C21","v":0},null,null,null,null,null,null,null,null,null,null,null,null,null,null,null,null,null,null,null,null,null,null,null,null,null,null,null,null,null,null,null,null,null,null,null,null,null,null,null,null,null,null,null,null,null,null,null,null,null,null,null,null,null,"","","","",""]
[null,9,{"$f":"'C. FILIACION'!C22","v":0},null,null,null,null,null,null,null,null,null,null,null,null,null,null,null,null,null,null,null,null,null,null,null,null,null,null,null,null,null,null,null,null,null,null,null,null,null,null,null,null,null,null,null,null,null,null,null,null,null,null,null,null,null,"","","","",""]
[null,10,{"$f":"'C. FILIACION'!C23","v":0},null,null,null,null,null,null,null,null,null,null,null,null,null,null,null,null,null,null,null,null,null,null,null,null,null,null,null,null,null,null,null,null,null,null,null,null,null,null,null,null,null,null,null,null,null,null,null,null,null,null,null,null,null,"","","","",""]
[null,11,{"$f":"'C. FILIACION'!C24","v":0},null,null,null,null,null,null,null,null,null,null,null,null,null,null,null,null,null,null,null,null,null,null,null,null,null,null,null,null,null,null,null,null,null,null,null,null,null,null,null,null,null,null,null,null,null,null,null,null,null,null,null,null,null,"","","","",""]
[null,12,{"$f":"'C. FILIACION'!C25","v":0},null,null,null,null,null,null,null,null,null,null,null,null,null,null,null,null,null,null,null,null,null,null,null,null,null,null,null,null,null,null,null,null,null,null,null,null,null,null,null,null,null,null,null,null,null,null,null,null,null,null,null,null,null,"","","","",""]
[null,13,{"$f":"'C. FILIACION'!C26","v":0},null,null,null,null,null,null,null,null,null,null,null,null,null,null,null,null,null,null,null,null,null,null,null,null,null,null,null,null,null,null,null,null,null,null,null,null,null,null,null,null,null,null,null,null,null,null,null,null,null,null,null,null,null,"","","","",""]
[null,14,{"$f":"'C. FILIACION'!C27","v":0},null,null,null,null,null,null,null,null,null,null,null,null,null,null,null,null,null,null,null,null,null,null,null,null,null,null,null,null,null,null,null,null,null,null,null,null,null,null,null,null,null,null,null,null,null,null,null,null,null,null,null,null,null,"","","","",""]
[null,15,{"$f":"'C. FILIACION'!C28","v":0},null,null,null,null,null,null,null,null,null,null,null,null,null,null,null,null,null,null,null,null,null,null,null,null,null,null,null,null,null,null,null,null,null,null,null,null,null,null,null,null,null,null,null,null,null,null,null,null,null,null,null,null,null,"","","","",""]
[null,16,{"$f":"'C. FILIACION'!C29","v":0},null,null,null,null,null,null,null,null,null,null,null,null,null,null,null,null,null,null,null,null,null,null,null,null,null,null,null,null,null,null,null,null,null,null,null,null,null,null,null,null,null,null,null,null,null,null,null,null,null,null,null,null,null,"","","","",""]
[null,17,{"$f":"'C. FILIACION'!C30","v":0},null,null,null,null,null,null,null,null,null,null,null,null,null,null,null,null,null,null,null,null,null,null,null,null,null,null,null,null,null,null,null,null,null,null,null,null,null,null,null,null,null,null,null,null,null,null,null,null,null,null,null,null,null,"","","","",""]
[null,18,{"$f":"'C. FILIACION'!C31","v":0},null,null,null,null,null,null,null,null,null,null,null,null,null,null,null,null,null,null,null,null,null,null,null,null,null,null,null,null,null,null,null,null,null,null,null,null,null,null,null,null,null,null,null,null,null,null,null,null,null,null,null,null,null,"","","","",""]
[null,19,{"$f":"'C. FILIACION'!C32","v":0},null,null,null,null,null,null,null,null,null,null,null,null,null,null,null,null,null,null,null,null,null,null,null,null,null,null,null,null,null,null,null,null,null,null,null,null,null,null,null,null,null,null,null,null,null,null,null,null,null,null,null,null,null,"","","","",""]
[null,20,{"$f":"'C. FILIACION'!C33","v":0},null,null,null,null,null,null,null,null,null,null,null,null,null,null,null,null,null,null,null,null,null,null,null,null,null,null,null,null,null,null,null,null,null,null,null,null,null,null,null,null,null,null,null,null,null,null,null,null,null,null,null,null,null,"","","","",""]
[null,21,{"$f":"'C. FILIACION'!C34","v":0},null,null,null,null,null,null,null,null,null,null,null,null,null,null,null,null,null,null,null,null,null,null,null,null,null,null,null,null,null,null,null,null,null,null,null,null,null,null,null,null,null,null,null,null,null,null,null,null,null,null,null,null,null,"","","","",""]
[null,22,{"$f":"'C. FILIACION'!C35","v":0},null,null,null,null,null,null,null,null,null,null,null,null,null,null,null,null,null,null,null,null,null,null,null,null,null,null,null,null,null,null,null,null,null,null,null,null,null,null,null,null,null,null,null,null,null,null,null,null,null,null,null,null,null,"","","","",""]
[null,23,{"$f":"'C. FILIACION'!C36","v":0},null,null,null,null,null,null,null,null,null,null,null,null,null,null,null,null,null,null,null,null,null,null,null,null,null,null,null,null,null,null,null,null,null,null,null,null,null,null,null,null,null,null,null,null,null,null,null,null,null,null,null,null,null,"","","","",""]
[null,24,{"$f":"'C. FILIACION'!C37","v":0},null,null,null,null,null,null,null,null,null,null,null,null,null,null,null,null,null,null,null,null,null,null,null,null,null,null,null,null,null,null,null,null,null,null,null,null,null,null,null,null,null,null,null,null,null,null,null,null,null,null,null,null,null,"","","","",""]
[null,25,{"$f":"'C. FILIACION'!C38","v":0},null,null,null,null,null,null,null,null,null,null,null,null,null,null,null,null,null,null,null,null,null,null,null,null,null,null,null,null,null,null,null,null,null,null,null,null,null,null,null,null,null,null,null,null,null,null,null,null,null,null,null,null,null,"","","","",""]
[null,26,{"$f":"'C. FILIACION'!C39","v":0},null,null,null,null,null,null,null,null,null,null,null,null,null,null,null,null,null,null,null,null,null,null,null,null,null,null,null,null,null,null,null,null,null,null,null,null,null,null,null,null,null,null,null,null,null,null,null,null,null,null,null,null,null,"","","","",""]
[null,27,{"$f":"'C. FILIACION'!C40","v":0},null,null,null,null,null,null,null,null,null,null,null,null,null,null,null,null,null,null,null,null,null,null,null,null,null,null,null,null,null,null,null,null,null,null,null,null,null,null,null,null,null,null,null,null,null,null,null,null,null,null,null,null,null,"","","","",""]
[null,28,{"$f":"'C. FILIACION'!C41","v":0},null,null,null,null,null,null,null,null,null,null,null,null,null,null,null,null,null,null,null,null,null,null,null,null,null,null,null,null,null,null,null,null,null,null,null,null,null,null,null,null,null,null,null,null,null,null,null,null,null,null,null,null,null,"","","","",""]
[null,29,{"$f":"'C. FILIACION'!C42","v":0},null,null,null,null,null,null,null,null,null,null,null,null,null,null,null,null,null,null,null,null,null,null,null,null,null,null,null,null,null,null,null,null,null,null,null,null,null,null,null,null,null,null,null,null,null,null,null,null,null,null,null,null,null,"","","","",""]
[null,30,{"$f":"'C. FILIACION'!C43","v":0},null,null,null,null,null,null,null,null,null,null,null,null,null,null,null,null,null,null,null,null,null,null,null,null,null,null,null,null,null,null,null,null,null,null,null,null,null,null,null,null,null,null,null,null,null,null,null,null,null,null,null,null,null,"","","","",""]
[null,31,{"$f":"'C. FILIACION'!C44","v":0},null,null,null,null,null,null,null,null,null,null,null,null,null,null,null,null,null,null,null,null,null,null,null,null,null,null,null,null,null,null,null,null,null,null,null,null,null,null,null,null,null,null,null,null,null,null,null,null,null,null,null,null,null,"","","","",""]
[null,32,{"$f":"'C. FILIACION'!C45","v":0},null,null,null,null,null,null,null,null,null,null,null,null,null,null,null,null,null,null,null,null,null,null,null,null,null,null,null,null,null,null,null,null,null,null,null,null,null,null,null,null,null,null,null,null,null,null,null,null,null,null,null,null,null,"","","","",""]
[null,33,{"$f":"'C. FILIACION'!C46","v":0},null,null,null,null,null,null,null,null,null,null,null,null,null,null,null,null,null,null,null,null,null,null,null,null,null,null,null,null,null,null,null,null,null,null,null,null,null,null,null,null,null,null,null,null,null,null,null,null,null,null,null,null,null,"","","","",""]
[null,34,{"$f":"'C. FILIACION'!C47","v":0},null,null,null,null,null,null,null,null,null,null,null,null,null,null,null,null,null,null,null,null,null,null,null,null,null,null,null,null,null,null,null,null,null,null,null,null,null,null,null,null,null,null,null,null,null,null,null,null,null,null,null,null,null,"","","","",""]
[null,35,{"$f":"'C. FILIACION'!C48","v":0},null,null,null,null,null,null,null,null,null,null,null,null,null,null,null,null,null,null,null,null,null,null,null,null,null,null,null,null,null,null,null,null,null,null,null,null,null,null,null,null,null,null,null,null,null,null,null,null,null,null,null,null,null,"","","","",""]
[null,36,{"$f":"'C. FILIACION'!C49","v":0},null,null,null,null,null,null,null,null,null,null,null,null,null,null,null,null,null,null,null,null,null,null,null,null,null,null,null,null,null,null,null,null,null,null,null,null,null,null,null,null,null,null,null,null,null,null,null,null,null,null,null,null,null,"","","","",""]
[null,37,{"$f":"'C. FILIACION'!C50","v":0},null,null,null,null,null,null,null,null,null,null,null,null,null,null,null,null,null,null,null,null,null,null,null,null,null,null,null,null,null,null,null,null,null,null,null,null,null,null,null,null,null,null,null,null,null,null,null,null,null,null,null,null,null,"","","","",""]
[null,38,{"$f":"'C. FILIACION'!C51","v":0},null,null,null,null,null,null,null,null,null,null,null,null,null,null,null,null,null,null,null,null,null,null,null,null,null,null,null,null,null,null,null,null,null,null,null,null,null,null,null,null,null,null,null,null,null,null,null,null,null,null,null,null,null,"","","","",""]
[null,39,{"$f":"'C. FILIACION'!C52","v":0},null,null,null,null,null,null,null,null,null,null,null,null,null,null,null,null,null,null,null,null,null,null,null,null,null,null,null,null,null,null,null,null,null,null,null,null,null,null,null,null,null,null,null,null,null,null,null,null,null,null,null,null,null,"","","","",""]
[null,40,{"$f":"'C. FILIACION'!C53","v":0},null,null,null,null,null,null,null,null,null,null,null,null,null,null,null,null,null,null,null,null,null,null,null,null,null,null,null,null,null,null,null,null,null,null,null,null,null,null,null,null,null,null,null,null,null,null,null,null,null,null,null,null,null,"","","","",""]
[null,41,{"$f":"'C. FILIACION'!C54","v":0},null,null,null,null,null,null,null,null,null,null,null,null,null,null,null,null,null,null,null,null,null,null,null,null,null,null,null,null,null,null,null,null,null,null,null,null,null,null,null,null,null,null,null,null,null,null,null,null,null,null,null,null,null,"","","","",""]
[null,42,{"$f":"'C. FILIACION'!C55","v":0},null,null,null,null,null,null,null,null,null,null,null,null,null,null,null,null,null,null,null,null,null,null,null,null,null,null,null,null,null,null,null,null,null,null,null,null,null,null,null,null,null,null,null,null,null,null,null,null,null,null,null,null,null,"","","","",""]
[null,43,{"$f":"'C. FILIACION'!C56","v":0},null,null,null,null,null,null,null,null,null,null,null,null,null,null,null,null,null,null,null,null,null,null,null,null,null,null,null,null,null,null,null,null,null,null,null,null,null,null,null,null,null,null,null,null,null,null,null,null,null,null,null,null,null,"","","","",""]
[null,44,{"$f":"'C. FILIACION'!C57","v":0},null,null,null,null,null,null,null,null,null,null,null,null,null,null,null,null,null,null,null,null,null,null,null,null,null,null,null,null,null,null,null,null,null,null,null,null,null,null,null,null,null,null,null,null,null,null,null,null,null,null,null,null,null,"","","","",""]
[null,45,{"$f":"'C. FILIACION'!C58","v":0},null,null,null,null,null,null,null,null,null,null,null,null,null,null,null,null,null,null,null,null,null,null,null,null,null,null,null,null,null,null,null,null,null,null,null,null,null,null,null,null,null,null,null,null,null,null,null,null,null,null,null,null,null,"","","","",""]
[]
[]
[]
[null,null,null,null,{"$f":"CARATULA!G22","v":0},null,null,null,null,null,null,null,null,null,null,null,null,null,null,null,null,null,null,null,null,null,null,null,null,null,null,null,null,null,null,null,null,null,null,null,null,null,null,null,null,null,null,{"$f":"CARATULA!G24","v":0}]

{"sheet":"VAL. 1° B","index":5,"n_rows":68,"n_cols":55,"rows_kept":68,"cut":false,"hidden":false,"merged":[[13,51,17,51],[13,50,17,50],[64,48,64,49],[9,29,9,33],[65,48,65,49],[13,3,13,47],[14,3,14,47],[15,3,15,9],[5,44,11,49],[9,21,9,27],[2,1,3,51],[5,29,5,33],[7,29,7,33],[5,50,6,51],[7,50,11,51],[5,35,5,41],[7,35,7,41],[5,42,5,43],[7,42,7,43],[6,35,6,41],[6,42,6,43],[13,1,16,2],[13,48,13,49],[14,48,14,49],[16,48,17,48],[16,49,17,49],[16,20,16,24],[16,31,16,35],[16,15,16,19],[16,26,16,30],[15,10,15,25],[15,26,15,41],[16,47,17,47],[15,42,15,47],[66,8,66,19],[66,30,66,42],[67,8,67,19],[67,30,67,42],[16,4,16,8],[16,10,16,14],[16,36,16,40],[16,42,16,46],[16,9,17,9],[16,25,17,25],[16,41,17,41]]}
[]
[]
[null,"REGISTRO DE VALORACIÓN 1⁰ BIMESTRE"]
[]
[]
[null,null,"UNIDAD EDUCATIVA ",":",null,{"$f":"CARATULA!G20","v":0},null,null,null,null,null,null,null,null,null,null,null,null,null,null,null,"INICIO DE BIMESTRE ",null,null,null,null,null,null,":",{"$f":"CARATULA!P8","v":"2019-02-07"},null,null,null,null,null,null,null,null,null,null,null,null,null,null,null,null,null,null,null,null,"DÍAS RESTANTES PARA FIN DE BIMESTRE "]
[null,null,"NIVEL ",":",null,{"$f":"CARATULA!G26","v":0},null,null,null,null,null,null,null,null,null,null,null,null,null,null,null,null,null,null,null,null,null,null,null,null,null,null,null,null,null,"N° TOTAL APROBADOS",null,null,null,null,null,null,{"$f":"COUNTIF(AY19:AY63,\">=50,500\")","v":0}]
[null,null,"AÑO DE ESCOLARIDAD",":",null,{"$f":"CONCATENATE(CARATULA!G28,\" \",CARATULA!H28)","v":" "},null,null,null,null,null,null,null,null,null,null,null,null,null,null,null,"FIN DE BIMESTRE ",null,null,null,null,null,null,":",{"$f":"CARATULA!R8","v":"2019-04-20"},null,null,null,null,null,"N° TOTAL REPROBADOS",null,null,null,null,null,null,{"$f":"COUNTIFS(AY19:AY63,\">=1\",AY19:AY63,\"<=50,499\")","v":0},null,null,null,null,null,null,null,{"$f":"AD8-AD10","v":4},null,null,"N° lista ","NOMBRE "]
[null,null,"DIRECTORA/OR",":",null,{"$f":"CARATULA!G22","v":0}]
[null,null,"MAESTRA/O",":",null,{"$f":"CARATULA!G24","v":0},null,null,null,null,null,null,null,null,null,null,null,null,null,null,null,"FECHA ACTUAL",null,null,null,null,null,null,":",{"$f":"TODAY()","v":"2019-04-16"},null,null,null,null,null,null,null,null,null,null,null,null,null,null,null,null,null,null,null,null,null,null,null,1,{"$f":"VLOOKUP(BB10,'C. FILIACION'!B14:C58, 2,FALSE)","v":0}]
[{"$f":"COUNTIF(AY19:AY63,¨>=50)","v":0},null,"CAMPO ",":",null,{"$f":"CARATULA!G30","v":0}]
[null,null,"ÁREA",":",null,{"$f":"CARATULA!G32","v":0},null,null,null,null,null,null,null,null,null,null,null,null,null,null,null,null,null,null,null,null,null,null,null,null,null,null,null,null,null,null,null,null,null,null,null,null,null,null,null,null,null,null,null,null,null,null,null,null,"FECHA Y HORA "]
[]
[null,null,null,"EVALUACIÓN MAESTRA(O)",null,null,null,null,null,null,null,null,null,null,null,null,null,null,null,null,null,null,null,null,null,null,null,null,null,null,null,null,null,null,null,null,null,null,null,null,null,null,null,null,null,null,null,null,"AUTO EVALUACIÓN ESTUDIANTE ",null," TOTAL BIMESTRAL","SITUACIÓN BIMESTRAL",null,null,{"$f":"NOW()","v":"2019-04-16T15:48:02.590"}]
[null,null,null,"DIMENSIONES ",null,null,null,null,null,null,null,null,null,null,null,null,null,null,null,null,null,null,null,null,null,null,null,null,null,null,null,null,null,null,null,null,null,null,null,null,null,null,null,null,null,null,null,null,"DIMENSIONES "]
[null,null,null,"SER -10",null,null,null,null,null,null,"SABER - 35",null,null,null,null,null,null,null,null,null,null,null,null,null,null,null,"HACER - 35",null,null,null,null,null,null,null,null,null,null,null,null,null,null,null,"DECIDIR - 10 ",null,null,null,null,null,"SER - 5","DECIDIR - 5",null,null,null,null,"OBSERVACIÓN "]
[null,null,null,"CRITERIOS DE EVALUACIÓN  ",null,null,null,null,null,"VALORACIÓN 10 PUN.",null,null,null,null,null,null,null,null,null,null,null,null,null,null,null,"VALORACIÓN 35 PUN.",null,null,null,null,null,null,null,null,null,null,null,null,null,null,null,"VALORACIÓN 35 PUN.",null,null,null,null,null,"VALORACIÓN 10 PUN."]
[null,"N ","NOMBRES Y APELLIDOS ","ACTIVIDADES"]
[null,1,{"$f":"'C. FILIACION'!C14","v":0},null,null,null,null,null,null,{"$f":"IFERROR(ROUND(AVERAGE(E19:I19),0),\"\")","v":""},null,null,null,null,null,null,null,null,null,null,null,null,null,null,null,{"$f":"IFERROR(ROUND(AVERAGE(K19:Y19),0),\"\")","v":""},null,null,null,null,null,null,null,null,null,null,null,null,null,null,null,{"$f":"IFERROR(ROUND(AVERAGE(AA19:AO19),0),\"\")","v":""},null,null,null,null,null,{"$f":"IFERROR(ROUND(AVERAGE(AQ19:AU19),0),\"\")","v":""},null,null,{"$f":"IFERROR((SUM(J19,Z19,AP19,AV19:AX19)),\"\")","v":0},{"$f":"IF(AY19=\"\",\"\",(IF(AND(AY19>=1,AY19<=50.499),\"REPROBADO\",IF(AND(AY19>=50.5,AY19<=100),\"APROBADO\"))))","v":false}]
[null,2,{"$f":"'C. FILIACION'!C15","v":0},null,null,null,null,null,null,{"$f":"IFERROR(ROUND(AVERAGE(E20:I20),0),\"\")","v":""},null,null,null,null,null,null,null,null,null,null,null,null,null,null,null,{"$f":"IFERROR(ROUND(AVERAGE(K20:Y20),0),\"\")","v":""},null,null,null,null,null,null,null,null,null,null,null,null,null,null,null,{"$f":"IFERROR(ROUND(AVERAGE(AA20:AO20),0),\"\")","v":""},null,null,null,null,null,{"$f":"IFERROR(ROUND(AVERAGE(AQ20:AU20),0),\"\")","v":""},null,null,0,{"$f":"IF(AY20=\"\",\"\",(IF(AND(AY20>=1,AY20<=50.499),\"REPROBADO\",IF(AND(AY20>=50.5,AY20<=100),\"APROBADO\"))))","v":false}]
[null,3,{"$f":"'C. FILIACION'!C16","v":0},null,null,null,null,null,null,"",null,null,null,null,null,null,null,null,null,null,null,null,null,null,null,"",null,null,null,null,null,null,null,null,null,null,null,null,null,null,null,"",null,null,null,null,null,"",null,null,0,false]
[null,4,{"$f":"'C. FILIACION'!C17","v":0},null,null,null,null,null,null,"",null,null,null,null,null,null,null,null,null,null,null,null,null,null,null,"",null,null,null,null,null,null,null,null,null,null,null,null,null,null,null,"",null,null,null,null,null,"",null,null,0,false]
[null,5,{"$f":"'C. FILIACION'!C18","v":0},null,null,null,null,null,null,"",null,null,null,null,null,null,null,null,null,null,null,null,null,null,null,"",null,null,null,null,null,null,null,null,null,null,null,null,null,null,null,"",null,null,null,null,null,"",null,null,0,false]
[null,6,{"$f":"'C. FILIACION'!C19","v":0},null,null,null,null,null,null,"",null,null,null,null,null,null,null,null,null,null,null,null,null,null,null,"",null,null,null,null,null,null,null,null,null,null,null,null,null,null,null,"",null,null,null,null,null,"",null,null,0,false]
[null,7,{"$f":"'C. FILIACION'!C20","v":0},null,null,null,null,null,null,"",null,null,null,null,null,null,null,null,null,null,null,null,null,null,null,"",null,null,null,null,null,null,null,null,null,null,null,null,null,null,null,"",null,null,null,null,null,"",null,null,0,false]
[null,8,{"$f":"'C. FILIACION'!C21","v":0},null,null,null,null,null,null,"",null,null,null,null,null,null,null,null,null,null,null,null,null,null,null,"",null,null,null,null,null,null,null,null,null,null,null,null,null,null,null,"",null,null,null,null,null,"",null,null,0,false]
[null,9,{"$f":"'C. FILIACION'!C22","v":0},null,null,null,null,null,null,"",null,null,null,null,null,null,null,null,null,null,null,null,null,null,null,"",null,null,null,null,null,null,null,null,null,null,null,null,null,null,null,"",null,null,null,null,null,"",null,null,0,false]
[null,10,{"$f":"'C. FILIACION'!C23","v":0},null,null,null,null,null,null,"",null,null,null,null,null,null,null,null,null,null,null,null,null,null,null,"",null,null,null,null,null,null,null,null,null,null,null,null,null,null,null,"",null,null,null,null,null,"",null,null,0,false]
[null,11,{"$f":"'C. FILIACION'!C24","v":0},null,null,null,null,null,null,"",null,null,null,null,null,null,null,null,null,null,null,null,null,null,null,"",null,null,null,null,null,null,null,null,null,null,null,null,null,null,null,"",null,null,null,null,null,"",null,null,0,false]
[null,12,{"$f":"'C. FILIACION'!C25","v":0},null,null,null,null,null,null,"",null,null,null,null,null,null,null,null,null,null,null,null,null,null,null,"",null,null,null,null,null,null,null,null,null,null,null,null,null,null,null,"",null,null,null,null,null,"",null,null,0,false]
[null,13,{"$f":"'C. FILIACION'!C26","v":0},null,null,null,null,null,null,"",null,null,null,null,null,null,null,null,null,null,null,null,null,null,null,"",null,null,null,null,null,null,null,null,null,null,null,null,null,null,null,"",null,null,null,null,null,"",null,null,0,false]
[null,14,{"$f":"'C. FILIACION'!C27","v":0},null,null,null,null,null,null,"",null,null,null,null,null,null,null,null,null,null,null,null,null,null,null,"",null,null,null,null,null,null,null,null,null,null,null,null,null,null,null,"",null,null,null,null,null,"",null,null,0,false]
[null,15,{"$f":"'C. FILIACION'!C28","v":0},null,null,null,null,null,null,"",null,null,null,null,null,null,null,null,null,null,null,null,null,null,null,"",null,null,null,null,null,null,null,null,null,null,null,null,null,null,null,"",null,null,null,null,null,"",null,null,0,false]
[null,16,{"$f":"'C. FILIACION'!C29","v":0},null,null,null,null,null,null,"",null,null,null,null,null,null,null,null,null,null,null,null,null,null,null,"",null,null,null,null,null,null,null,null,null,null,null,null,null,null,null,"",null,null,null,null,null,"",null,null,0,false]
[null,17,{"$f":"'C. FILIACION'!C30","v":0},null,null,null,null,null,null,"",null,null,null,null,null,null,null,null,null,null,null,null,null,null,null,"",null,null,null,null,null,null,null,null,null,null,null,null,null,null,null,"",null,null,null,null,null,"",null,null,0,false]
[null,18,{"$f":"'C. FILIACION'!C31","v":0},null,null,null,null,null,null,"",null,null,null,null,null,null,null,null,null,null,null,null,null,null,null,"",null,null,null,null,null,null,null,null,null,null,null,null,null,null,null,"",null,null,null,null,null,"",null,null,0,false]
[null,19,{"$f":"'C. FILIACION'!C32","v":0},null,null,null,null,null,null,"",null,null,null,null,null,null,null,null,null,null,null,null,null,null,null,"",null,null,null,null,null,null,null,null,null,null,null,null,null,null,null,"",null,null,null,null,null,"",null,null,0,false]
[null,20,{"$f":"'C. FILIACION'!C33","v":0},null,null,null,null,null,null,"",null,null,null,null,null,null,null,null,null,null,null,null,null,null,null,"",null,null,null,null,null,null,null,null,null,null,null,null,null,null,null,"",null,null,null,null,null,"",null,null,0,false]
[null,21,{"$f":"'C. FILIACION'!C34","v":0},null,null,null,null,null,null,"",null,null,null,null,null,null,null,null,null,null,null,null,null,null,null,"",null,null,null,null,null,null,null,null,null,null,null,null,null,null,null,"",null,null,null,null,null,"",null,null,0,false]
[null,22,{"$f":"'C. FILIACION'!C35","v":0},null,null,null,null,null,null,"",null,null,null,null,null,null,null,null,null,null,null,null,null,null,null,"",null,null,null,null,null,null,null,null,null,null,null,null,null,null,null,"",null,null,null,null,null,"",null,null,0,false]
[null,23,{"$f":"'C. FILIACION'!C36","v":0},null,null,null,null,null,null,"",null,null,null,null,null,null,null,null,null,null,null,null,null,null,null,"",null,null,null,null,null,null,null,null,null,null,null,null,null,null,null,"",null,null,null,null,null,"",null,null,0,false]
[null,24,{"$f":"'C. FILIACION'!C37","v":0},null,null,null,null,null,null,"",null,null,null,null,null,null,null,null,null,null,null,null,null,null,null,"",null,null,null,null,null,null,null,null,null,null,null,null,null,null,null,"",null,null,null,null,null,"",null,null,0,false]
[null,25,{"$f":"'C. FILIACION'!C38","v":0},null,null,null,null,null,null,"",null,null,null,null,null,null,null,null,null,null,null,null,null,null,null,"",null,null,null,null,null,null,null,null,null,null,null,null,null,null,null,"",null,null,null,null,null,"",null,null,0,false]
[null,26,{"$f":"'C. FILIACION'!C39","v":0},null,null,null,null,null,null,"",null,null,null,null,null,null,null,null,null,null,null,null,null,null,null,"",null,null,null,null,null,null,null,null,null,null,null,null,null,null,null,"",null,null,null,null,null,"",null,null,0,false]
[null,27,{"$f":"'C. FILIACION'!C40","v":0},null,null,null,null,null,null,"",null,null,null,null,null,null,null,null,null,null,null,null,null,null,null,"",null,null,null,null,null,null,null,null,null,null,null,null,null,null,null,"",null,null,null,null,null,"",null,null,0,false]
[null,28,{"$f":"'C. FILIACION'!C41","v":0},null,null,null,null,null,null,"",null,null,null,null,null,null,null,null,null,null,null,null,null,null,null,"",null,null,null,null,null,null,null,null,null,null,null,null,null,null,null,"",null,null,null,null,null,"",null,null,0,false]
[null,29,{"$f":"'C. FILIACION'!C42","v":0},null,null,null,null,null,null,"",null,null,null,null,null,null,null,null,null,null,null,null,null,null,null,"",null,null,null,null,null,null,null,null,null,null,null,null,null,null,null,"",null,null,null,null,null,"",null,null,0,false]
[null,30,{"$f":"'C. FILIACION'!C43","v":0},null,null,null,null,null,null,"",null,null,null,null,null,null,null,null,null,null,null,null,null,null,null,"",null,null,null,null,null,null,null,null,null,null,null,null,null,null,null,"",null,null,null,null,null,"",null,null,0,false]
[null,31,{"$f":"'C. FILIACION'!C44","v":0},null,null,null,null,null,null,"",null,null,null,null,null,null,null,null,null,null,null,null,null,null,null,"",null,null,null,null,null,null,null,null,null,null,null,null,null,null,null,"",null,null,null,null,null,"",null,null,0,false]
[null,32,{"$f":"'C. FILIACION'!C45","v":0},null,null,null,null,null,null,"",null,null,null,null,null,null,null,null,null,null,null,null,null,null,null,"",null,null,null,null,null,null,null,null,null,null,null,null,null,null,null,"",null,null,null,null,null,"",null,null,0,false]
[null,33,{"$f":"'C. FILIACION'!C46","v":0},null,null,null,null,null,null,"",null,null,null,null,null,null,null,null,null,null,null,null,null,null,null,"",null,null,null,null,null,null,null,null,null,null,null,null,null,null,null,"",null,null,null,null,null,"",null,null,0,false]
[null,34,{"$f":"'C. FILIACION'!C47","v":0},null,null,null,null,null,null,"",null,null,null,null,null,null,null,null,null,null,null,null,null,null,null,"",null,null,null,null,null,null,null,null,null,null,null,null,null,null,null,"",null,null,null,null,null,"",null,null,0,false]
[null,35,{"$f":"'C. FILIACION'!C48","v":0},null,null,null,null,null,null,"",null,null,null,null,null,null,null,null,null,null,null,null,null,null,null,"",null,null,null,null,null,null,null,null,null,null,null,null,null,null,null,"",null,null,null,null,null,"",null,null,0,false]
[null,36,{"$f":"'C. FILIACION'!C49","v":0},null,null,null,null,null,null,"",null,null,null,null,null,null,null,null,null,null,null,null,null,null,null,"",null,null,null,null,null,null,null,null,null,null,null,null,null,null,null,"",null,null,null,null,null,"",null,null,0,false]
[null,37,{"$f":"'C. FILIACION'!C50","v":0},null,null,null,null,null,null,"",null,null,null,null,null,null,null,null,null,null,null,null,null,null,null,"",null,null,null,null,null,null,null,null,null,null,null,null,null,null,null,"",null,null,null,null,null,"",null,null,0,false]
[null,38,{"$f":"'C. FILIACION'!C51","v":0},null,null,null,null,null,null,"",null,null,null,null,null,null,null,null,null,null,null,null,null,null,null,"",null,null,null,null,null,null,null,null,null,null,null,null,null,null,null,"",null,null,null,null,null,"",null,null,0,false]
[null,39,{"$f":"'C. FILIACION'!C52","v":0},null,null,null,null,null,null,"",null,null,null,null,null,null,null,null,null,null,null,null,null,null,null,"",null,null,null,null,null,null,null,null,null,null,null,null,null,null,null,"",null,null,null,null,null,"",null,null,0,false]
[null,40,{"$f":"'C. FILIACION'!C53","v":0},null,null,null,null,null,null,"",null,null,null,null,null,null,null,null,null,null,null,null,null,null,null,"",null,null,null,null,null,null,null,null,null,null,null,null,null,null,null,"",null,null,null,null,null,"",null,null,0,false]
[null,41,{"$f":"'C. FILIACION'!C54","v":0},null,null,null,null,null,null,"",null,null,null,null,null,null,null,null,null,null,null,null,null,null,null,"",null,null,null,null,null,null,null,null,null,null,null,null,null,null,null,"",null,null,null,null,null,"",null,null,0,false]
[null,42,{"$f":"'C. FILIACION'!C55","v":0},null,null,null,null,null,null,"",null,null,null,null,null,null,null,null,null,null,null,null,null,null,null,"",null,null,null,null,null,null,null,null,null,null,null,null,null,null,null,"",null,null,null,null,null,"",null,null,0,false]
[null,43,{"$f":"'C. FILIACION'!C56","v":0},null,null,null,null,null,null,"",null,null,null,null,null,null,null,null,null,null,null,null,null,null,null,"",null,null,null,null,null,null,null,null,null,null,null,null,null,null,null,"",null,null,null,null,null,"",null,null,0,false]
[null,44,{"$f":"'C. FILIACION'!C57","v":0},null,null,null,null,null,null,"",null,null,null,null,null,null,null,null,null,null,null,null,null,null,null,"",null,null,null,null,null,null,null,null,null,null,null,null,null,null,null,"",null,null,null,null,null,"",null,null,0,false]
[null,45,{"$f":"'C. FILIACION'!C58","v":0},null,null,null,null,null,null,"",null,null,null,null,null,null,null,null,null,null,null,null,null,null,null,"",null,null,null,null,null,null,null,null,null,null,null,null,null,null,null,"",null,null,null,null,null,"",null,null,0,false]
[]
[]
[]
[]
[null,null,null,null,null,null,null,null,{"$f":"CARATULA!G22","v":0},null,null,null,null,null,null,null,null,null,null,null,null,null,null,null,null,null,null,null,null,null,{"$f":"CARATULA!G24","v":0}]

{"sheet":"REG-OBS","index":6,"n_rows":9,"n_cols":5,"rows_kept":9,"cut":false,"hidden":false,"merged":[[0,1,0,4]]}
[null,"REGISTRO DE OBSERVACIONES 1° BIMESTRE "]
[]
[null,"N° LISTA ","NOMBRE ","FECHA Y HORA ","OBSERVACIÓN "]
[null,1,0,"2019-01-30T10:26:59.940","Su comentario fue registrado "]
[null,5,"A5","2019-01-29T08:53:44.260","EEEEEEEEEEEEEEEEEEEEEE"]
[null,3,"A3","2019-01-29T08:53:21.750","SSSSSSS AAAAA"]
[null,null,"A6"]
[null,3,"A3","2019-01-29T08:32:30.500","pijnedo "]
[null,5,"A5","2019-01-29T08:33:22.840","pijnedo "]

{"sheet":"ASIS. 2° B","index":7,"n_rows":70,"n_cols":63,"rows_kept":70,"cut":false,"hidden":false,"merged":[[1,1,2,62],[3,1,3,62],[4,53,4,58],[4,59,4,61],[6,53,6,58],[6,59,6,61],[17,2,17,3],[12,1,13,1],[12,2,13,3],[12,4,12,57],[8,53,8,58],[12,58,12,61],[8,59,8,61],[12,62,13,62],[14,2,14,3],[15,2,15,3],[16,2,16,3],[29,2,29,3],[18,2,18,3],[19,2,19,3],[20,2,20,3],[21,2,21,3],[22,2,22,3],[23,2,23,3],[24,2,24,3],[25,2,25,3],[26,2,26,3],[27,2,27,3],[28,2,28,3],[41,2,41,3],[30,2,30,3],[31,2,31,3],[32,2,32,3],[33,2,33,3],[34,2,34,3],[35,2,35,3],[36,2,36,3],[37,2,37,3],[38,2,38,3],[39,2,39,3],[40,2,40,3],[53,2,53,3],[42,2,42,3],[43,2,43,3],[44,2,44,3],[45,2,45,3],[46,2,46,3],[47,2,47,3],[48,2,48,3],[49,2,49,3],[50,2,50,3],[51,2,51,3],[52,2,52,3],[62,49,62,58],[54,2,54,3],[55,2,55,3],[56,2,56,3],[57,2,57,3],[58,2,58,3],[62,4,62,14]]}
[]
[null,"REGISTRO DE ASISTENCIA 2⁰ BIMESTRE "]
[]
[]
[null,null,"UNIDAD EDUCATIVA ",":",{"$f":"CARATULA!G20","v":0},null,null,null,null,null,null,null,null,null,null,null,null,null,null,null,null,null,null,null,null,null,null,null,null,null,null,null,null,null,null,null,null,null,null,null,null,null,null,null,null,null,null,null,null,null,null,null,null,"INICIO DE BIMESTRE ",null,null,null,null,null,{"$f":"CARATULA!P13","v":"2019-04-23"}]
[null,null,"NIVEL ",":",{"$f":"CARATULA!G26","v":0}]
[null,null,"AÑO DE ESCOLARIDAD",":",{"$f":"CONCATENATE(CARATULA!G28,\" \",CARATULA!H28)","v":" "},null,null,null,null,null,null,null,null,null,null,null,null,null,null,null,null,null,null,null,null,null,null,null,null,null,null,null,null,null,null,null,null,null,null,null,null,null,null,null,null,null,null,null,null,null,null,null,null,"FIN DE BIMESTRE ",null,null,null,null,null,{"$f":"CARATULA!R13","v":"2019-06-30"}]
[null,null,"DIRECTORA/OR",":",{"$f":"CARATULA!G22","v":0}]
[null,null,"MAESTRA/O",":",{"$f":"CARATULA!G24","v":0},null,null,null,null,null,null,null,null,null,null,null,null,null,null,null,null,null,null,null,null,null,null,null,null,null,null,null,null,null,null,null,null,null,null,null,null,null,null,null,null,null,null,null,null,null,null,null,null,"FECHA ACTUAL ",null,null,null,null,null,{"$f":"TODAY()","v":"2019-04-16"}]
[null,null,"CAMPO ",":",{"$f":"CARATULA!G30","v":0}]
[null,null,"ÁREA",":",{"$f":"CARATULA!G32","v":0}]
[]
[null,"N","APELLIDOS Y NOMBRES ",null," 2DO BIMESTRE",null,null,null,null,null,null,null,null,null,null,null,null,null,null,null,null,null,null,null,null,null,null,null,null,null,null,null,null,null,null,null,null,null,null,null,null,null,null,null,null,null,null,null,null,null,null,null,null,null,null,null,null,null,"TOTALES ",null,null,null," DÍAS TRABAJADOS "]
[null,null,null,null,null,null,null,null,null,null,null,null,null,null,null,null,null,null,null,null,null,null,null,null,null,null,null,null,null,null,null,null,null,null,null,null,null,null,null,null,null,null,null,null,null,null,null,null,null,null,null,null,null,null,null,null,null,null,"ASISTENCIAS (A)","FALTAS (F)","RETRASOS (R)","LICENCIAS (L)"]
[null,1,{"$f":"'C. FILIACION'!C14","v":0},null,null,null,null,null,null,null,null,null,null,null,null,null,null,null,null,null,null,null,null,null,null,null,null,null,null,null,null,null,null,null,null,null,null,null,null,null,null,null,null,null,null,null,null,null,null,null,null,null,null,null,null,null,null,null,{"$f":"IF(COUNTIF(E15:BF15,\"A\")=0,\"\",COUNTIF(E15:BF15,\"A\"))","v":""},{"$f":"IF(COUNTIF(E15:BF15,\"F\")=0,\"\",COUNTIF(E15:BF15,\"F\"))","v":""},{"$f":"IF(COUNTIF(E15:BF15,\"R\")=0,\"\",COUNTIF(E15:BF15,\"R\"))","v":""},{"$f":"IF(COUNTIF(E15:BF15,\"L\")=0,\"\",COUNTIF(E15:BF15,\"L\"))","v":""},{"$f":"IF((IF(BG15=\"\",0,BG15)+IF(BI15=\"\",0,BI15))=0,\"\",(IF(BG15=\"\",0,BG15)+IF(BI15=\"\",0,BI15)))","v":""}]
[null,2,{"$f":"'C. FILIACION'!C15","v":0},null,null,null,null,null,null,null,null,null,null,null,null,null,null,null,null,null,null,null,null,null,null,null,null,null,null,null,null,null,null,null,null,null,null,null,null,null,null,null,null,null,null,null,null,null,null,null,null,null,null,null,null,null,null,null,{"$f":"IF(COUNTIF(E16:BF16,\"A\")=0,\"\",COUNTIF(E16:BF16,\"A\"))","v":""},{"$f":"IF(COUNTIF(E16:BF16,\"F\")=0,\"\",COUNTIF(E16:BF16,\"F\"))","v":""},{"$f":"IF(COUNTIF(E16:BF16,\"R\")=0,\"\",COUNTIF(E16:BF16,\"R\"))","v":""},{"$f":"IF(COUNTIF(E16:BF16,\"L\")=0,\"\",COUNTIF(E16:BF16,\"L\"))","v":""},{"$f":"IF((IF(BG16=\"\",0,BG16)+IF(BI16=\"\",0,BI16))=0,\"\",(IF(BG16=\"\",0,BG16)+IF(BI16=\"\",0,BI16)))","v":""}]
[null,3,{"$f":"'C. FILIACION'!C16","v":0},null,null,null,null,null,null,null,null,null,null,null,null,null,null,null,null,null,null,null,null,null,null,null,null,null,null,null,null,null,null,null,null,null,null,null,null,null,null,null,null,null,null,null,null,null,null,null,null,null,null,null,null,null,null,null,"","","","",""]
[null,4,{"$f":"'C. FILIACION'!C17","v":0},null,null,null,null,null,null,null,null,null,null,null,null,null,null,null,null,null,null,null,null,null,null,null,null,null,null,null,null,null,null,null,null,null,null,null,null,null,null,null,null,null,null,null,null,null,null,null,null,null,null,null,null,null,null,null,"","","","",""]
[null,5,{"$f":"'C. FILIACION'!C18","v":0},null,null,null,null,null,null,null,null,null,null,null,null,null,null,null,null,null,null,null,null,null,null,null,null,null,null,null,null,null,null,null,null,null,null,null,null,null,null,null,null,null,null,null,null,null,null,null,null,null,null,null,null,null,null,null,"","","","",""]
[null,6,{"$f":"'C. FILIACION'!C19","v":0},null,null,null,null,null,null,null,null,null,null,null,null,null,null,null,null,null,null,null,null,null,null,null,null,null,null,null,null,null,null,null,null,null,null,null,null,null,null,null,null,null,null,null,null,null,null,null,null,null,null,null,null,null,null,null,"","","","",""]
[null,7,{"$f":"'C. FILIACION'!C20","v":0},null,null,null,null,null,null,null,null,null,null,null,null,null,null,null,null,null,null,null,null,null,null,null,null,null,null,null,null,null,null,null,null,null,null,null,null,null,null,null,null,null,null,null,null,null,null,null,null,null,null,null,null,null,null,null,"","","","",""]
[null,8,{"$f":"'C. FILIACION'!C21","v":0},null,null,null,null,null,null,null,null,null,null,null,null,null,null,null,null,null,null,null,null,null,null,null,null,null,null,null,null,null,null,null,null,null,null,null,null,null,null,null,null,null,null,null,null,null,null,null,null,null,null,null,null,null,null,null,"","","","",""]
[null,9,{"$f":"'C. FILIACION'!C22","v":0},null,null,null,null,null,null,null,null,null,null,null,null,null,null,null,null,null,null,null,null,null,null,null,null,null,null,null,null,null,null,null,null,null,null,null,null,null,null,null,null,null,null,null,null,null,null,null,null,null,null,null,null,null,null,null,"","","","",""]
[null,10,{"$f":"'C. FILIACION'!C23","v":0},null,null,null,null,null,null,null,null,null,null,null,null,null,null,null,null,null,null,null,null,null,null,null,null,null,null,null,null,null,null,null,null,null,null,null,null,null,null,null,null,null,null,null,null,null,null,null,null,null,null,null,null,null,null,null,"","","","",""]
[null,11,{"$f":"'C. FILIACION'!C24","v":0},null,null,null,null,null,null,null,null,null,null,null,null,null,null,null,null,null,null,null,null,null,null,null,null,null,null,null,null,null,null,null,null,null,null,null,null,null,null,null,null,null,null,null,null,null,null,null,null,null,null,null,null,null,null,null,"","","","",""]
[null,12,{"$f":"'C. FILIACION'!C25","v":0},null,null,null,null,null,null,null,null,null,null,null,null,null,null,null,null,null,null,null,null,null,null,null,null,null,null,null,null,null,null,null,null,null,null,null,null,null,null,null,null,null,null,null,null,null,null,null,null,null,null,null,null,null,null,null,"","","","",""]
[null,13,{"$f":"'C. FILIACION'!C26","v":0},null,null,null,null,null,null,null,null,null,null,null,null,null,null,null,null,null,null,null,null,null,null,null,null,null,null,null,null,null,null,null,null,null,null,null,null,null,null,null,null,null,null,null,null,null,null,null,null,null,null,null,null,null,null,null,"","","","",""]
[null,14,{"$f":"'C. FILIACION'!C27","v":0},null,null,null,null,null,null,null,null,null,null,null,null,null,null,null,null,null,null,null,null,null,null,null,null,null,null,null,null,null,null,null,null,null,null,null,null,null,null,null,null,null,null,null,null,null,null,null,null,null,null,null,null,null,null,null,"","","","",""]
[null,15,{"$f":"'C. FILIACION'!C28","v":0},null,null,null,null,null,null,null,null,null,null,null,null,null,null,null,null,null,null,null,null,null,null,null,null,null,null,null,null,null,null,null,null,null,null,null,null,null,null,null,null,null,null,null,null,null,null,null,null,null,null,null,null,null,null,null,"","","","",""]
[null,16,{"$f":"'C. FILIACION'!C29","v":0},null,null,null,null,null,null,null,null,null,null,null,null,null,null,null,null,null,null,null,null,null,null,null,null,null,null,null,null,null,null,null,null,null,null,null,null,null,null,null,null,null,null,null,null,null,null,null,null,null,null,null,null,null,null,null,"","","","",""]
[null,17,{"$f":"'C. FILIACION'!C30","v":0},null,null,null,null,null,null,null,null,null,null,null,null,null,null,null,null,null,null,null,null,null,null,null,null,null,null,null,null,null,null,null,null,null,null,null,null,null,null,null,null,null,null,null,null,null,null,null,null,null,null,null,null,null,null,null,"","","","",""]
[null,18,{"$f":"'C. FILIACION'!C31","v":0},null,null,null,null,null,null,null,null,null,null,null,null,null,null,null,null,null,null,null,null,null,null,null,null,null,null,null,null,null,null,null,null,null,null,null,null,null,null,null,null,null,null,null,null,null,null,null,null,null,null,null,null,null,null,null,"","","","",""]
[null,19,{"$f":"'C. FILIACION'!C32","v":0},null,null,null,null,null,null,null,null,null,null,null,null,null,null,null,null,null,null,null,null,null,null,null,null,null,null,null,null,null,null,null,null,null,null,null,null,null,null,null,null,null,null,null,null,null,null,null,null,null,null,null,null,null,null,null,"","","","",""]
[null,20,{"$f":"'C. FILIACION'!C33","v":0},null,null,null,null,null,null,null,null,null,null,null,null,null,null,null,null,null,null,null,null,null,null,null,null,null,null,null,null,null,null,null,null,null,null,null,null,null,null,null,null,null,null,null,null,null,null,null,null,null,null,null,null,null,null,null,"","","","",""]
[null,21,{"$f":"'C. FILIACION'!C34","v":0},null,null,null,null,null,null,null,null,null,null,null,null,null,null,null,null,null,null,null,null,null,null,null,null,null,null,null,null,null,null,null,null,null,null,null,null,null,null,null,null,null,null,null,null,null,null,null,null,null,null,null,null,null,null,null,"","","","",""]
[null,22,{"$f":"'C. FILIACION'!C35","v":0},null,null,null,null,null,null,null,null,null,null,null,null,null,null,null,null,null,null,null,null,null,null,null,null,null,null,null,null,null,null,null,null,null,null,null,null,null,null,null,null,null,null,null,null,null,null,null,null,null,null,null,null,null,null,null,"","","","",""]
[null,23,{"$f":"'C. FILIACION'!C36","v":0},null,null,null,null,null,null,null,null,null,null,null,null,null,null,null,null,null,null,null,null,null,null,null,null,null,null,null,null,null,null,null,null,null,null,null,null,null,null,null,null,null,null,null,null,null,null,null,null,null,null,null,null,null,null,null,"","","","",""]
[null,24,{"$f":"'C. FILIACION'!C37","v":0},null,null,null,null,null,null,null,null,null,null,null,null,null,null,null,null,null,null,null,null,null,null,null,null,null,null,null,null,null,null,null,null,null,null,null,null,null,null,null,null,null,null,null,null,null,null,null,null,null,null,null,null,null,null,null,"","","","",""]
[null,25,{"$f":"'C. FILIACION'!C38","v":0},null,null,null,null,null,null,null,null,null,null,null,null,null,null,null,null,null,null,null,null,null,null,null,null,null,null,null,null,null,null,null,null,null,null,null,null,null,null,null,null,null,null,null,null,null,null,null,null,null,null,null,null,null,null,null,"","","","",""]
[null,26,{"$f":"'C. FILIACION'!C39","v":0},null,null,null,null,null,null,null,null,null,null,null,null,null,null,null,null,null,null,null,null,null,null,null,null,null,null,null,null,null,null,null,null,null,null,null,null,null,null,null,null,null,null,null,null,null,null,null,null,null,null,null,null,null,null,null,"","","","",""]
[null,27,{"$f":"'C. FILIACION'!C40","v":0},null,null,null,null,null,null,null,null,null,null,null,null,null,null,null,null,null,null,null,null,null,null,null,null,null,null,null,null,null,null,null,null,null,null,null,null,null,null,null,null,null,null,null,null,null,null,null,null,null,null,null,null,null,null,null,"","","","",""]
[null,28,{"$f":"'C. FILIACION'!C41","v":0},null,null,null,null,null,null,null,null,null,null,null,null,null,null,null,null,null,null,null,null,null,null,null,null,null,null,null,null,null,null,null,null,null,null,null,null,null,null,null,null,null,null,null,null,null,null,null,null,null,null,null,null,null,null,null,"","","","",""]
[null,29,{"$f":"'C. FILIACION'!C42","v":0},null,null,null,null,null,null,null,null,null,null,null,null,null,null,null,null,null,null,null,null,null,null,null,null,null,null,null,null,null,null,null,null,null,null,null,null,null,null,null,null,null,null,null,null,null,null,null,null,null,null,null,null,null,null,null,"","","","",""]
[null,30,{"$f":"'C. FILIACION'!C43","v":0},null,null,null,null,null,null,null,null,null,null,null,null,null,null,null,null,null,null,null,null,null,null,null,null,null,null,null,null,null,null,null,null,null,null,null,null,null,null,null,null,null,null,null,null,null,null,null,null,null,null,null,null,null,null,null,"","","","",""]
[null,31,{"$f":"'C. FILIACION'!C44","v":0},null,null,null,null,null,null,null,null,null,null,null,null,null,null,null,null,null,null,null,null,null,null,null,null,null,null,null,null,null,null,null,null,null,null,null,null,null,null,null,null,null,null,null,null,null,null,null,null,null,null,null,null,null,null,null,"","","","",""]
[null,32,{"$f":"'C. FILIACION'!C45","v":0},null,null,null,null,null,null,null,null,null,null,null,null,null,null,null,null,null,null,null,null,null,null,null,null,null,null,null,null,null,null,null,null,null,null,null,null,null,null,null,null,null,null,null,null,null,null,null,null,null,null,null,null,null,null,null,"","","","",""]
[null,33,{"$f":"'C. FILIACION'!C46","v":0},null,null,null,null,null,null,null,null,null,null,null,null,null,null,null,null,null,null,null,null,null,null,null,null,null,null,null,null,null,null,null,null,null,null,null,null,null,null,null,null,null,null,null,null,null,null,null,null,null,null,null,null,null,null,null,"","","","",""]
[null,34,{"$f":"'C. FILIACION'!C47","v":0},null,null,null,null,null,null,null,null,null,null,null,null,null,null,null,null,null,null,null,null,null,null,null,null,null,null,null,null,null,null,null,null,null,null,null,null,null,null,null,null,null,null,null,null,null,null,null,null,null,null,null,null,null,null,null,"","","","",""]
[null,35,{"$f":"'C. FILIACION'!C48","v":0},null,null,null,null,null,null,null,null,null,null,null,null,null,null,null,null,null,null,null,null,null,null,null,null,null,null,null,null,null,null,null,null,null,null,null,null,null,null,null,null,null,null,null,null,null,null,null,null,null,null,null,null,null,null,null,"","","","",""]
[null,36,{"$f":"'C. FILIACION'!C49","v":0},null,null,null,null,null,null,null,null,null,null,null,null,null,null,null,null,null,null,null,null,null,null,null,null,null,null,null,null,null,null,null,null,null,null,null,null,null,null,null,null,null,null,null,null,null,null,null,null,null,null,null,null,null,null,null,"","","","",""]
[null,37,{"$f":"'C. FILIACION'!C50","v":0},null,null,null,null,null,null,null,null,null,null,null,null,null,null,null,null,null,null,null,null,null,null,null,null,null,null,null,null,null,null,null,null,null,null,null,null,null,null,null,null,null,null,null,null,null,null,null,null,null,null,null,null,null,null,null,"","","","",""]
[null,38,{"$f":"'C. FILIACION'!C51","v":0},null,null,null,null,null,null,null,null,null,null,null,null,null,null,null,null,null,null,null,null,null,null,null,null,null,null,null,null,null,null,null,null,null,null,null,null,null,null,null,null,null,null,null,null,null,null,null,null,null,null,null,null,null,null,null,"","","","",""]
[null,39,{"$f":"'C. FILIACION'!C52","v":0},null,null,null,null,null,null,null,null,null,null,null,null,null,null,null,null,null,null,null,null,null,null,null,null,null,null,null,null,null,null,null,null,null,null,null,null,null,null,null,null,null,null,null,null,null,null,null,null,null,null,null,null,null,null,null,"","","","",""]
[null,40,{"$f":"'C. FILIACION'!C53","v":0},null,null,null,null,null,null,null,null,null,null,null,null,null,null,null,null,null,null,null,null,null,null,null,null,null,null,null,null,null,null,null,null,null,null,null,null,null,null,null,null,null,null,null,null,null,null,null,null,null,null,null,null,null,null,null,"","","","",""]
[null,41,{"$f":"'C. FILIACION'!C54","v":0},null,null,null,null,null,null,null,null,null,null,null,null,null,null,null,null,null,null,null,null,null,null,null,null,null,null,null,null,null,null,null,null,null,null,null,null,null,null,null,null,null,null,null,null,null,null,null,null,null,null,null,null,null,null,null,"","","","",""]
[null,42,{"$f":"'C. FILIACION'!C55","v":0},null,null,null,null,null,null,null,null,null,null,null,null,null,null,null,null,null,null,null,null,null,null,null,null,null,null,null,null,null,null,null,null,null,null,null,null,null,null,null,null,null,null,null,null,null,null,null,null,null,null,null,null,null,null,null,"","","","",""]
[null,43,{"$f":"'C. FILIACION'!C56","v":0},null,null,null,null,null,null,null,null,null,null,null,null,null,null,null,null,null,null,null,null,null,null,null,null,null,null,null,null,null,null,null,null,null,null,null,null,null,null,null,null,null,null,null,null,null,null,null,null,null,null,null,null,null,null,null,"","","","",""]
[null,44,{"$f":"'C. FILIACION'!C57","v":0},null,null,null,null,null,null,null,null,null,null,null,null,null,null,null,null,null,null,null,null,null,null,null,null,null,null,null,null,null,null,null,null,null,null,null,null,null,null,null,null,null,null,null,null,null,null,null,null,null,null,null,null,null,null,null,"","","","",""]
[null,45,{"$f":"'C. FILIACION'!C58","v":0},null,null,null,null,null,null,null,null,null,null,null,null,null,null,null,null,null,null,null,null,null,null,null,null,null,null,null,null,null,null,null,null,null,null,null,null,null,null,null,null,null,null,null,null,null,null,null,null,null,null,null,null,null,null,null,"","","","",""]
[]
[]
[]
[null,null,null,null,{"$f":"CARATULA!G22","v":0},null,null,null,null,null,null,null,null,null,null,null,null,null,null,null,null,null,null,null,null,null,null,null,null,null,null,null,null,null,null,null,null,null,null,null,null,null,null,null,null,null,null,null,null,{"$f":"CARATULA!G24","v":0}]
[]
[]
[]
[null,null,"INSCRITO "]
[null,null,"NO INCORPORADO"]
[null,null,"RETIRO O ABANDONO"]
[null,null,"EFECTIVO"]

{"sheet":"VAL. 2° B","index":8,"n_rows":68,"n_cols":55,"rows_kept":68,"cut":false,"hidden":false,"merged":[[2,1,3,51],[5,29,5,33],[5,35,5,41],[5,42,5,43],[5,44,11,49],[5,50,6,51],[6,35,6,41],[6,42,6,43],[7,50,11,51],[9,29,9,33],[7,21,7,27],[9,21,9,27],[7,29,7,33],[7,35,7,41],[7,42,7,43],[16,10,16,14],[13,3,13,47],[13,48,13,49],[13,50,17,50],[16,15,16,19],[16,20,16,24],[28,2,28,3],[16,49,17,49],[18,2,18,3],[19,2,19,3],[20,2,20,3],[21,2,21,3],[22,2,22,3],[16,31,16,35],[16,36,16,40],[16,41,17,41],[16,42,16,46],[16,47,17,47],[16,48,17,48],[13,1,16,2],[16,25,17,25],[16,26,16,30],[23,2,23,3],[24,2,24,3],[25,2,25,3],[26,2,26,3],[27,2,27,3],[40,2,40,3],[29,2,29,3],[30,2,30,3],[31,2,31,3],[32,2,32,3],[33,2,33,3],[34,2,34,3],[35,2,35,3],[36,2,36,3],[37,2,37,3],[38,2,38,3],[39,2,39,3],[52,2,52,3],[41,2,41,3],[42,2,42,3],[43,2,43,3],[44,2,44,3],[45,2,45,3],[46,2,46,3],[47,2,47,3],[48,2,48,3],[49,2,49,3],[50,2,50,3],[51,2,51,3],[58,2,58,3],[59,2,59,3],[60,2,60,3],[61,2,61,3],[62,2,62,3],[53,2,53,3],[54,2,54,3],[55,2,55,3],[56,2,56,3],[57,2,57,3],[13,52,17,52],[66,8,66,19],[66,30,66,42],[67,8,67,19],[67,30,67,42],[65,48,65,49],[64,48,64,49],[13,51,17,51],[14,3,14,47],[14,48,14,49],[15,3,15,9],[15,10,15,25],[15,26,15,41],[15,42,15,47],[16,4,16,8],[16,9,17,9]]}
[]
[]
[null,"REGISTRO DE VALORACIÓN 2⁰ BIMESTRE"]
[]
[]
[null,null,"UNIDAD EDUCATIVA ",":",null,{"$f":"CARATULA!G20","v":0},null,null,null,null,null,null,null,null,null,null,null,null,null,null,null,"INICIO DE BIMESTRE ",null,null,null,null,null,null,":",{"$f":"CARATULA!P13","v":"2019-04-23"},null,null,null,null,null,null,null,null,null,null,null,null,null,null,null,null,null,null,null,null,"DÍAS RESTANTES PARA FIN DE BIMESTRE "]
[null,null,"NIVEL ",":",null,{"$f":"CARATULA!G26","v":0},null,null,null,null,null,null,null,null,null,null,null,null,null,null,null,null,null,null,null,null,null,null,null,null,null,null,null,null,null,"N° TOTAL APROBADOS",null,null,null,null,null,null,{"$f":"COUNTIF(AY19:AY63,\">=50,500\")","v":0}]
[null,null,"AÑO DE ESCOLARIDAD",":",null,{"$f":"CONCATENATE(CARATULA!G28,\" \",CARATULA!H28)","v":" "},null,null,null,null,null,null,null,null,null,null,null,null,null,null,null,"FIN DE BIMESTRE ",null,null,null,null,null,null,":",{"$f":"CARATULA!R13","v":"2019-06-30"},null,null,null,null,null,"N° TOTAL REPROBADOS",null,null,null,null,null,null,{"$f":"COUNTIFS(AY19:AY63,\">=1\",AY19:AY63,\"<=50,499\")","v":0},null,null,null,null,null,null,null,{"$f":"AD8-AD10","v":75},null,null,"N° Lista ","NOMBRE"]
[null,null,"DIRECTORA/OR",":",null,{"$f":"CARATULA!G22","v":0}]
[null,null,"MAESTRA/O",":",null,{"$f":"CARATULA!G24","v":0},null,null,null,null,null,null,null,null,null,null,null,null,null,null,null,"FECHA ACTUAL",null,null,null,null,null,null,":",{"$f":"TODAY()","v":"2019-04-16"},null,null,null,null,null,null,null,null,null,null,null,null,null,null,null,null,null,null,null,null,null,null,null,1,{"$f":"VLOOKUP(BB10,'C. FILIACION'!B14:C58, 2,FALSE)","v":0}]
[{"$f":"COUNTIF(AY19:AY63,¨>=50)","v":0},null,"CAMPO ",":",null,{"$f":"CARATULA!G30","v":0}]
[null,null,"ÁREA",":",null,{"$f":"CARATULA!G32","v":0},null,null,null,null,null,null,null,null,null,null,null,null,null,null,null,null,null,null,null,null,null,null,null,null,null,null,null,null,null,null,null,null,null,null,null,null,null,null,null,null,null,null,null,null,null,null,null,null,"FECHA Y HORA "]
[]
[null,null,null,"EVALUACIÓN MAESTRA(O)",null,null,null,null,null,null,null,null,null,null,null,null,null,null,null,null,null,null,null,null,null,null,null,null,null,null,null,null,null,null,null,null,null,null,null,null,null,null,null,null,null,null,null,null,"AUTO EVALUACIÓN ESTUDIANTE ",null," TOTAL BIMESTRAL","SITUACIÓN BIMESTRAL",null,null,{"$f":"NOW()","v":"2019-04-16T15:48:02.590"}]
[null,null,null,"DIMENSIONES ",null,null,null,null,null,null,null,null,null,null,null,null,null,null,null,null,null,null,null,null,null,null,null,null,null,null,null,null,null,null,null,null,null,null,null,null,null,null,null,null,null,null,null,null,"DIMENSIONES "]
[null,null,null,"SER -10",null,null,null,null,null,null,"SABER - 35",null,null,null,null,null,null,null,null,null,null,null,null,null,null,null,"HACER - 35",null,null,null,null,null,null,null,null,null,null,null,null,null,null,null,"DECIDIR - 10 ",null,null,null,null,null,"SER - 5","DECIDIR - 5",null,null,null,null,"OBSERVACIÓN "]
[null,null,null,"CRITERIOS DE EVALUACIÓN  ",null,null,null,null,null,"VALORACIÓN 10 PUN.",null,null,null,null,null,null,null,null,null,null,null,null,null,null,null,"VALORACIÓN 35 PUN.",null,null,null,null,null,null,null,null,null,null,null,null,null,null,null,"VALORACIÓN 35 PUN.",null,null,null,null,null,"VALORACIÓN 10 PUN."]
[null,"N ","NOMBRES Y APELLIDOS ","ACTIVIDADES"]
[null,1,{"$f":"'C. FILIACION'!C14","v":0},null,null,null,null,null,null,{"$f":"IFERROR(ROUND(AVERAGE(E19:I19),0),\"\")","v":""},null,null,null,null,null,null,null,null,null,null,null,null,null,null,null,{"$f":"IFERROR(ROUND(AVERAGE(K19:Y19),0),\"\")","v":""},null,null,null,null,null,null,null,null,null,null,null,null,null,null,null,{"$f":"IFERROR(ROUND(AVERAGE(AA19:AO19),0),\"\")","v":""},null,null,null,null,null,{"$f":"IFERROR(ROUND(AVERAGE(AQ19:AU19),0),\"\")","v":""},null,null,{"$f":"IFERROR((SUM(J19,Z19,AP19,AV19:AX19)),\"\")","v":0},{"$f":"IF(AY19=\"\",\"\",(IF(AND(AY19>=1,AY19<=50.499),\"REPROBADO\",IF(AND(AY19>=50.5,AY19<=100),\"APROBADO\"))))","v":false}]
[null,2,{"$f":"'C. FILIACION'!C15","v":0},null,null,null,null,null,null,{"$f":"IFERROR(ROUND(AVERAGE(E20:I20),0),\"\")","v":""},null,null,null,null,null,null,null,null,null,null,null,null,null,null,null,{"$f":"IFERROR(ROUND(AVERAGE(K20:Y20),0),\"\")","v":""},null,null,null,null,null,null,null,null,null,null,null,null,null,null,null,{"$f":"IFERROR(ROUND(AVERAGE(AA20:AO20),0),\"\")","v":""},null,null,null,null,null,{"$f":"IFERROR(ROUND(AVERAGE(AQ20:AU20),0),\"\")","v":""},null,null,0,{"$f":"IF(AY20=\"\",\"\",(IF(AND(AY20>=1,AY20<=50.499),\"REPROBADO\",IF(AND(AY20>=50.5,AY20<=100),\"APROBADO\"))))","v":false}]
[null,3,{"$f":"'C. FILIACION'!C16","v":0},null,null,null,null,null,null,"",null,null,null,null,null,null,null,null,null,null,null,null,null,null,null,"",null,null,null,null,null,null,null,null,null,null,null,null,null,null,null,"",null,null,null,null,null,"",null,null,0,false]
[null,4,{"$f":"'C. FILIACION'!C17","v":0},null,null,null,null,null,null,"",null,null,null,null,null,null,null,null,null,null,null,null,null,null,null,"",null,null,null,null,null,null,null,null,null,null,null,null,null,null,null,"",null,null,null,null,null,"",null,null,0,false]
[null,5,{"$f":"'C. FILIACION'!C18","v":0},null,null,null,null,null,null,"",null,null,null,null,null,null,null,null,null,null,null,null,null,null,null,"",null,null,null,null,null,null,null,null,null,null,null,null,null,null,null,"",null,null,null,null,null,"",null,null,0,false]
[null,6,{"$f":"'C. FILIACION'!C19","v":0},null,null,null,null,null,null,"",null,null,null,null,null,null,null,null,null,null,null,null,null,null,null,"",null,null,null,null,null,null,null,null,null,null,null,null,null,null,null,"",null,null,null,null,null,"",null,null,0,false]
[null,7,{"$f":"'C. FILIACION'!C20","v":0},null,null,null,null,null,null,"",null,null,null,null,null,null,null,null,null,null,null,null,null,null,null,"",null,null,null,null,null,null,null,null,null,null,null,null,null,null,null,"",null,null,null,null,null,"",null,null,0,false]
[null,8,{"$f":"'C. FILIACION'!C21","v":0},null,null,null,null,null,null,"",null,null,null,null,null,null,null,null,null,null,null,null,null,null,null,"",null,null,null,null,null,null,null,null,null,null,null,null,null,null,null,"",null,null,null,null,null,"",null,null,0,false]
[null,9,{"$f":"'C. FILIACION'!C22","v":0},null,null,null,null,null,null,"",null,null,null,null,null,null,null,null,null,null,null,null,null,null,null,"",null,null,null,null,null,null,null,null,null,null,null,null,null,null,null,"",null,null,null,null,null,"",null,null,0,false]
[null,10,{"$f":"'C. FILIACION'!C23","v":0},null,null,null,null,null,null,"",null,null,null,null,null,null,null,null,null,null,null,null,null,null,null,"",null,null,null,null,null,null,null,null,null,null,null,null,null,null,null,"",null,null,null,null,null,"",null,null,0,false]
[null,11,{"$f":"'C. FILIACION'!C24","v":0},null,null,null,null,null,null,"",null,null,null,null,null,null,null,null,null,null,null,null,null,null,null,"",null,null,null,null,null,null,null,null,null,null,null,null,null,null,null,"",null,null,null,null,null,"",null,null,0,false]
[null,12,{"$f":"'C. FILIACION'!C25","v":0},null,null,null,null,null,null,"",null,null,null,null,null,null,null,null,null,null,null,null,null,null,null,"",null,null,null,null,null,null,null,null,null,null,null,null,null,null,null,"",null,null,null,null,null,"",null,null,0,false]
[null,13,{"$f":"'C. FILIACION'!C26","v":0},null,null,null,null,null,null,"",null,null,null,null,null,null,null,null,null,null,null,null,null,null,null,"",null,null,null,null,null,null,null,null,null,null,null,null,null,null,null,"",null,null,null,null,null,"",null,null,0,false]
[null,14,{"$f":"'C. FILIACION'!C27","v":0},null,null,null,null,null,null,"",null,null,null,null,null,null,null,null,null,null,null,null,null,null,null,"",null,null,null,null,null,null,null,null,null,null,null,null,null,null,null,"",null,null,null,null,null,"",null,null,0,false]
[null,15,{"$f":"'C. FILIACION'!C28","v":0},null,null,null,null,null,null,"",null,null,null,null,null,null,null,null,null,null,null,null,null,null,null,"",null,null,null,null,null,null,null,null,null,null,null,null,null,null,null,"",null,null,null,null,null,"",null,null,0,false]
[null,16,{"$f":"'C. FILIACION'!C29","v":0},null,null,null,null,null,null,"",null,null,null,null,null,null,null,null,null,null,null,null,null,null,null,"",null,null,null,null,null,null,null,null,null,null,null,null,null,null,null,"",null,null,null,null,null,"",null,null,0,false]
[null,17,{"$f":"'C. FILIACION'!C30","v":0},null,null,null,null,null,null,"",null,null,null,null,null,null,null,null,null,null,null,null,null,null,null,"",null,null,null,null,null,null,null,null,null,null,null,null,null,null,null,"",null,null,null,null,null,"",null,null,0,false]
[null,18,{"$f":"'C. FILIACION'!C31","v":0},null,null,null,null,null,null,"",null,null,null,null,null,null,null,null,null,null,null,null,null,null,null,"",null,null,null,null,null,null,null,null,null,null,null,null,null,null,null,"",null,null,null,null,null,"",null,null,0,false]
[null,19,{"$f":"'C. FILIACION'!C32","v":0},null,null,null,null,null,null,"",null,null,null,null,null,null,null,null,null,null,null,null,null,null,null,"",null,null,null,null,null,null,null,null,null,null,null,null,null,null,null,"",null,null,null,null,null,"",null,null,0,false]
[null,20,{"$f":"'C. FILIACION'!C33","v":0},null,null,null,null,null,null,"",null,null,null,null,null,null,null,null,null,null,null,null,null,null,null,"",null,null,null,null,null,null,null,null,null,null,null,null,null,null,null,"",null,null,null,null,null,"",null,null,0,false]
[null,21,{"$f":"'C. FILIACION'!C34","v":0},null,null,null,null,null,null,"",null,null,null,null,null,null,null,null,null,null,null,null,null,null,null,"",null,null,null,null,null,null,null,null,null,null,null,null,null,null,null,"",null,null,null,null,null,"",null,null,0,false]
[null,22,{"$f":"'C. FILIACION'!C35","v":0},null,null,null,null,null,null,"",null,null,null,null,null,null,null,null,null,null,null,null,null,null,null,"",null,null,null,null,null,null,null,null,null,null,null,null,null,null,null,"",null,null,null,null,null,"",null,null,0,false]
[null,23,{"$f":"'C. FILIACION'!C36","v":0},null,null,null,null,null,null,"",null,null,null,null,null,null,null,null,null,null,null,null,null,null,null,"",null,null,null,null,null,null,null,null,null,null,null,null,null,null,null,"",null,null,null,null,null,"",null,null,0,false]
[null,24,{"$f":"'C. FILIACION'!C37","v":0},null,null,null,null,null,null,"",null,null,null,null,null,null,null,null,null,null,null,null,null,null,null,"",null,null,null,null,null,null,null,null,null,null,null,null,null,null,null,"",null,null,null,null,null,"",null,null,0,false]
[null,25,{"$f":"'C. FILIACION'!C38","v":0},null,null,null,null,null,null,"",null,null,null,null,null,null,null,null,null,null,null,null,null,null,null,"",null,null,null,null,null,null,null,null,null,null,null,null,null,null,null,"",null,null,null,null,null,"",null,null,0,false]
[null,26,{"$f":"'C. FILIACION'!C39","v":0},null,null,null,null,null,null,"",null,null,null,null,null,null,null,null,null,null,null,null,null,null,null,"",null,null,null,null,null,null,null,null,null,null,null,null,null,null,null,"",null,null,null,null,null,"",null,null,0,false]
[null,27,{"$f":"'C. FILIACION'!C40","v":0},null,null,null,null,null,null,"",null,null,null,null,null,null,null,null,null,null,null,null,null,null,null,"",null,null,null,null,null,null,null,null,null,null,null,null,null,null,null,"",null,null,null,null,null,"",null,null,0,false]
[null,28,{"$f":"'C. FILIACION'!C41","v":0},null,null,null,null,null,null,"",null,null,null,null,null,null,null,null,null,null,null,null,null,null,null,"",null,null,null,null,null,null,null,null,null,null,null,null,null,null,null,"",null,null,null,null,null,"",null,null,0,false]
[null,29,{"$f":"'C. FILIACION'!C42","v":0},null,null,null,null,null,null,"",null,null,null,null,null,null,null,null,null,null,null,null,null,null,null,"",null,null,null,null,null,null,null,null,null,null,null,null,null,null,null,"",null,null,null,null,null,"",null,null,0,false]
[null,30,{"$f":"'C. FILIACION'!C43","v":0},null,null,null,null,null,null,"",null,null,null,null,null,null,null,null,null,null,null,null,null,null,null,"",null,null,null,null,null,null,null,null,null,null,null,null,null,null,null,"",null,null,null,null,null,"",null,null,0,false]
[null,31,{"$f":"'C. FILIACION'!C44","v":0},null,null,null,null,null,null,"",null,null,null,null,null,null,null,null,null,null,null,null,null,null,null,"",null,null,null,null,null,null,null,null,null,null,null,null,null,null,null,"",null,null,null,null,null,"",null,null,0,false]
[null,32,{"$f":"'C. FILIACION'!C45","v":0},null,null,null,null,null,null,"",null,null,null,null,null,null,null,null,null,null,null,null,null,null,null,"",null,null,null,null,null,null,null,null,null,null,null,null,null,null,null,"",null,null,null,null,null,"",null,null,0,false]
[null,33,{"$f":"'C. FILIACION'!C46","v":0},null,null,null,null,null,null,"",null,null,null,null,null,null,null,null,null,null,null,null,null,null,null,"",null,null,null,null,null,null,null,null,null,null,null,null,null,null,null,"",null,null,null,null,null,"",null,null,0,false]
[null,34,{"$f":"'C. FILIACION'!C47","v":0},null,null,null,null,null,null,"",null,null,null,null,null,null,null,null,null,null,null,null,null,null,null,"",null,null,null,null,null,null,null,null,null,null,null,null,null,null,null,"",null,null,null,null,null,"",null,null,0,false]
[null,35,{"$f":"'C. FILIACION'!C48","v":0},null,null,null,null,null,null,"",null,null,null,null,null,null,null,null,null,null,null,null,null,null,null,"",null,null,null,null,null,null,null,null,null,null,null,null,null,null,null,"",null,null,null,null,null,"",null,null,0,false]
[null,36,{"$f":"'C. FILIACION'!C49","v":0},null,null,null,null,null,null,"",null,null,null,null,null,null,null,null,null,null,null,null,null,null,null,"",null,null,null,null,null,null,null,null,null,null,null,null,null,null,null,"",null,null,null,null,null,"",null,null,0,false]
[null,37,{"$f":"'C. FILIACION'!C50","v":0},null,null,null,null,null,null,"",null,null,null,null,null,null,null,null,null,null,null,null,null,null,null,"",null,null,null,null,null,null,null,null,null,null,null,null,null,null,null,"",null,null,null,null,null,"",null,null,0,false]
[null,38,{"$f":"'C. FILIACION'!C51","v":0},null,null,null,null,null,null,"",null,null,null,null,null,null,null,null,null,null,null,null,null,null,null,"",null,null,null,null,null,null,null,null,null,null,null,null,null,null,null,"",null,null,null,null,null,"",null,null,0,false]
[null,39,{"$f":"'C. FILIACION'!C52","v":0},null,null,null,null,null,null,"",null,null,null,null,null,null,null,null,null,null,null,null,null,null,null,"",null,null,null,null,null,null,null,null,null,null,null,null,null,null,null,"",null,null,null,null,null,"",null,null,0,false]
[null,40,{"$f":"'C. FILIACION'!C53","v":0},null,null,null,null,null,null,"",null,null,null,null,null,null,null,null,null,null,null,null,null,null,null,"",null,null,null,null,null,null,null,null,null,null,null,null,null,null,null,"",null,null,null,null,null,"",null,null,0,false]
[null,41,{"$f":"'C. FILIACION'!C54","v":0},null,null,null,null,null,null,"",null,null,null,null,null,null,null,null,null,null,null,null,null,null,null,"",null,null,null,null,null,null,null,null,null,null,null,null,null,null,null,"",null,null,null,null,null,"",null,null,0,false]
[null,42,{"$f":"'C. FILIACION'!C55","v":0},null,null,null,null,null,null,"",null,null,null,null,null,null,null,null,null,null,null,null,null,null,null,"",null,null,null,null,null,null,null,null,null,null,null,null,null,null,null,"",null,null,null,null,null,"",null,null,0,false]
[null,43,{"$f":"'C. FILIACION'!C56","v":0},null,null,null,null,null,null,"",null,null,null,null,null,null,null,null,null,null,null,null,null,null,null,"",null,null,null,null,null,null,null,null,null,null,null,null,null,null,null,"",null,null,null,null,null,"",null,null,0,false]
[null,44,{"$f":"'C. FILIACION'!C57","v":0},null,null,null,null,null,null,"",null,null,null,null,null,null,null,null,null,null,null,null,null,null,null,"",null,null,null,null,null,null,null,null,null,null,null,null,null,null,null,"",null,null,null,null,null,"",null,null,0,false]
[null,45,{"$f":"'C. FILIACION'!C58","v":0},null,null,null,null,null,null,"",null,null,null,null,null,null,null,null,null,null,null,null,null,null,null,"",null,null,null,null,null,null,null,null,null,null,null,null,null,null,null,"",null,null,null,null,null,"",null,null,0,false]
[]
[]
[]
[]
[null,null,null,null,null,null,null,null,{"$f":"CARATULA!G22","v":0},null,null,null,null,null,null,null,null,null,null,null,null,null,null,null,null,null,null,null,null,null,{"$f":"CARATULA!G24","v":0}]

{"sheet":"REG-OBS2","index":9,"n_rows":4,"n_cols":5,"rows_kept":4,"cut":false,"hidden":false,"merged":[[0,1,0,4]]}
[null,"REGISTRO DE OBSERVACIONES 2° BIMESTRE "]
[]
[null,"N° LISTA ","NOMBRE ","FECHA Y HORA ","OBSERVACIÓN "]
[null,1,0,"2019-01-30T10:27:30.240","Su comentario fue registrado"]

{"sheet":"ASIS. 3° B","index":10,"n_rows":70,"n_cols":63,"rows_kept":70,"cut":false,"hidden":false,"merged":[[52,2,52,3],[47,2,47,3],[48,2,48,3],[49,2,49,3],[50,2,50,3],[51,2,51,3],[62,4,62,14],[61,48,61,58],[62,48,62,58],[41,2,41,3],[39,2,39,3],[54,2,54,3],[55,2,55,3],[56,2,56,3],[57,2,57,3],[58,2,58,3],[53,2,53,3],[42,2,42,3],[43,2,43,3],[44,2,44,3],[45,2,45,3],[46,2,46,3],[28,2,28,3],[35,2,35,3],[36,2,36,3],[37,2,37,3],[38,2,38,3],[30,2,30,3],[31,2,31,3],[32,2,32,3],[33,2,33,3],[34,2,34,3],[12,62,13,62],[14,2,14,3],[15,2,15,3],[16,2,16,3],[40,2,40,3],[29,2,29,3],[18,2,18,3],[19,2,19,3],[20,2,20,3],[21,2,21,3],[22,2,22,3],[23,2,23,3],[24,2,24,3],[25,2,25,3],[26,2,26,3],[27,2,27,3],[17,2,17,3],[12,1,13,1],[12,2,13,3],[12,4,12,57],[8,53,8,58],[12,58,12,61],[8,59,8,61],[1,1,2,62],[3,1,3,62],[4,53,4,58],[4,59,4,61],[6,53,6,58],[6,59,6,61]]}
[]
[null,"REGISTRO DE ASISTENCIA 3⁰ BIMESTRE "]
[]
[]
[null,null,"UNIDAD EDUCATIVA ",":",{"$f":"CARATULA!G20","v":0},null,null,null,null,null,null,null,null,null,null,null,null,null,null,null,null,null,null,null,null,null,null,null,null,null,null,null,null,null,null,null,null,null,null,null,null,null,null,null,null,null,null,null,null,null,null,null,null,"INICIO DE BIMESTRE ",null,null,null,null,null,{"$f":"CARATULA!P19","v":"2019-07-17"}]
[null,null,"NIVEL ",":",{"$f":"CARATULA!G26","v":0}]
[null,null,"AÑO DE ESCOLARIDAD",":",{"$f":"CONCATENATE(CARATULA!G28,\" \",CARATULA!H28)","v":" "},null,null,null,null,null,null,null,null,null,null,null,null,null,null,null,null,null,null,null,null,null,null,null,null,null,null,null,null,null,null,null,null,null,null,null,null,null,null,null,null,null,null,null,null,null,null,null,null,"FIN DE BIMESTRE ",null,null,null,null,null,{"$f":"CARATULA!R19","v":"2019-09-28"}]
[null,null,"DIRECTORA/OR",":",{"$f":"CARATULA!G22","v":0}]
[null,null,"MAESTRA/O",":",{"$f":"CARATULA!G24","v":0},null,null,null,null,null,null,null,null,null,null,null,null,null,null,null,null,null,null,null,null,null,null,null,null,null,null,null,null,null,null,null,null,null,null,null,null,null,null,null,null,null,null,null,null,null,null,null,null,"FECHA ACTUAL ",null,null,null,null,null,{"$f":"TODAY()","v":"2019-04-16"}]
[null,null,"CAMPO ",":",{"$f":"CARATULA!G30","v":0}]
[null,null,"ÁREA",":",{"$f":"CARATULA!G32","v":0}]
[]
[null,"N","APELLIDOS Y NOMBRES ",null," 3ER BIMESTRE",null,null,null,null,null,null,null,null,null,null,null,null,null,null,null,null,null,null,null,null,null,null,null,null,null,null,null,null,null,null,null,null,null,null,null,null,null,null,null,null,null,null,null,null,null,null,null,null,null,null,null,null,null,"TOTALES ",null,null,null," DÍAS TRABAJADOS "]
[null,null,null,null,null,null,null,null,null,null,null,null,null,null,null,null,null,null,null,null,null,null,null,null,null,null,null,null,null,null,null,null,null,null,null,null,null,null,null,null,null,null,null,null,null,null,null,null,null,null,null,null,null,null,null,null,null,null,"ASISTENCIAS (A)","FALTAS (F)","RETRASOS (R)","LICENCIAS (L)"]
[null,1,{"$f":"'C. FILIACION'!C14","v":0},null,null,null,null,null,null,null,null,null,null,null,null,null,null,null,null,null,null,null,null,null,null,null,null,null,null,null,null,null,null,null,null,null,null,null,null,null,null,null,null,null,null,null,null,null,null,null,null,null,null,null,null,null,null,null,{"$f":"IF(COUNTIF(E15:BF15,\"A\")=0,\"\",COUNTIF(E15:BF15,\"A\"))","v":""},{"$f":"IF(COUNTIF(E15:BF15,\"F\")=0,\"\",COUNTIF(E15:BF15,\"F\"))","v":""},{"$f":"IF(COUNTIF(E15:BF15,\"R\")=0,\"\",COUNTIF(E15:BF15,\"R\"))","v":""},{"$f":"IF(COUNTIF(E15:BF15,\"L\")=0,\"\",COUNTIF(E15:BF15,\"L\"))","v":""},{"$f":"IF((IF(BG15=\"\",0,BG15)+IF(BI15=\"\",0,BI15))=0,\"\",(IF(BG15=\"\",0,BG15)+IF(BI15=\"\",0,BI15)))","v":""}]
[null,2,{"$f":"'C. FILIACION'!C15","v":0},null,null,null,null,null,null,null,null,null,null,null,null,null,null,null,null,null,null,null,null,null,null,null,null,null,null,null,null,null,null,null,null,null,null,null,null,null,null,null,null,null,null,null,null,null,null,null,null,null,null,null,null,null,null,null,"","","","",{"$f":"IF((IF(BG16=\"\",0,BG16)+IF(BI16=\"\",0,BI16))=0,\"\",(IF(BG16=\"\",0,BG16)+IF(BI16=\"\",0,BI16)))","v":""}]
[null,3,{"$f":"'C. FILIACION'!C16","v":0},null,null,null,null,null,null,null,null,null,null,null,null,null,null,null,null,null,null,null,null,null,null,null,null,null,null,null,null,null,null,null,null,null,null,null,null,null,null,null,null,null,null,null,null,null,null,null,null,null,null,null,null,null,null,null,"","","","",""]
[null,4,{"$f":"'C. FILIACION'!C17","v":0},null,null,null,null,null,null,null,null,null,null,null,null,null,null,null,null,null,null,null,null,null,null,null,null,null,null,null,null,null,null,null,null,null,null,null,null,null,null,null,null,null,null,null,null,null,null,null,null,null,null,null,null,null,null,null,"","","","",""]
[null,5,{"$f":"'C. FILIACION'!C18","v":0},null,null,null,null,null,null,null,null,null,null,null,null,null,null,null,null,null,null,null,null,null,null,null,null,null,null,null,null,null,null,null,null,null,null,null,null,null,null,null,null,null,null,null,null,null,null,null,null,null,null,null,null,null,null,null,"","","","",""]
[null,6,{"$f":"'C. FILIACION'!C19","v":0},null,null,null,null,null,null,null,null,null,null,null,null,null,null,null,null,null,null,null,null,null,null,null,null,null,null,null,null,null,null,null,null,null,null,null,null,null,null,null,null,null,null,null,null,null,null,null,null,null,null,null,null,null,null,null,"","","","",""]
[null,7,{"$f":"'C. FILIACION'!C20","v":0},null,null,null,null,null,null,null,null,null,null,null,null,null,null,null,null,null,null,null,null,null,null,null,null,null,null,null,null,null,null,null,null,null,null,null,null,null,null,null,null,null,null,null,null,null,null,null,null,null,null,null,null,null,null,null,"","","","",""]
[null,8,{"$f":"'C. FILIACION'!C21","v":0},null,null,null,null,null,null,null,null,null,null,null,null,null,null,null,null,null,null,null,null,null,null,null,null,null,null,null,null,null,null,null,null,null,null,null,null,null,null,null,null,null,null,null,null,null,null,null,null,null,null,null,null,null,null,null,"","","","",""]
[null,9,{"$f":"'C. FILIACION'!C22","v":0},null,null,null,null,null,null,null,null,null,null,null,null,null,null,null,null,null,null,null,null,null,null,null,null,null,null,null,null,null,null,null,null,null,null,null,null,null,null,null,null,null,null,null,null,null,null,null,null,null,null,null,null,null,null,null,"","","","",""]
[null,10,{"$f":"'C. FILIACION'!C23","v":0},null,null,null,null,null,null,null,null,null,null,null,null,null,null,null,null,null,null,null,null,null,null,null,null,null,null,null,null,null,null,null,null,null,null,null,null,null,null,null,null,null,null,null,null,null,null,null,null,null,null,null,null,null,null,null,"","","","",""]
[null,11,{"$f":"'C. FILIACION'!C24","v":0},null,null,null,null,null,null,null,null,null,null,null,null,null,null,null,null,null,null,null,null,null,null,null,null,null,null,null,null,null,null,null,null,null,null,null,null,null,null,null,null,null,null,null,null,null,null,null,null,null,null,null,null,null,null,null,"","","","",""]
[null,12,{"$f":"'C. FILIACION'!C25","v":0},null,null,null,null,null,null,null,null,null,null,null,null,null,null,null,null,null,null,null,null,null,null,null,null,null,null,null,null,null,null,null,null,null,null,null,null,null,null,null,null,null,null,null,null,null,null,null,null,null,null,null,null,null,null,null,"","","","",""]
[null,13,{"$f":"'C. FILIACION'!C26","v":0},null,null,null,null,null,null,null,null,null,null,null,null,null,null,null,null,null,null,null,null,null,null,null,null,null,null,null,null,null,null,null,null,null,null,null,null,null,null,null,null,null,null,null,null,null,null,null,null,null,null,null,null,null,null,null,"","","","",""]
[null,14,{"$f":"'C. FILIACION'!C27","v":0},null,null,null,null,null,null,null,null,null,null,null,null,null,null,null,null,null,null,null,null,null,null,null,null,null,null,null,null,null,null,null,null,null,null,null,null,null,null,null,null,null,null,null,null,null,null,null,null,null,null,null,null,null,null,null,"","","","",""]
[null,15,{"$f":"'C. FILIACION'!C28","v":0},null,null,null,null,null,null,null,null,null,null,null,null,null,null,null,null,null,null,null,null,null,null,null,null,null,null,null,null,null,null,null,null,null,null,null,null,null,null,null,null,null,null,null,null,null,null,null,null,null,null,null,null,null,null,null,"","","","",""]
[null,16,{"$f":"'C. FILIACION'!C29","v":0},null,null,null,null,null,null,null,null,null,null,null,null,null,null,null,null,null,null,null,null,null,null,null,null,null,null,null,null,null,null,null,null,null,null,null,null,null,null,null,null,null,null,null,null,null,null,null,null,null,null,null,null,null,null,null,"","","","",""]
[null,17,{"$f":"'C. FILIACION'!C30","v":0},null,null,null,null,null,null,null,null,null,null,null,null,null,null,null,null,null,null,null,null,null,null,null,null,null,null,null,null,null,null,null,null,null,null,null,null,null,null,null,null,null,null,null,null,null,null,null,null,null,null,null,null,null,null,null,"","","","",""]
[null,18,{"$f":"'C. FILIACION'!C31","v":0},null,null,null,null,null,null,null,null,null,null,null,null,null,null,null,null,null,null,null,null,null,null,null,null,null,null,null,null,null,null,null,null,null,null,null,null,null,null,null,null,null,null,null,null,null,null,null,null,null,null,null,null,null,null,null,"","","","",""]
[null,19,{"$f":"'C. FILIACION'!C32","v":0},null,null,null,null,null,null,null,null,null,null,null,null,null,null,null,null,null,null,null,null,null,null,null,null,null,null,null,null,null,null,null,null,null,null,null,null,null,null,null,null,null,null,null,null,null,null,null,null,null,null,null,null,null,null,null,"","","","",""]
[null,20,{"$f":"'C. FILIACION'!C33","v":0},null,null,null,null,null,null,null,null,null,null,null,null,null,null,null,null,null,null,null,null,null,null,null,null,null,null,null,null,null,null,null,null,null,null,null,null,null,null,null,null,null,null,null,null,null,null,null,null,null,null,null,null,null,null,null,"","","","",""]
[null,21,{"$f":"'C. FILIACION'!C34","v":0},null,null,null,null,null,null,null,null,null,null,null,null,null,null,null,null,null,null,null,null,null,null,null,null,null,null,null,null,null,null,null,null,null,null,null,null,null,null,null,null,null,null,null,null,null,null,null,null,null,null,null,null,null,null,null,"","","","",""]
[null,22,{"$f":"'C. FILIACION'!C35","v":0},null,null,null,null,null,null,null,null,null,null,null,null,null,null,null,null,null,null,null,null,null,null,null,null,null,null,null,null,null,null,null,null,null,null,null,null,null,null,null,null,null,null,null,null,null,null,null,null,null,null,null,null,null,null,null,"","","","",""]
[null,23,{"$f":"'C. FILIACION'!C36","v":0},null,null,null,null,null,null,null,null,null,null,null,null,null,null,null,null,null,null,null,null,null,null,null,null,null,null,null,null,null,null,null,null,null,null,null,null,null,null,null,null,null,null,null,null,null,null,null,null,null,null,null,null,null,null,null,"","","","",""]
[null,24,{"$f":"'C. FILIACION'!C37","v":0},null,null,null,null,null,null,null,null,null,null,null,null,null,null,null,null,null,null,null,null,null,null,null,null,null,null,null,null,null,null,null,null,null,null,null,null,null,null,null,null,null,null,null,null,null,null,null,null,null,null,null,null,null,null,null,"","","","",""]
[null,25,{"$f":"'C. FILIACION'!C38","v":0},null,null,null,null,null,null,null,null,null,null,null,null,null,null,null,null,null,null,null,null,null,null,null,null,null,null,null,null,null,null,null,null,null,null,null,null,null,null,null,null,null,null,null,null,null,null,null,null,null,null,null,null,null,null,null,"","","","",""]
[null,26,{"$f":"'C. FILIACION'!C39","v":0},null,null,null,null,null,null,null,null,null,null,null,null,null,null,null,null,null,null,null,null,null,null,null,null,null,null,null,null,null,null,null,null,null,null,null,null,null,null,null,null,null,null,null,null,null,null,null,null,null,null,null,null,null,null,null,"","","","",""]
[null,27,{"$f":"'C. FILIACION'!C40","v":0},null,null,null,null,null,null,null,null,null,null,null,null,null,null,null,null,null,null,null,null,null,null,null,null,null,null,null,null,null,null,null,null,null,null,null,null,null,null,null,null,null,null,null,null,null,null,null,null,null,null,null,null,null,null,null,"","","","",""]
[null,28,{"$f":"'C. FILIACION'!C41","v":0},null,null,null,null,null,null,null,null,null,null,null,null,null,null,null,null,null,null,null,null,null,null,null,null,null,null,null,null,null,null,null,null,null,null,null,null,null,null,null,null,null,null,null,null,null,null,null,null,null,null,null,null,null,null,null,"","","","",""]
[null,29,{"$f":"'C. FILIACION'!C42","v":0},null,null,null,null,null,null,null,null,null,null,null,null,null,null,null,null,null,null,null,null,null,null,null,null,null,null,null,null,null,null,null,null,null,null,null,null,null,null,null,null,null,null,null,null,null,null,null,null,null,null,null,null,null,null,null,"","","","",""]
[null,30,{"$f":"'C. FILIACION'!C43","v":0},null,null,null,null,null,null,null,null,null,null,null,null,null,null,null,null,null,null,null,null,null,null,null,null,null,null,null,null,null,null,null,null,null,null,null,null,null,null,null,null,null,null,null,null,null,null,null,null,null,null,null,null,null,null,null,"","","","",""]
[null,31,{"$f":"'C. FILIACION'!C44","v":0},null,null,null,null,null,null,null,null,null,null,null,null,null,null,null,null,null,null,null,null,null,null,null,null,null,null,null,null,null,null,null,null,null,null,null,null,null,null,null,null,null,null,null,null,null,null,null,null,null,null,null,null,null,null,null,"","","","",""]
[null,32,{"$f":"'C. FILIACION'!C45","v":0},null,null,null,null,null,null,null,null,null,null,null,null,null,null,null,null,null,null,null,null,null,null,null,null,null,null,null,null,null,null,null,null,null,null,null,null,null,null,null,null,null,null,null,null,null,null,null,null,null,null,null,null,null,null,null,"","","","",""]
[null,33,{"$f":"'C. FILIACION'!C46","v":0},null,null,null,null,null,null,null,null,null,null,null,null,null,null,null,null,null,null,null,null,null,null,null,null,null,null,null,null,null,null,null,null,null,null,null,null,null,null,null,null,null,null,null,null,null,null,null,null,null,null,null,null,null,null,null,"","","","",""]
[null,34,{"$f":"'C. FILIACION'!C47","v":0},null,null,null,null,null,null,null,null,null,null,null,null,null,null,null,null,null,null,null,null,null,null,null,null,null,null,null,null,null,null,null,null,null,null,null,null,null,null,null,null,null,null,null,null,null,null,null,null,null,null,null,null,null,null,null,"","","","",""]
[null,35,{"$f":"'C. FILIACION'!C48","v":0},null,null,null,null,null,null,null,null,null,null,null,null,null,null,null,null,null,null,null,null,null,null,null,null,null,null,null,null,null,null,null,null,null,null,null,null,null,null,null,null,null,null,null,null,null,null,null,null,null,null,null,null,null,null,null,"","","","",""]
[null,36,{"$f":"'C. FILIACION'!C49","v":0},null,null,null,null,null,null,null,null,null,null,null,null,null,null,null,null,null,null,null,null,null,null,null,null,null,null,null,null,null,null,null,null,null,null,null,null,null,null,null,null,null,null,null,null,null,null,null,null,null,null,null,null,null,null,null,"","","","",""]
[null,37,{"$f":"'C. FILIACION'!C50","v":0},null,null,null,null,null,null,null,null,null,null,null,null,null,null,null,null,null,null,null,null,null,null,null,null,null,null,null,null,null,null,null,null,null,null,null,null,null,null,null,null,null,null,null,null,null,null,null,null,null,null,null,null,null,null,null,"","","","",""]
[null,38,{"$f":"'C. FILIACION'!C51","v":0},null,null,null,null,null,null,null,null,null,null,null,null,null,null,null,null,null,null,null,null,null,null,null,null,null,null,null,null,null,null,null,null,null,null,null,null,null,null,null,null,null,null,null,null,null,null,null,null,null,null,null,null,null,null,null,"","","","",""]
[null,39,{"$f":"'C. FILIACION'!C52","v":0},null,null,null,null,null,null,null,null,null,null,null,null,null,null,null,null,null,null,null,null,null,null,null,null,null,null,null,null,null,null,null,null,null,null,null,null,null,null,null,null,null,null,null,null,null,null,null,null,null,null,null,null,null,null,null,"","","","",""]
[null,40,{"$f":"'C. FILIACION'!C53","v":0},null,null,null,null,null,null,null,null,null,null,null,null,null,null,null,null,null,null,null,null,null,null,null,null,null,null,null,null,null,null,null,null,null,null,null,null,null,null,null,null,null,null,null,null,null,null,null,null,null,null,null,null,null,null,null,"","","","",""]
[null,41,{"$f":"'C. FILIACION'!C54","v":0},null,null,null,null,null,null,null,null,null,null,null,null,null,null,null,null,null,null,null,null,null,null,null,null,null,null,null,null,null,null,null,null,null,null,null,null,null,null,null,null,null,null,null,null,null,null,null,null,null,null,null,null,null,null,null,"","","","",""]
[null,42,{"$f":"'C. FILIACION'!C55","v":0},null,null,null,null,null,null,null,null,null,null,null,null,null,null,null,null,null,null,null,null,null,null,null,null,null,null,null,null,null,null,null,null,null,null,null,null,null,null,null,null,null,null,null,null,null,null,null,null,null,null,null,null,null,null,null,"","","","",""]
[null,43,{"$f":"'C. FILIACION'!C56","v":0},null,null,null,null,null,null,null,null,null,null,null,null,null,null,null,null,null,null,null,null,null,null,null,null,null,null,null,null,null,null,null,null,null,null,null,null,null,null,null,null,null,null,null,null,null,null,null,null,null,null,null,null,null,null,null,"","","","",""]
[null,44,{"$f":"'C. FILIACION'!C57","v":0},null,null,null,null,null,null,null,null,null,null,null,null,null,null,null,null,null,null,null,null,null,null,null,null,null,null,null,null,null,null,null,null,null,null,null,null,null,null,null,null,null,null,null,null,null,null,null,null,null,null,null,null,null,null,null,"","","","",""]
[null,45,{"$f":"'C. FILIACION'!C58","v":0},null,null,null,null,null,null,null,null,null,null,null,null,null,null,null,null,null,null,null,null,null,null,null,null,null,null,null,null,null,null,null,null,null,null,null,null,null,null,null,null,null,null,null,null,null,null,null,null,null,null,null,null,null,null,null,"","","","",""]
[]
[]
[]
[null,null,null,null,{"$f":"CARATULA!G22","v":0},null,null,null,null,null,null,null,null,null,null,null,null,null,null,null,null,null,null,null,null,null,null,null,null,null,null,null,null,null,null,null,null,null,null,null,null,null,null,null,null,null,null,null,{"$f":"CARATULA!G24","v":0}]
[]
[]
[]
[null,null,"INSCRITO "]
[null,null,"NO INCORPORADO"]
[null,null,"RETIRO O ABANDONO"]
[null,null,"EFECTIVO"]

{"sheet":"VAL. 3° B","index":11,"n_rows":68,"n_cols":55,"rows_kept":68,"cut":false,"hidden":false,"merged":[[64,48,64,49],[16,48,17,48],[16,49,17,49],[7,29,7,33],[7,35,7,41],[7,42,7,43],[65,48,65,49],[66,8,66,19],[66,30,66,42],[67,8,67,19],[67,30,67,42],[60,2,60,3],[61,2,61,3],[52,2,52,3],[53,2,53,3],[54,2,54,3],[55,2,55,3],[56,2,56,3],[62,2,62,3],[51,2,51,3],[40,2,40,3],[41,2,41,3],[42,2,42,3],[43,2,43,3],[44,2,44,3],[45,2,45,3],[46,2,46,3],[47,2,47,3],[48,2,48,3],[49,2,49,3],[50,2,50,3],[57,2,57,3],[58,2,58,3],[59,2,59,3],[26,2,26,3],[39,2,39,3],[28,2,28,3],[29,2,29,3],[30,2,30,3],[31,2,31,3],[32,2,32,3],[33,2,33,3],[34,2,34,3],[35,2,35,3],[36,2,36,3],[37,2,37,3],[38,2,38,3],[27,2,27,3],[19,2,19,3],[20,2,20,3],[16,42,16,46],[16,47,17,47],[25,2,25,3],[22,2,22,3],[23,2,23,3],[24,2,24,3],[21,2,21,3],[18,2,18,3],[13,1,16,2],[16,25,17,25],[16,31,16,35],[16,36,16,40],[16,41,17,41],[13,51,17,51],[14,3,14,47],[14,48,14,49],[15,3,15,9],[15,10,15,25],[15,26,15,41],[15,42,15,47],[16,4,16,8],[16,9,17,9],[13,50,17,50],[16,26,16,30],[13,3,13,47],[13,48,13,49],[16,10,16,14],[16,15,16,19],[16,20,16,24],[2,1,3,51],[5,29,5,33],[5,35,5,41],[5,42,5,43],[5,44,11,49],[5,50,6,51],[6,35,6,41],[6,42,6,43],[7,50,11,51],[9,29,9,33]]}
[]
[]
[null,"REGISTRO DE VALORACIÓN 3⁰ BIMESTRE"]
[]
[]
[null,null,"UNIDAD EDUCATIVA ",":",null,{"$f":"CARATULA!G20","v":0},null,null,null,null,null,null,null,null,null,null,null,null,null,null,null,"INICIO DE BIMESTRE ",null,null,null,null,null,null,":",{"$f":"CARATULA!P19","v":"2019-07-17"},null,null,null,null,null,null,null,null,null,null,null,null,null,null,null,null,null,null,null,null,"DÍAS RESTANTES PARA FIN DE BIMESTRE "]
[null,null,"NIVEL ",":",null,{"$f":"CARATULA!G26","v":0},null,null,null,null,null,null,null,null,null,null,null,null,null,null,null,null,null,null,null,null,null,null,null,null,null,null,null,null,null,"N° TOTAL APROBADOS",null,null,null,null,null,null,{"$f":"COUNTIF(AY19:AY63,\">=50,500\")","v":0}]
[null,null,"AÑO DE ESCOLARIDAD",":",null,{"$f":"CONCATENATE(CARATULA!G28,\" \",CARATULA!H28)","v":" "},null,null,null,null,null,null,null,null,null,null,null,null,null,null,null,"FIN DE BIMESTRE ",null,null,null,null,null,null,":",{"$f":"CARATULA!R19","v":"2019-09-28"},null,null,null,null,null,"N° TOTAL REPROBADOS",null,null,null,null,null,null,{"$f":"COUNTIFS(AY19:AY63,\">=1\",AY19:AY63,\"<=50,499\")","v":0},null,null,null,null,null,null,null,{"$f":"AD8-AD10","v":165}]
[null,null,"DIRECTORA/OR",":",null,{"$f":"CARATULA!G22","v":0},null,null,null,null,null,null,null,null,null,null,null,null,null,null,null,null,null,null,null,null,null,null,null,null,null,null,null,null,null,null,null,null,null,null,null,null,null,null,null,null,null,null,null,null,null,null,null,"N° Lista","NOMBRE"]
[null,null,"MAESTRA/O",":",null,{"$f":"CARATULA!G24","v":0},null,null,null,null,null,null,null,null,null,null,null,null,null,null,null,"FECHA ACTUAL",null,null,null,null,null,null,":",{"$f":"TODAY()","v":"2019-04-16"},null,null,null,null,null,null,null,null,null,null,null,null,null,null,null,null,null,null,null,null,null,null,null,1,{"$f":"VLOOKUP(BB10,'C. FILIACION'!B14:C58, 2,FALSE)","v":0}]
[{"$f":"COUNTIF(AY19:AY63,¨>=50)","v":0},null,"CAMPO ",":",null,{"$f":"CARATULA!G30","v":0}]
[null,null,"ÁREA",":",null,{"$f":"CARATULA!G32","v":0},null,null,null,null,null,null,null,null,null,null,null,null,null,null,null,null,null,null,null,null,null,null,null,null,null,null,null,null,null,null,null,null,null,null,null,null,null,null,null,null,null,null,null,null,null,null,null,null,"FECHA Y HORA "]
[]
[null,null,null,"EVALUACIÓN MAESTRA(O)",null,null,null,null,null,null,null,null,null,null,null,null,null,null,null,null,null,null,null,null,null,null,null,null,null,null,null,null,null,null,null,null,null,null,null,null,null,null,null,null,null,null,null,null,"AUTO EVALUACIÓN ESTUDIANTE ",null,"TOTAL BIMESTRAL","SITUACIÓN BIMESTRAL",null,null,{"$f":"NOW()","v":"2019-04-16T15:48:02.590"}]
[null,null,null,"DIMENSIONES ",null,null,null,null,null,null,null,null,null,null,null,null,null,null,null,null,null,null,null,null,null,null,null,null,null,null,null,null,null,null,null,null,null,null,null,null,null,null,null,null,null,null,null,null,"DIMENSIONES "]
[null,null,null,"SER -10",null,null,null,null,null,null,"SABER - 35",null,null,null,null,null,null,null,null,null,null,null,null,null,null,null,"HACER - 35",null,null,null,null,null,null,null,null,null,null,null,null,null,null,null,"DECIDIR - 10 ",null,null,null,null,null,"SER - 5","DECIDIR - 5",null,null,null,null,"OBSERVACIÓN "]
[null,null,null,"CRITERIOS DE EVALUACIÓN  ",null,null,null,null,null,"VALORACIÓN 10 PUN.",null,null,null,null,null,null,null,null,null,null,null,null,null,null,null,"VALORACIÓN 35 PUN.",null,null,null,null,null,null,null,null,null,null,null,null,null,null,null,"VALORACIÓN 35 PUN.",null,null,null,null,null,"VALORACIÓN 10 PUN."]
[null,"N ","NOMBRES Y APELLIDOS ","ACTIVIDADES"]
[null,1,{"$f":"'C. FILIACION'!C14","v":0},null,null,null,null,null,null,{"$f":"IFERROR(ROUND(AVERAGE(E19:I19),0),\"\")","v":""},null,null,null,null,null,null,null,null,null,null,null,null,null,null,null,{"$f":"IFERROR(ROUND(AVERAGE(K19:Y19),0),\"\")","v":""},null,null,null,null,null,null,null,null,null,null,null,null,null,null,null,{"$f":"IFERROR(ROUND(AVERAGE(AA19:AO19),0),\"\")","v":""},null,null,null,null,null,{"$f":"IFERROR(ROUND(AVERAGE(AQ19:AU19),0),\"\")","v":""},null,null,{"$f":"IFERROR((SUM(J19,Z19,AP19,AV19:AX19)),\"\")","v":0},{"$f":"IF(AY19=\"\",\"\",(IF(AND(AY19>=1,AY19<=50.499),\"REPROBADO\",IF(AND(AY19>=50.5,AY19<=100),\"APROBADO\"))))","v":false}]
[null,2,{"$f":"'C. FILIACION'!C15","v":0},null,null,null,null,null,null,{"$f":"IFERROR(ROUND(AVERAGE(E20:I20),0),\"\")","v":""},null,null,null,null,null,null,null,null,null,null,null,null,null,null,null,{"$f":"IFERROR(ROUND(AVERAGE(K20:Y20),0),\"\")","v":""},null,null,null,null,null,null,null,null,null,null,null,null,null,null,null,{"$f":"IFERROR(ROUND(AVERAGE(AA20:AO20),0),\"\")","v":""},null,null,null,null,null,{"$f":"IFERROR(ROUND(AVERAGE(AQ20:AU20),0),\"\")","v":""},null,null,{"$f":"IFERROR((SUM(J20,Z20,AP20,AV20:AX20)),\"\")","v":0},{"$f":"IF(AY20=\"\",\"\",(IF(AND(AY20>=1,AY20<=50.499),\"REPROBADO\",IF(AND(AY20>=50.5,AY20<=100),\"APROBADO\"))))","v":false}]
[null,3,{"$f":"'C. FILIACION'!C16","v":0},null,null,null,null,null,null,"",null,null,null,null,null,null,null,null,null,null,null,null,null,null,null,"",null,null,null,null,null,null,null,null,null,null,null,null,null,null,null,"",null,null,null,null,null,"",null,null,0,false]
[null,4,{"$f":"'C. FILIACION'!C17","v":0},null,null,null,null,null,null,"",null,null,null,null,null,null,null,null,null,null,null,null,null,null,null,"",null,null,null,null,null,null,null,null,null,null,null,null,null,null,null,"",null,null,null,null,null,"",null,null,0,false]
[null,5,{"$f":"'C. FILIACION'!C18","v":0},null,null,null,null,null,null,"",null,null,null,null,null,null,null,null,null,null,null,null,null,null,null,"",null,null,null,null,null,null,null,null,null,null,null,null,null,null,null,"",null,null,null,null,null,"",null,null,0,false]
[null,6,{"$f":"'C. FILIACION'!C19","v":0},null,null,null,null,null,null,"",null,null,null,null,null,null,null,null,null,null,null,null,null,null,null,"",null,null,null,null,null,null,null,null,null,null,null,null,null,null,null,"",null,null,null,null,null,"",null,null,0,false]
[null,7,{"$f":"'C. FILIACION'!C20","v":0},null,null,null,null,null,null,"",null,null,null,null,null,null,null,null,null,null,null,null,null,null,null,"",null,null,null,null,null,null,null,null,null,null,null,null,null,null,null,"",null,null,null,null,null,"",null,null,0,false]
[null,8,{"$f":"'C. FILIACION'!C21","v":0},null,null,null,null,null,null,"",null,null,null,null,null,null,null,null,null,null,null,null,null,null,null,"",null,null,null,null,null,null,null,null,null,null,null,null,null,null,null,"",null,null,null,null,null,"",null,null,0,false]
[null,9,{"$f":"'C. FILIACION'!C22","v":0},null,null,null,null,null,null,"",null,null,null,null,null,null,null,null,null,null,null,null,null,null,null,"",null,null,null,null,null,null,null,null,null,null,null,null,null,null,null,"",null,null,null,null,null,"",null,null,0,false]
[null,10,{"$f":"'C. FILIACION'!C23","v":0},null,null,null,null,null,null,"",null,null,null,null,null,null,null,null,null,null,null,null,null,null,null,"",null,null,null,null,null,null,null,null,null,null,null,null,null,null,null,"",null,null,null,null,null,"",null,null,0,false]
[null,11,{"$f":"'C. FILIACION'!C24","v":0},null,null,null,null,null,null,"",null,null,null,null,null,null,null,null,null,null,null,null,null,null,null,"",null,null,null,null,null,null,null,null,null,null,null,null,null,null,null,"",null,null,null,null,null,"",null,null,0,false]
[null,12,{"$f":"'C. FILIACION'!C25","v":0},null,null,null,null,null,null,"",null,null,null,null,null,null,null,null,null,null,null,null,null,null,null,"",null,null,null,null,null,null,null,null,null,null,null,null,null,null,null,"",null,null,null,null,null,"",null,null,0,false]
[null,13,{"$f":"'C. FILIACION'!C26","v":0},null,null,null,null,null,null,"",null,null,null,null,null,null,null,null,null,null,null,null,null,null,null,"",null,null,null,null,null,null,null,null,null,null,null,null,null,null,null,"",null,null,null,null,null,"",null,null,0,false]
[null,14,{"$f":"'C. FILIACION'!C27","v":0},null,null,null,null,null,null,"",null,null,null,null,null,null,null,null,null,null,null,null,null,null,null,"",null,null,null,null,null,null,null,null,null,null,null,null,null,null,null,"",null,null,null,null,null,"",null,null,0,false]
[null,15,{"$f":"'C. FILIACION'!C28","v":0},null,null,null,null,null,null,"",null,null,null,null,null,null,null,null,null,null,null,null,null,null,null,"",null,null,null,null,null,null,null,null,null,null,null,null,null,null,null,"",null,null,null,null,null,"",null,null,0,false]
[null,16,{"$f":"'C. FILIACION'!C29","v":0},null,null,null,null,null,null,"",null,null,null,null,null,null,null,null,null,null,null,null,null,null,null,"",null,null,null,null,null,null,null,null,null,null,null,null,null,null,null,"",null,null,null,null,null,"",null,null,0,false]
[null,17,{"$f":"'C. FILIACION'!C30","v":0},null,null,null,null,null,null,"",null,null,null,null,null,null,null,null,null,null,null,null,null,null,null,"",null,null,null,null,null,null,null,null,null,null,null,null,null,null,null,"",null,null,null,null,null,"",null,null,0,false]
[null,18,{"$f":"'C. FILIACION'!C31","v":0},null,null,null,null,null,null,"",null,null,null,null,null,null,null,null,null,null,null,null,null,null,null,"",null,null,null,null,null,null,null,null,null,null,null,null,null,null,null,"",null,null,null,null,null,"",null,null,0,false]
[null,19,{"$f":"'C. FILIACION'!C32","v":0},null,null,null,null,null,null,"",null,null,null,null,null,null,null,null,null,null,null,null,null,null,null,"",null,null,null,null,null,null,null,null,null,null,null,null,null,null,null,"",null,null,null,null,null,"",null,null,0,false]
[null,20,{"$f":"'C. FILIACION'!C33","v":0},null,null,null,null,null,null,"",null,null,null,null,null,null,null,null,null,null,null,null,null,null,null,"",null,null,null,null,null,null,null,null,null,null,null,null,null,null,null,"",null,null,null,null,null,"",null,null,0,false]
[null,21,{"$f":"'C. FILIACION'!C34","v":0},null,null,null,null,null,null,"",null,null,null,null,null,null,null,null,null,null,null,null,null,null,null,"",null,null,null,null,null,null,null,null,null,null,null,null,null,null,null,"",null,null,null,null,null,"",null,null,0,false]
[null,22,{"$f":"'C. FILIACION'!C35","v":0},null,null,null,null,null,null,"",null,null,null,null,null,null,null,null,null,null,null,null,null,null,null,"",null,null,null,null,null,null,null,null,null,null,null,null,null,null,null,"",null,null,null,null,null,"",null,null,0,false]
[null,23,{"$f":"'C. FILIACION'!C36","v":0},null,null,null,null,null,null,"",null,null,null,null,null,null,null,null,null,null,null,null,null,null,null,"",null,null,null,null,null,null,null,null,null,null,null,null,null,null,null,"",null,null,null,null,null,"",null,null,0,false]
[null,24,{"$f":"'C. FILIACION'!C37","v":0},null,null,null,null,null,null,"",null,null,null,null,null,null,null,null,null,null,null,null,null,null,null,"",null,null,null,null,null,null,null,null,null,null,null,null,null,null,null,"",null,null,null,null,null,"",null,null,0,false]
[null,25,{"$f":"'C. FILIACION'!C38","v":0},null,null,null,null,null,null,"",null,null,null,null,null,null,null,null,null,null,null,null,null,null,null,"",null,null,null,null,null,null,null,null,null,null,null,null,null,null,null,"",null,null,null,null,null,"",null,null,0,false]
[null,26,{"$f":"'C. FILIACION'!C39","v":0},null,null,null,null,null,null,"",null,null,null,null,null,null,null,null,null,null,null,null,null,null,null,"",null,null,null,null,null,null,null,null,null,null,null,null,null,null,null,"",null,null,null,null,null,"",null,null,0,false]
[null,27,{"$f":"'C. FILIACION'!C40","v":0},null,null,null,null,null,null,"",null,null,null,null,null,null,null,null,null,null,null,null,null,null,null,"",null,null,null,null,null,null,null,null,null,null,null,null,null,null,null,"",null,null,null,null,null,"",null,null,0,false]
[null,28,{"$f":"'C. FILIACION'!C41","v":0},null,null,null,null,null,null,"",null,null,null,null,null,null,null,null,null,null,null,null,null,null,null,"",null,null,null,null,null,null,null,null,null,null,null,null,null,null,null,"",null,null,null,null,null,"",null,null,0,false]
[null,29,{"$f":"'C. FILIACION'!C42","v":0},null,null,null,null,null,null,"",null,null,null,null,null,null,null,null,null,null,null,null,null,null,null,"",null,null,null,null,null,null,null,null,null,null,null,null,null,null,null,"",null,null,null,null,null,"",null,null,0,false]
[null,30,{"$f":"'C. FILIACION'!C43","v":0},null,null,null,null,null,null,"",null,null,null,null,null,null,null,null,null,null,null,null,null,null,null,"",null,null,null,null,null,null,null,null,null,null,null,null,null,null,null,"",null,null,null,null,null,"",null,null,0,false]
[null,31,{"$f":"'C. FILIACION'!C44","v":0},null,null,null,null,null,null,"",null,null,null,null,null,null,null,null,null,null,null,null,null,null,null,"",null,null,null,null,null,null,null,null,null,null,null,null,null,null,null,"",null,null,null,null,null,"",null,null,0,false]
[null,32,{"$f":"'C. FILIACION'!C45","v":0},null,null,null,null,null,null,"",null,null,null,null,null,null,null,null,null,null,null,null,null,null,null,"",null,null,null,null,null,null,null,null,null,null,null,null,null,null,null,"",null,null,null,null,null,"",null,null,0,false]
[null,33,{"$f":"'C. FILIACION'!C46","v":0},null,null,null,null,null,null,"",null,null,null,null,null,null,null,null,null,null,null,null,null,null,null,"",null,null,null,null,null,null,null,null,null,null,null,null,null,null,null,"",null,null,null,null,null,"",null,null,0,false]
[null,34,{"$f":"'C. FILIACION'!C47","v":0},null,null,null,null,null,null,"",null,null,null,null,null,null,null,null,null,null,null,null,null,null,null,"",null,null,null,null,null,null,null,null,null,null,null,null,null,null,null,"",null,null,null,null,null,"",null,null,0,false]
[null,35,{"$f":"'C. FILIACION'!C48","v":0},null,null,null,null,null,null,"",null,null,null,null,null,null,null,null,null,null,null,null,null,null,null,"",null,null,null,null,null,null,null,null,null,null,null,null,null,null,null,"",null,null,null,null,null,"",null,null,0,false]
[null,36,{"$f":"'C. FILIACION'!C49","v":0},null,null,null,null,null,null,"",null,null,null,null,null,null,null,null,null,null,null,null,null,null,null,"",null,null,null,null,null,null,null,null,null,null,null,null,null,null,null,"",null,null,null,null,null,"",null,null,0,false]
[null,37,{"$f":"'C. FILIACION'!C50","v":0},null,null,null,null,null,null,"",null,null,null,null,null,null,null,null,null,null,null,null,null,null,null,"",null,null,null,null,null,null,null,null,null,null,null,null,null,null,null,"",null,null,null,null,null,"",null,null,0,false]
[null,38,{"$f":"'C. FILIACION'!C51","v":0},null,null,null,null,null,null,"",null,null,null,null,null,null,null,null,null,null,null,null,null,null,null,"",null,null,null,null,null,null,null,null,null,null,null,null,null,null,null,"",null,null,null,null,null,"",null,null,0,false]
[null,39,{"$f":"'C. FILIACION'!C52","v":0},null,null,null,null,null,null,"",null,null,null,null,null,null,null,null,null,null,null,null,null,null,null,"",null,null,null,null,null,null,null,null,null,null,null,null,null,null,null,"",null,null,null,null,null,"",null,null,0,false]
[null,40,{"$f":"'C. FILIACION'!C53","v":0},null,null,null,null,null,null,"",null,null,null,null,null,null,null,null,null,null,null,null,null,null,null,"",null,null,null,null,null,null,null,null,null,null,null,null,null,null,null,"",null,null,null,null,null,"",null,null,0,false]
[null,41,{"$f":"'C. FILIACION'!C54","v":0},null,null,null,null,null,null,"",null,null,null,null,null,null,null,null,null,null,null,null,null,null,null,"",null,null,null,null,null,null,null,null,null,null,null,null,null,null,null,"",null,null,null,null,null,"",null,null,0,false]
[null,42,{"$f":"'C. FILIACION'!C55","v":0},null,null,null,null,null,null,"",null,null,null,null,null,null,null,null,null,null,null,null,null,null,null,"",null,null,null,null,null,null,null,null,null,null,null,null,null,null,null,"",null,null,null,null,null,"",null,null,0,false]
[null,43,{"$f":"'C. FILIACION'!C56","v":0},null,null,null,null,null,null,"",null,null,null,null,null,null,null,null,null,null,null,null,null,null,null,"",null,null,null,null,null,null,null,null,null,null,null,null,null,null,null,"",null,null,null,null,null,"",null,null,0,false]
[null,44,{"$f":"'C. FILIACION'!C57","v":0},null,null,null,null,null,null,"",null,null,null,null,null,null,null,null,null,null,null,null,null,null,null,"",null,null,null,null,null,null,null,null,null,null,null,null,null,null,null,"",null,null,null,null,null,"",null,null,0,false]
[null,45,{"$f":"'C. FILIACION'!C58","v":0},null,null,null,null,null,null,"",null,null,null,null,null,null,null,null,null,null,null,null,null,null,null,"",null,null,null,null,null,null,null,null,null,null,null,null,null,null,null,"",null,null,null,null,null,"",null,null,0,false]
[]
[]
[]
[]
[null,null,null,null,null,null,null,null,{"$f":"CARATULA!G22","v":0},null,null,null,null,null,null,null,null,null,null,null,null,null,null,null,null,null,null,null,null,null,{"$f":"CARATULA!G24","v":0}]

{"sheet":"REG-OBS3","index":12,"n_rows":5,"n_cols":5,"rows_kept":5,"cut":false,"hidden":false,"merged":[[0,1,0,4]]}
[null,"REGISTRO DE OBSERVACIONES 3° BIMESTRE"]
[]
[null,"N° LISTA ","NOMBRE ","FECHA Y HORA ","OBSERVACIÓN "]
[null,1,0,"2019-01-30T10:28:03.060","Su comentario fue registrado"]
[null,4,"A4","2019-01-29T11:25:27.910","lalalalalalalalalalalala"]

{"sheet":"ASIS. 4° B","index":13,"n_rows":70,"n_cols":63,"rows_kept":70,"cut":false,"hidden":false,"merged":[[52,2,52,3],[47,2,47,3],[48,2,48,3],[49,2,49,3],[50,2,50,3],[51,2,51,3],[62,4,62,14],[61,46,61,58],[62,46,62,58],[41,2,41,3],[39,2,39,3],[54,2,54,3],[55,2,55,3],[56,2,56,3],[57,2,57,3],[58,2,58,3],[53,2,53,3],[42,2,42,3],[43,2,43,3],[44,2,44,3],[45,2,45,3],[46,2,46,3],[28,2,28,3],[35,2,35,3],[36,2,36,3],[37,2,37,3],[38,2,38,3],[30,2,30,3],[31,2,31,3],[32,2,32,3],[33,2,33,3],[34,2,34,3],[12,62,13,62],[14,2,14,3],[15,2,15,3],[16,2,16,3],[40,2,40,3],[29,2,29,3],[18,2,18,3],[19,2,19,3],[20,2,20,3],[21,2,21,3],[22,2,22,3],[23,2,23,3],[24,2,24,3],[25,2,25,3],[26,2,26,3],[27,2,27,3],[17,2,17,3],[12,1,13,1],[12,2,13,3],[12,4,12,57],[8,53,8,58],[12,58,12,61],[8,59,8,61],[1,1,2,62],[3,1,3,62],[4,53,4,58],[4,59,4,61],[6,53,6,58],[6,59,6,61]]}
[]
[null,"REGISTRO DE ASISTENCIA 4⁰ BIMESTRE "]
[]
[]
[null,null,"UNIDAD EDUCATIVA ",":",{"$f":"CARATULA!G20","v":0},null,null,null,null,null,null,null,null,null,null,null,null,null,null,null,null,null,null,null,null,null,null,null,null,null,null,null,null,null,null,null,null,null,null,null,null,null,null,null,null,null,null,null,null,null,null,null,null,"INICIO DE BIMESTRE ",null,null,null,null,null,{"$f":"CARATULA!P25","v":"2019-10-01"}]
[null,null,"NIVEL ",":",{"$f":"CARATULA!G26","v":0}]
[null,null,"AÑO DE ESCOLARIDAD",":",{"$f":"CONCATENATE(CARATULA!G28,\" \",CARATULA!H28)","v":" "},null,null,null,null,null,null,null,null,null,null,null,null,null,null,null,null,null,null,null,null,null,null,null,null,null,null,null,null,null,null,null,null,null,null,null,null,null,null,null,null,null,null,null,null,null,null,null,null,"FIN DE BIMESTRE ",null,null,null,null,null,{"$f":"CARATULA!R25","v":"2019-11-30"}]
[null,null,"DIRECTORA/OR",":",{"$f":"CARATULA!G22","v":0}]
[null,null,"MAESTRA/O",":",{"$f":"CARATULA!G24","v":0},null,null,null,null,null,null,null,null,null,null,null,null,null,null,null,null,null,null,null,null,null,null,null,null,null,null,null,null,null,null,null,null,null,null,null,null,null,null,null,null,null,null,null,null,null,null,null,null,"FECHA ACTUAL ",null,null,null,null,null,{"$f":"TODAY()","v":"2019-04-16"}]
[null,null,"CAMPO ",":",{"$f":"CARATULA!G30","v":0}]
[null,null,"ÁREA",":",{"$f":"CARATULA!G32","v":0}]
[]
[null,"N","APELLIDOS Y NOMBRES ",null," 4TO BIMESTRE",null,null,null,null,null,null,null,null,null,null,null,null,null,null,null,null,null,null,null,null,null,null,null,null,null,null,null,null,null,null,null,null,null,null,null,null,null,null,null,null,null,null,null,null,null,null,null,null,null,null,null,null,null,"TOTALES ",null,null,null," DÍAS TRABAJADOS "]
[null,null,null,null,null,null,null,null,null,null,null,null,null,null,null,null,null,null,null,null,null,null,null,null,null,null,null,null,null,null,null,null,null,null,null,null,null,null,null,null,null,null,null,null,null,null,null,null,null,null,null,null,null,null,null,null,null,null,"ASISTENCIAS (A)","FALTAS (F)","RETRASOS (R)","LICENCIAS (L)"]
[null,1,{"$f":"'C. FILIACION'!C14","v":0},null,null,null,null,null,null,null,null,null,null,null,null,null,null,null,null,null,null,null,null,null,null,null,null,null,null,null,null,null,null,null,null,null,null,null,null,null,null,null,null,null,null,null,null,null,null,null,null,null,null,null,null,null,null,null,{"$f":"IF(COUNTIF(E15:BF15,\"A\")=0,\"\",COUNTIF(E15:BF15,\"A\"))","v":""},{"$f":"IF(COUNTIF(E15:BF15,\"F\")=0,\"\",COUNTIF(E15:BF15,\"F\"))","v":""},{"$f":"IF(COUNTIF(E15:BF15,\"R\")=0,\"\",COUNTIF(E15:BF15,\"R\"))","v":""},{"$f":"IF(COUNTIF(E15:BF15,\"L\")=0,\"\",COUNTIF(E15:BF15,\"L\"))","v":""},{"$f":"IF((IF(BG15=\"\",0,BG15)+IF(BI15=\"\",0,BI15))=0,\"\",(IF(BG15=\"\",0,BG15)+IF(BI15=\"\",0,BI15)))","v":""}]
[null,2,{"$f":"'C. FILIACION'!C15","v":0},null,null,null,null,null,null,null,null,null,null,null,null,null,null,null,null,null,null,null,null,null,null,null,null,null,null,null,null,null,null,null,null,null,null,null,null,null,null,null,null,null,null,null,null,null,null,null,null,null,null,null,null,null,null,null,{"$f":"IF(COUNTIF(E16:BF16,\"A\")=0,\"\",COUNTIF(E16:BF16,\"A\"))","v":""},{"$f":"IF(COUNTIF(E16:BF16,\"F\")=0,\"\",COUNTIF(E16:BF16,\"F\"))","v":""},{"$f":"IF(COUNTIF(E16:BF16,\"R\")=0,\"\",COUNTIF(E16:BF16,\"R\"))","v":""},{"$f":"IF(COUNTIF(E16:BF16,\"L\")=0,\"\",COUNTIF(E16:BF16,\"L\"))","v":""},{"$f":"IF((IF(BG16=\"\",0,BG16)+IF(BI16=\"\",0,BI16))=0,\"\",(IF(BG16=\"\",0,BG16)+IF(BI16=\"\",0,BI16)))","v":""}]
[null,3,{"$f":"'C. FILIACION'!C16","v":0},null,null,null,null,null,null,null,null,null,null,null,null,null,null,null,null,null,null,null,null,null,null,null,null,null,null,null,null,null,null,null,null,null,null,null,null,null,null,null,null,null,null,null,null,null,null,null,null,null,null,null,null,null,null,null,"","","","",""]
[null,4,{"$f":"'C. FILIACION'!C17","v":0},null,null,null,null,null,null,null,null,null,null,null,null,null,null,null,null,null,null,null,null,null,null,null,null,null,null,null,null,null,null,null,null,null,null,null,null,null,null,null,null,null,null,null,null,null,null,null,null,null,null,null,null,null,null,null,"","","","",""]
[null,5,{"$f":"'C. FILIACION'!C18","v":0},null,null,null,null,null,null,null,null,null,null,null,null,null,null,null,null,null,null,null,null,null,null,null,null,null,null,null,null,null,null,null,null,null,null,null,null,null,null,null,null,null,null,null,null,null,null,null,null,null,null,null,null,null,null,null,"","","","",""]
[null,6,{"$f":"'C. FILIACION'!C19","v":0},null,null,null,null,null,null,null,null,null,null,null,null,null,null,null,null,null,null,null,null,null,null,null,null,null,null,null,null,null,null,null,null,null,null,null,null,null,null,null,null,null,null,null,null,null,null,null,null,null,null,null,null,null,null,null,"","","","",""]
[null,7,{"$f":"'C. FILIACION'!C20","v":0},null,null,null,null,null,null,null,null,null,null,null,null,null,null,null,null,null,null,null,null,null,null,null,null,null,null,null,null,null,null,null,null,null,null,null,null,null,null,null,null,null,null,null,null,null,null,null,null,null,null,null,null,null,null,null,"","","","",""]
[null,8,{"$f":"'C. FILIACION'!C21","v":0},null,null,null,null,null,null,null,null,null,null,null,null,null,null,null,null,null,null,null,null,null,null,null,null,null,null,null,null,null,null,null,null,null,null,null,null,null,null,null,null,null,null,null,null,null,null,null,null,null,null,null,null,null,null,null,"","","","",""]
[null,9,{"$f":"'C. FILIACION'!C22","v":0},null,null,null,null,null,null,null,null,null,null,null,null,null,null,null,null,null,null,null,null,null,null,null,null,null,null,null,null,null,null,null,null,null,null,null,null,null,null,null,null,null,null,null,null,null,null,null,null,null,null,null,null,null,null,null,"","","","",""]
[null,10,{"$f":"'C. FILIACION'!C23","v":0},null,null,null,null,null,null,null,null,null,null,null,null,null,null,null,null,null,null,null,null,null,null,null,null,null,null,null,null,null,null,null,null,null,null,null,null,null,null,null,null,null,null,null,null,null,null,null,null,null,null,null,null,null,null,null,"","","","",""]
[null,11,{"$f":"'C. FILIACION'!C24","v":0},null,null,null,null,null,null,null,null,null,null,null,null,null,null,null,null,null,null,null,null,null,null,null,null,null,null,null,null,null,null,null,null,null,null,null,null,null,null,null,null,null,null,null,null,null,null,null,null,null,null,null,null,null,null,null,"","","","",""]
[null,12,{"$f":"'C. FILIACION'!C25","v":0},null,null,null,null,null,null,null,null,null,null,null,null,null,null,null,null,null,null,null,null,null,null,null,null,null,null,null,null,null,null,null,null,null,null,null,null,null,null,null,null,null,null,null,null,null,null,null,null,null,null,null,null,null,null,null,"","","","",""]
[null,13,{"$f":"'C. FILIACION'!C26","v":0},null,null,null,null,null,null,null,null,null,null,null,null,null,null,null,null,null,null,null,null,null,null,null,null,null,null,null,null,null,null,null,null,null,null,null,null,null,null,null,null,null,null,null,null,null,null,null,null,null,null,null,null,null,null,null,"","","","",""]
[null,14,{"$f":"'C. FILIACION'!C27","v":0},null,null,null,null,null,null,null,null,null,null,null,null,null,null,null,null,null,null,null,null,null,null,null,null,null,null,null,null,null,null,null,null,null,null,null,null,null,null,null,null,null,null,null,null,null,null,null,null,null,null,null,null,null,null,null,"","","","",""]
[null,15,{"$f":"'C. FILIACION'!C28","v":0},null,null,null,null,null,null,null,null,null,null,null,null,null,null,null,null,null,null,null,null,null,null,null,null,null,null,null,null,null,null,null,null,null,null,null,null,null,null,null,null,null,null,null,null,null,null,null,null,null,null,null,null,null,null,null,"","","","",""]
[null,16,{"$f":"'C. FILIACION'!C29","v":0},null,null,null,null,null,null,null,null,null,null,null,null,null,null,null,null,null,null,null,null,null,null,null,null,null,null,null,null,null,null,null,null,null,null,null,null,null,null,null,null,null,null,null,null,null,null,null,null,null,null,null,null,null,null,null,"","","","",""]
[null,17,{"$f":"'C. FILIACION'!C30","v":0},null,null,null,null,null,null,null,null,null,null,null,null,null,null,null,null,null,null,null,null,null,null,null,null,null,null,null,null,null,null,null,null,null,null,null,null,null,null,null,null,null,null,null,null,null,null,null,null,null,null,null,null,null,null,null,"","","","",""]
[null,18,{"$f":"'C. FILIACION'!C31","v":0},null,null,null,null,null,null,null,null,null,null,null,null,null,null,null,null,null,null,null,null,null,null,null,null,null,null,null,null,null,null,null,null,null,null,null,null,null,null,null,null,null,null,null,null,null,null,null,null,null,null,null,null,null,null,null,"","","","",""]
[null,19,{"$f":"'C. FILIACION'!C32","v":0},null,null,null,null,null,null,null,null,null,null,null,null,null,null,null,null,null,null,null,null,null,null,null,null,null,null,null,null,null,null,null,null,null,null,null,null,null,null,null,null,null,null,null,null,null,null,null,null,null,null,null,null,null,null,null,"","","","",""]
[null,20,{"$f":"'C. FILIACION'!C33","v":0},null,null,null,null,null,null,null,null,null,null,null,null,null,null,null,null,null,null,null,null,null,null,null,null,null,null,null,null,null,null,null,null,null,null,null,null,null,null,null,null,null,null,null,null,null,null,null,null,null,null,null,null,null,null,null,"","","","",""]
[null,21,{"$f":"'C. FILIACION'!C34","v":0},null,null,null,null,null,null,null,null,null,null,null,null,null,null,null,null,null,null,null,null,null,null,null,null,null,null,null,null,null,null,null,null,null,null,null,null,null,null,null,null,null,null,null,null,null,null,null,null,null,null,null,null,null,null,null,"","","","",""]
[null,22,{"$f":"'C. FILIACION'!C35","v":0},null,null,null,null,null,null,null,null,null,null,null,null,null,null,null,null,null,null,null,null,null,null,null,null,null,null,null,null,null,null,null,null,null,null,null,null,null,null,null,null,null,null,null,null,null,null,null,null,null,null,null,null,null,null,null,"","","","",""]
[null,23,{"$f":"'C. FILIACION'!C36","v":0},null,null,null,null,null,null,null,null,null,null,null,null,null,null,null,null,null,null,null,null,null,null,null,null,null,null,null,null,null,null,null,null,null,null,null,null,null,null,null,null,null,null,null,null,null,null,null,null,null,null,null,null,null,null,null,"","","","",""]
[null,24,{"$f":"'C. FILIACION'!C37","v":0},null,null,null,null,null,null,null,null,null,null,null,null,null,null,null,null,null,null,null,null,null,null,null,null,null,null,null,null,null,null,null,null,null,null,null,null,null,null,null,null,null,null,null,null,null,null,null,null,null,null,null,null,null,null,null,"","","","",""]
[null,25,{"$f":"'C. FILIACION'!C38","v":0},null,null,null,null,null,null,null,null,null,null,null,null,null,null,null,null,null,null,null,null,null,null,null,null,null,null,null,null,null,null,null,null,null,null,null,null,null,null,null,null,null,null,null,null,null,null,null,null,null,null,null,null,null,null,null,"","","","",""]
[null,26,{"$f":"'C. FILIACION'!C39","v":0},null,null,null,null,null,null,null,null,null,null,null,null,null,null,null,null,null,null,null,null,null,null,null,null,null,null,null,null,null,null,null,null,null,null,null,null,null,null,null,null,null,null,null,null,null,null,null,null,null,null,null,null,null,null,null,"","","","",""]
[null,27,{"$f":"'C. FILIACION'!C40","v":0},null,null,null,null,null,null,null,null,null,null,null,null,null,null,null,null,null,null,null,null,null,null,null,null,null,null,null,null,null,null,null,null,null,null,null,null,null,null,null,null,null,null,null,null,null,null,null,null,null,null,null,null,null,null,null,"","","","",""]
[null,28,{"$f":"'C. FILIACION'!C41","v":0},null,null,null,null,null,null,null,null,null,null,null,null,null,null,null,null,null,null,null,null,null,null,null,null,null,null,null,null,null,null,null,null,null,null,null,null,null,null,null,null,null,null,null,null,null,null,null,null,null,null,null,null,null,null,null,"","","","",""]
[null,29,{"$f":"'C. FILIACION'!C42","v":0},null,null,null,null,null,null,null,null,null,null,null,null,null,null,null,null,null,null,null,null,null,null,null,null,null,null,null,null,null,null,null,null,null,null,null,null,null,null,null,null,null,null,null,null,null,null,null,null,null,null,null,null,null,null,null,"","","","",""]
[null,30,{"$f":"'C. FILIACION'!C43","v":0},null,null,null,null,null,null,null,null,null,null,null,null,null,null,null,null,null,null,null,null,null,null,null,null,null,null,null,null,null,null,null,null,null,null,null,null,null,null,null,null,null,null,null,null,null,null,null,null,null,null,null,null,null,null,null,"","","","",""]
[null,31,{"$f":"'C. FILIACION'!C44","v":0},null,null,null,null,null,null,null,null,null,null,null,null,null,null,null,null,null,null,null,null,null,null,null,null,null,null,null,null,null,null,null,null,null,null,null,null,null,null,null,null,null,null,null,null,null,null,null,null,null,null,null,null,null,null,null,"","","","",""]
[null,32,{"$f":"'C. FILIACION'!C45","v":0},null,null,null,null,null,null,null,null,null,null,null,null,null,null,null,null,null,null,null,null,null,null,null,null,null,null,null,null,null,null,null,null,null,null,null,null,null,null,null,null,null,null,null,null,null,null,null,null,null,null,null,null,null,null,null,"","","","",""]
[null,33,{"$f":"'C. FILIACION'!C46","v":0},null,null,null,null,null,null,null,null,null,null,null,null,null,null,null,null,null,null,null,null,null,null,null,null,null,null,null,null,null,null,null,null,null,null,null,null,null,null,null,null,null,null,null,null,null,null,null,null,null,null,null,null,null,null,null,"","","","",""]
[null,34,{"$f":"'C. FILIACION'!C47","v":0},null,null,null,null,null,null,null,null,null,null,null,null,null,null,null,null,null,null,null,null,null,null,null,null,null,null,null,null,null,null,null,null,null,null,null,null,null,null,null,null,null,null,null,null,null,null,null,null,null,null,null,null,null,null,null,"","","","",""]
[null,35,{"$f":"'C. FILIACION'!C48","v":0},null,null,null,null,null,null,null,null,null,null,null,null,null,null,null,null,null,null,null,null,null,null,null,null,null,null,null,null,null,null,null,null,null,null,null,null,null,null,null,null,null,null,null,null,null,null,null,null,null,null,null,null,null,null,null,"","","","",""]
[null,36,{"$f":"'C. FILIACION'!C49","v":0},null,null,null,null,null,null,null,null,null,null,null,null,null,null,null,null,null,null,null,null,null,null,null,null,null,null,null,null,null,null,null,null,null,null,null,null,null,null,null,null,null,null,null,null,null,null,null,null,null,null,null,null,null,null,null,"","","","",""]
[null,37,{"$f":"'C. FILIACION'!C50","v":0},null,null,null,null,null,null,null,null,null,null,null,null,null,null,null,null,null,null,null,null,null,null,null,null,null,null,null,null,null,null,null,null,null,null,null,null,null,null,null,null,null,null,null,null,null,null,null,null,null,null,null,null,null,null,null,"","","","",""]
[null,38,{"$f":"'C. FILIACION'!C51","v":0},null,null,null,null,null,null,null,null,null,null,null,null,null,null,null,null,null,null,null,null,null,null,null,null,null,null,null,null,null,null,null,null,null,null,null,null,null,null,null,null,null,null,null,null,null,null,null,null,null,null,null,null,null,null,null,"","","","",""]
[null,39,{"$f":"'C. FILIACION'!C52","v":0},null,null,null,null,null,null,null,null,null,null,null,null,null,null,null,null,null,null,null,null,null,null,null,null,null,null,null,null,null,null,null,null,null,null,null,null,null,null,null,null,null,null,null,null,null,null,null,null,null,null,null,null,null,null,null,"","","","",""]
[null,40,{"$f":"'C. FILIACION'!C53","v":0},null,null,null,null,null,null,null,null,null,null,null,null,null,null,null,null,null,null,null,null,null,null,null,null,null,null,null,null,null,null,null,null,null,null,null,null,null,null,null,null,null,null,null,null,null,null,null,null,null,null,null,null,null,null,null,"","","","",""]
[null,41,{"$f":"'C. FILIACION'!C54","v":0},null,null,null,null,null,null,null,null,null,null,null,null,null,null,null,null,null,null,null,null,null,null,null,null,null,null,null,null,null,null,null,null,null,null,null,null,null,null,null,null,null,null,null,null,null,null,null,null,null,null,null,null,null,null,null,"","","","",""]
[null,42,{"$f":"'C. FILIACION'!C55","v":0},null,null,null,null,null,null,null,null,null,null,null,null,null,null,null,null,null,null,null,null,null,null,null,null,null,null,null,null,null,null,null,null,null,null,null,null,null,null,null,null,null,null,null,null,null,null,null,null,null,null,null,null,null,null,null,"","","","",""]
[null,43,{"$f":"'C. FILIACION'!C56","v":0},null,null,null,null,null,null,null,null,null,null,null,null,null,null,null,null,null,null,null,null,null,null,null,null,null,null,null,null,null,null,null,null,null,null,null,null,null,null,null,null,null,null,null,null,null,null,null,null,null,null,null,null,null,null,null,"","","","",""]
[null,44,{"$f":"'C. FILIACION'!C57","v":0},null,null,null,null,null,null,null,null,null,null,null,null,null,null,null,null,null,null,null,null,null,null,null,null,null,null,null,null,null,null,null,null,null,null,null,null,null,null,null,null,null,null,null,null,null,null,null,null,null,null,null,null,null,null,null,"","","","",""]
[null,45,{"$f":"'C. FILIACION'!C58","v":0},null,null,null,null,null,null,null,null,null,null,null,null,null,null,null,null,null,null,null,null,null,null,null,null,null,null,null,null,null,null,null,null,null,null,null,null,null,null,null,null,null,null,null,null,null,null,null,null,null,null,null,null,null,null,null,"","","","",""]
[]
[]
[]
[null,null,null,null,{"$f":"CARATULA!G22","v":0},null,null,null,null,null,null,null,null,null,null,null,null,null,null,null,null,null,null,null,null,null,null,null,null,null,null,null,null,null,null,null,null,null,null,null,null,null,null,null,null,null,{"$f":"CARATULA!G24","v":0}]
[]
[]
[]
[null,null,"INSCRITO "]
[null,null,"NO INCORPORADO"]
[null,null,"RETIRO O ABANDONO"]
[null,null,"EFECTIVO"]

{"sheet":"VAL. 4° B","index":14,"n_rows":68,"n_cols":55,"rows_kept":68,"cut":false,"hidden":false,"merged":[[65,48,65,49],[66,8,66,19],[66,30,66,42],[67,8,67,19],[67,30,67,42],[64,48,64,49],[52,2,52,3],[53,2,53,3],[54,2,54,3],[55,2,55,3],[56,2,56,3],[57,2,57,3],[58,2,58,3],[59,2,59,3],[60,2,60,3],[61,2,61,3],[62,2,62,3],[51,2,51,3],[40,2,40,3],[41,2,41,3],[42,2,42,3],[43,2,43,3],[44,2,44,3],[45,2,45,3],[46,2,46,3],[47,2,47,3],[48,2,48,3],[49,2,49,3],[50,2,50,3],[26,2,26,3],[39,2,39,3],[28,2,28,3],[29,2,29,3],[30,2,30,3],[31,2,31,3],[32,2,32,3],[33,2,33,3],[34,2,34,3],[35,2,35,3],[36,2,36,3],[37,2,37,3],[38,2,38,3],[27,2,27,3],[19,2,19,3],[20,2,20,3],[16,42,16,46],[16,47,17,47],[25,2,25,3],[22,2,22,3],[23,2,23,3],[24,2,24,3],[21,2,21,3],[18,2,18,3],[13,1,16,2],[16,25,17,25],[16,31,16,35],[16,36,16,40],[16,41,17,41],[13,51,17,51],[14,3,14,47],[14,48,14,49],[15,3,15,9],[15,10,15,25],[15,26,15,41],[15,42,15,47],[16,4,16,8],[16,9,17,9],[13,50,17,50],[16,26,16,30],[13,3,13,47],[13,48,13,49],[16,10,16,14],[16,15,16,19],[16,20,16,24],[16,48,17,48],[16,49,17,49],[7,29,7,33],[7,35,7,41],[7,42,7,43],[2,1,3,51],[5,29,5,33],[5,35,5,41],[5,42,5,43],[5,44,11,49],[5,50,6,51],[6,35,6,41],[6,42,6,43],[7,50,11,51],[9,29,9,33]]}
[]
[]
[null,"REGISTRO DE VALORACIÓN 4⁰ BIMESTRE"]
[]
[]
[null,null,"UNIDAD EDUCATIVA ",":",null,{"$f":"CARATULA!G20","v":0},null,null,null,null,null,null,null,null,null,null,null,null,null,null,null,"INICIO DE BIMESTRE ",null,null,null,null,null,null,":",{"$f":"CARATULA!P25","v":"2019-10-01"},null,null,null,null,null,null,null,null,null,null,null,null,null,null,null,null,null,null,null,null,"DÍAS RESTANTES PARA FIN DE BIMESTRE "]
[null,null,"NIVEL ",":",null,{"$f":"CARATULA!G26","v":0},null,null,null,null,null,null,null,null,null,null,null,null,null,null,null,null,null,null,null,null,null,null,null,null,null,null,null,null,null,"N° TOTAL APROBADOS",null,null,null,null,null,null,{"$f":"COUNTIF(AY19:AY63,\">=50,500\")","v":0}]
[null,null,"AÑO DE ESCOLARIDAD",":",null,{"$f":"CONCATENATE(CARATULA!G28,\" \",CARATULA!H28)","v":" "},null,null,null,null,null,null,null,null,null,null,null,null,null,null,null,"FIN DE BIMESTRE ",null,null,null,null,null,null,":",{"$f":"CARATULA!R25","v":"2019-11-30"},null,null,null,null,null,"N° TOTAL REPROBADOS",null,null,null,null,null,null,{"$f":"COUNTIFS(AY19:AY63,\">=1\",AY19:AY63,\"<=50,499\")","v":0},null,null,null,null,null,null,null,{"$f":"AD8-AD10","v":228}]
[null,null,"DIRECTORA/OR",":",null,{"$f":"CARATULA!G22","v":0},null,null,null,null,null,null,null,null,null,null,null,null,null,null,null,null,null,null,null,null,null,null,null,null,null,null,null,null,null,null,null,null,null,null,null,null,null,null,null,null,null,null,null,null,null,null,null,"N° Lista","NOMBRE"]
[null,null,"MAESTRA/O",":",null,{"$f":"CARATULA!G24","v":0},null,null,null,null,null,null,null,null,null,null,null,null,null,null,null,"FECHA ACTUAL",null,null,null,null,null,null,":",{"$f":"TODAY()","v":"2019-04-16"},null,null,null,null,null,null,null,null,null,null,null,null,null,null,null,null,null,null,null,null,null,null,null,1,{"$f":"VLOOKUP(BB10,'C. FILIACION'!B14:C58, 2,FALSE)","v":0}]
[{"$f":"COUNTIF(AY19:AY63,¨>=50)","v":0},null,"CAMPO ",":",null,{"$f":"CARATULA!G30","v":0}]
[null,null,"ÁREA",":",null,{"$f":"CARATULA!G32","v":0},null,null,null,null,null,null,null,null,null,null,null,null,null,null,null,null,null,null,null,null,null,null,null,null,null,null,null,null,null,null,null,null,null,null,null,null,null,null,null,null,null,null,null,null,null,null,null,null,"FECHA Y HORA"]
[]
[null,null,null,"EVALUACIÓN MAESTRA(O)",null,null,null,null,null,null,null,null,null,null,null,null,null,null,null,null,null,null,null,null,null,null,null,null,null,null,null,null,null,null,null,null,null,null,null,null,null,null,null,null,null,null,null,null,"AUTO EVALUACIÓN ESTUDIANTE ",null," TOTAL BIMESTRAL","SITUACIÓN BIMESTRAL",null,null,{"$f":"NOW()","v":"2019-04-16T15:48:02.590"}]
[null,null,null,"DIMENSIONES ",null,null,null,null,null,null,null,null,null,null,null,null,null,null,null,null,null,null,null,null,null,null,null,null,null,null,null,null,null,null,null,null,null,null,null,null,null,null,null,null,null,null,null,null,"DIMENSIONES "]
[null,null,null,"SER -10",null,null,null,null,null,null,"SABER - 35",null,null,null,null,null,null,null,null,null,null,null,null,null,null,null,"HACER - 35",null,null,null,null,null,null,null,null,null,null,null,null,null,null,null,"DECIDIR - 10 ",null,null,null,null,null,"SER - 5","DECIDIR - 5",null,null,null,null,"OBSERVACIÓN "]
[null,null,null,"CRITERIOS DE EVALUACIÓN  ",null,null,null,null,null,"VALORACIÓN 10 PUN.",null,null,null,null,null,null,null,null,null,null,null,null,null,null,null,"VALORACIÓN 35 PUN.",null,null,null,null,null,null,null,null,null,null,null,null,null,null,null,"VALORACIÓN 35 PUN.",null,null,null,null,null,"VALORACIÓN 10 PUN."]
[null,"N ","NOMBRES Y APELLIDOS ","ACTIVIDADES"]
[null,1,{"$f":"'C. FILIACION'!C14","v":0},null,null,null,null,null,null,{"$f":"IFERROR(ROUND(AVERAGE(E19:I19),0),\"\")","v":""},null,null,null,null,null,null,null,null,null,null,null,null,null,null,null,{"$f":"IFERROR(ROUND(AVERAGE(K19:Y19),0),\"\")","v":""},null,null,null,null,null,null,null,null,null,null,null,null,null,null,null,{"$f":"IFERROR(ROUND(AVERAGE(AA19:AO19),0),\"\")","v":""},null,null,null,null,null,{"$f":"IFERROR(ROUND(AVERAGE(AQ19:AU19),0),\"\")","v":""},null,null,{"$f":"IFERROR((SUM(J19,Z19,AP19,AV19:AX19)),\"\")","v":0},{"$f":"IF(AY19=\"\",\"\",(IF(AND(AY19>=1,AY19<=50.499),\"REPROBADO\",IF(AND(AY19>=50.5,AY19<=100),\"APROBADO\"))))","v":false}]
[null,2,{"$f":"'C. FILIACION'!C15","v":0},null,null,null,null,null,null,{"$f":"IFERROR(ROUND(AVERAGE(E20:I20),0),\"\")","v":""},null,null,null,null,null,null,null,null,null,null,null,null,null,null,null,{"$f":"IFERROR(ROUND(AVERAGE(K20:Y20),0),\"\")","v":""},null,null,null,null,null,null,null,null,null,null,null,null,null,null,null,{"$f":"IFERROR(ROUND(AVERAGE(AA20:AO20),0),\"\")","v":""},null,null,null,null,null,{"$f":"IFERROR(ROUND(AVERAGE(AQ20:AU20),0),\"\")","v":""},null,null,{"$f":"IFERROR((SUM(J20,Z20,AP20,AV20:AX20)),\"\")","v":0},{"$f":"IF(AY20=\"\",\"\",(IF(AND(AY20>=1,AY20<=50.499),\"REPROBADO\",IF(AND(AY20>=50.5,AY20<=100),\"APROBADO\"))))","v":false}]
[null,3,{"$f":"'C. FILIACION'!C16","v":0},null,null,null,null,null,null,"",null,null,null,null,null,null,null,null,null,null,null,null,null,null,null,"",null,null,null,null,null,null,null,null,null,null,null,null,null,null,null,"",null,null,null,null,null,"",null,null,0,false]
[null,4,{"$f":"'C. FILIACION'!C17","v":0},null,null,null,null,null,null,"",null,null,null,null,null,null,null,null,null,null,null,null,null,null,null,"",null,null,null,null,null,null,null,null,null,null,null,null,null,null,null,"",null,null,null,null,null,"",null,null,0,false]
[null,5,{"$f":"'C. FILIACION'!C18","v":0},null,null,null,null,null,null,"",null,null,null,null,null,null,null,null,null,null,null,null,null,null,null,"",null,null,null,null,null,null,null,null,null,null,null,null,null,null,null,"",null,null,null,null,null,"",null,null,0,false]
[null,6,{"$f":"'C. FILIACION'!C19","v":0},null,null,null,null,null,null,"",null,null,null,null,null,null,null,null,null,null,null,null,null,null,null,"",null,null,null,null,null,null,null,null,null,null,null,null,null,null,null,"",null,null,null,null,null,"",null,null,0,false]
[null,7,{"$f":"'C. FILIACION'!C20","v":0},null,null,null,null,null,null,"",null,null,null,null,null,null,null,null,null,null,null,null,null,null,null,"",null,null,null,null,null,null,null,null,null,null,null,null,null,null,null,"",null,null,null,null,null,"",null,null,0,false]
[null,8,{"$f":"'C. FILIACION'!C21","v":0},null,null,null,null,null,null,"",null,null,null,null,null,null,null,null,null,null,null,null,null,null,null,"",null,null,null,null,null,null,null,null,null,null,null,null,null,null,null,"",null,null,null,null,null,"",null,null,0,false]
[null,9,{"$f":"'C. FILIACION'!C22","v":0},null,null,null,null,null,null,"",null,null,null,null,null,null,null,null,null,null,null,null,null,null,null,"",null,null,null,null,null,null,null,null,null,null,null,null,null,null,null,"",null,null,null,null,null,"",null,null,0,false]
[null,10,{"$f":"'C. FILIACION'!C23","v":0},null,null,null,null,null,null,"",null,null,null,null,null,null,null,null,null,null,null,null,null,null,null,"",null,null,null,null,null,null,null,null,null,null,null,null,null,null,null,"",null,null,null,null,null,"",null,null,0,false]
[null,11,{"$f":"'C. FILIACION'!C24","v":0},null,null,null,null,null,null,"",null,null,null,null,null,null,null,null,null,null,null,null,null,null,null,"",null,null,null,null,null,null,null,null,null,null,null,null,null,null,null,"",null,null,null,null,null,"",null,null,0,false]
[null,12,{"$f":"'C. FILIACION'!C25","v":0},null,null,null,null,null,null,"",null,null,null,null,null,null,null,null,null,null,null,null,null,null,null,"",null,null,null,null,null,null,null,null,null,null,null,null,null,null,null,"",null,null,null,null,null,"",null,null,0,false]
[null,13,{"$f":"'C. FILIACION'!C26","v":0},null,null,null,null,null,null,"",null,null,null,null,null,null,null,null,null,null,null,null,null,null,null,"",null,null,null,null,null,null,null,null,null,null,null,null,null,null,null,"",null,null,null,null,null,"",null,null,0,false]
[null,14,{"$f":"'C. FILIACION'!C27","v":0},null,null,null,null,null,null,"",null,null,null,null,null,null,null,null,null,null,null,null,null,null,null,"",null,null,null,null,null,null,null,null,null,null,null,null,null,null,null,"",null,null,null,null,null,"",null,null,0,false]
[null,15,{"$f":"'C. FILIACION'!C28","v":0},null,null,null,null,null,null,"",null,null,null,null,null,null,null,null,null,null,null,null,null,null,null,"",null,null,null,null,null,null,null,null,null,null,null,null,null,null,null,"",null,null,null,null,null,"",null,null,0,false]
[null,16,{"$f":"'C. FILIACION'!C29","v":0},null,null,null,null,null,null,"",null,null,null,null,null,null,null,null,null,null,null,null,null,null,null,"",null,null,null,null,null,null,null,null,null,null,null,null,null,null,null,"",null,null,null,null,null,"",null,null,0,false]
[null,17,{"$f":"'C. FILIACION'!C30","v":0},null,null,null,null,null,null,"",null,null,null,null,null,null,null,null,null,null,null,null,null,null,null,"",null,null,null,null,null,null,null,null,null,null,null,null,null,null,null,"",null,null,null,null,null,"",null,null,0,false]
[null,18,{"$f":"'C. FILIACION'!C31","v":0},null,null,null,null,null,null,"",null,null,null,null,null,null,null,null,null,null,null,null,null,null,null,"",null,null,null,null,null,null,null,null,null,null,null,null,null,null,null,"",null,null,null,null,null,"",null,null,0,false]
[null,19,{"$f":"'C. FILIACION'!C32","v":0},null,null,null,null,null,null,"",null,null,null,null,null,null,null,null,null,null,null,null,null,null,null,"",null,null,null,null,null,null,null,null,null,null,null,null,null,null,null,"",null,null,null,null,null,"",null,null,0,false]
[null,20,{"$f":"'C. FILIACION'!C33","v":0},null,null,null,null,null,null,"",null,null,null,null,null,null,null,null,null,null,null,null,null,null,null,"",null,null,null,null,null,null,null,null,null,null,null,null,null,null,null,"",null,null,null,null,null,"",null,null,0,false]
[null,21,{"$f":"'C. FILIACION'!C34","v":0},null,null,null,null,null,null,"",null,null,null,null,null,null,null,null,null,null,null,null,null,null,null,"",null,null,null,null,null,null,null,null,null,null,null,null,null,null,null,"",null,null,null,null,null,"",null,null,0,false]
[null,22,{"$f":"'C. FILIACION'!C35","v":0},null,null,null,null,null,null,"",null,null,null,null,null,null,null,null,null,null,null,null,null,null,null,"",null,null,null,null,null,null,null,null,null,null,null,null,null,null,null,"",null,null,null,null,null,"",null,null,0,false]
[null,23,{"$f":"'C. FILIACION'!C36","v":0},null,null,null,null,null,null,"",null,null,null,null,null,null,null,null,null,null,null,null,null,null,null,"",null,null,null,null,null,null,null,null,null,null,null,null,null,null,null,"",null,null,null,null,null,"",null,null,0,false]
[null,24,{"$f":"'C. FILIACION'!C37","v":0},null,null,null,null,null,null,"",null,null,null,null,null,null,null,null,null,null,null,null,null,null,null,"",null,null,null,null,null,null,null,null,null,null,null,null,null,null,null,"",null,null,null,null,null,"",null,null,0,false]
[null,25,{"$f":"'C. FILIACION'!C38","v":0},null,null,null,null,null,null,"",null,null,null,null,null,null,null,null,null,null,null,null,null,null,null,"",null,null,null,null,null,null,null,null,null,null,null,null,null,null,null,"",null,null,null,null,null,"",null,null,0,false]
[null,26,{"$f":"'C. FILIACION'!C39","v":0},null,null,null,null,null,null,"",null,null,null,null,null,null,null,null,null,null,null,null,null,null,null,"",null,null,null,null,null,null,null,null,null,null,null,null,null,null,null,"",null,null,null,null,null,"",null,null,0,false]
[null,27,{"$f":"'C. FILIACION'!C40","v":0},null,null,null,null,null,null,"",null,null,null,null,null,null,null,null,null,null,null,null,null,null,null,"",null,null,null,null,null,null,null,null,null,null,null,null,null,null,null,"",null,null,null,null,null,"",null,null,0,false]
[null,28,{"$f":"'C. FILIACION'!C41","v":0},null,null,null,null,null,null,"",null,null,null,null,null,null,null,null,null,null,null,null,null,null,null,"",null,null,null,null,null,null,null,null,null,null,null,null,null,null,null,"",null,null,null,null,null,"",null,null,0,false]
[null,29,{"$f":"'C. FILIACION'!C42","v":0},null,null,null,null,null,null,"",null,null,null,null,null,null,null,null,null,null,null,null,null,null,null,"",null,null,null,null,null,null,null,null,null,null,null,null,null,null,null,"",null,null,null,null,null,"",null,null,0,false]
[null,30,{"$f":"'C. FILIACION'!C43","v":0},null,null,null,null,null,null,"",null,null,null,null,null,null,null,null,null,null,null,null,null,null,null,"",null,null,null,null,null,null,null,null,null,null,null,null,null,null,null,"",null,null,null,null,null,"",null,null,0,false]
[null,31,{"$f":"'C. FILIACION'!C44","v":0},null,null,null,null,null,null,"",null,null,null,null,null,null,null,null,null,null,null,null,null,null,null,"",null,null,null,null,null,null,null,null,null,null,null,null,null,null,null,"",null,null,null,null,null,"",null,null,0,false]
[null,32,{"$f":"'C. FILIACION'!C45","v":0},null,null,null,null,null,null,"",null,null,null,null,null,null,null,null,null,null,null,null,null,null,null,"",null,null,null,null,null,null,null,null,null,null,null,null,null,null,null,"",null,null,null,null,null,"",null,null,0,false]
[null,33,{"$f":"'C. FILIACION'!C46","v":0},null,null,null,null,null,null,"",null,null,null,null,null,null,null,null,null,null,null,null,null,null,null,"",null,null,null,null,null,null,null,null,null,null,null,null,null,null,null,"",null,null,null,null,null,"",null,null,0,false]
[null,34,{"$f":"'C. FILIACION'!C47","v":0},null,null,null,null,null,null,"",null,null,null,null,null,null,null,null,null,null,null,null,null,null,null,"",null,null,null,null,null,null,null,null,null,null,null,null,null,null,null,"",null,null,null,null,null,"",null,null,0,false]
[null,35,{"$f":"'C. FILIACION'!C48","v":0},null,null,null,null,null,null,"",null,null,null,null,null,null,null,null,null,null,null,null,null,null,null,"",null,null,null,null,null,null,null,null,null,null,null,null,null,null,null,"",null,null,null,null,null,"",null,null,0,false]
[null,36,{"$f":"'C. FILIACION'!C49","v":0},null,null,null,null,null,null,"",null,null,null,null,null,null,null,null,null,null,null,null,null,null,null,"",null,null,null,null,null,null,null,null,null,null,null,null,null,null,null,"",null,null,null,null,null,"",null,null,0,false]
[null,37,{"$f":"'C. FILIACION'!C50","v":0},null,null,null,null,null,null,"",null,null,null,null,null,null,null,null,null,null,null,null,null,null,null,"",null,null,null,null,null,null,null,null,null,null,null,null,null,null,null,"",null,null,null,null,null,"",null,null,0,false]
[null,38,{"$f":"'C. FILIACION'!C51","v":0},null,null,null,null,null,null,"",null,null,null,null,null,null,null,null,null,null,null,null,null,null,null,"",null,null,null,null,null,null,null,null,null,null,null,null,null,null,null,"",null,null,null,null,null,"",null,null,0,false]
[null,39,{"$f":"'C. FILIACION'!C52","v":0},null,null,null,null,null,null,"",null,null,null,null,null,null,null,null,null,null,null,null,null,null,null,"",null,null,null,null,null,null,null,null,null,null,null,null,null,null,null,"",null,null,null,null,null,"",null,null,0,false]
[null,40,{"$f":"'C. FILIACION'!C53","v":0},null,null,null,null,null,null,"",null,null,null,null,null,null,null,null,null,null,null,null,null,null,null,"",null,null,null,null,null,null,null,null,null,null,null,null,null,null,null,"",null,null,null,null,null,"",null,null,0,false]
[null,41,{"$f":"'C. FILIACION'!C54","v":0},null,null,null,null,null,null,"",null,null,null,null,null,null,null,null,null,null,null,null,null,null,null,"",null,null,null,null,null,null,null,null,null,null,null,null,null,null,null,"",null,null,null,null,null,"",null,null,0,false]
[null,42,{"$f":"'C. FILIACION'!C55","v":0},null,null,null,null,null,null,"",null,null,null,null,null,null,null,null,null,null,null,null,null,null,null,"",null,null,null,null,null,null,null,null,null,null,null,null,null,null,null,"",null,null,null,null,null,"",null,null,0,false]
[null,43,{"$f":"'C. FILIACION'!C56","v":0},null,null,null,null,null,null,"",null,null,null,null,null,null,null,null,null,null,null,null,null,null,null,"",null,null,null,null,null,null,null,null,null,null,null,null,null,null,null,"",null,null,null,null,null,"",null,null,0,false]
[null,44,{"$f":"'C. FILIACION'!C57","v":0},null,null,null,null,null,null,"",null,null,null,null,null,null,null,null,null,null,null,null,null,null,null,"",null,null,null,null,null,null,null,null,null,null,null,null,null,null,null,"",null,null,null,null,null,"",null,null,0,false]
[null,45,{"$f":"'C. FILIACION'!C58","v":0},null,null,null,null,null,null,"",null,null,null,null,null,null,null,null,null,null,null,null,null,null,null,"",null,null,null,null,null,null,null,null,null,null,null,null,null,null,null,"",null,null,null,null,null,"",null,null,{"$f":"IFERROR((SUM(J63,Z63,AP63,AV63:AX63)),\"\")","v":0},false]
[]
[]
[]
[]
[null,null,null,null,null,null,null,null,{"$f":"CARATULA!G22","v":0},null,null,null,null,null,null,null,null,null,null,null,null,null,null,null,null,null,null,null,null,null,{"$f":"CARATULA!G24","v":0}]

{"sheet":"REG-OBS4","index":15,"n_rows":4,"n_cols":5,"rows_kept":4,"cut":false,"hidden":false,"merged":[[0,1,0,4]]}
[null,"REGISTRO DE OBSERVACIONES 4° BIMESTRE "]
[]
[null,"N° LISTA ","NOMBRE ","FECHA Y HORA ","OBSERVACIÓN "]
[null,1,0,"2019-01-30T10:28:27.360","Su comentario fue registrado "]

{"sheet":"CENTRALIZADOR","index":16,"n_rows":63,"n_cols":33,"rows_kept":63,"cut":false,"hidden":false,"merged":[[11,32,13,32],[12,7,12,8],[12,9,13,9],[12,10,12,13],[12,14,12,15],[12,16,13,16],[12,17,12,20],[12,21,12,22],[12,23,13,23],[12,24,12,27],[12,28,12,29],[12,30,13,30],[11,1,13,1],[11,2,13,2],[11,3,11,9],[11,10,11,16],[11,17,11,23],[12,3,12,6],[1,1,1,26],[1,27,1,32],[8,18,8,19],[8,20,8,21],[8,22,8,23],[8,24,8,25],[62,3,62,10],[62,17,62,24],[11,24,11,30],[9,18,9,25],[8,27,8,31],[9,27,9,31],[11,31,13,31]]}
[]
[null,"                CENTRALIZADOR DE NOTAS ",null,null,null,null,null,null,null,null,null,null,null,null,null,null,null,null,null,null,null,null,null,null,null,null,null,{"$f":"TODAY()","v":"2019-04-16"}]
[]
[null,null,"UNIDAD EDUCATIVA ",null,{"$f":"CARATULA!G20","v":0}]
[null,null,"NIVEL ",null,{"$f":"CARATULA!G26","v":0}]
[null,null,"AÑO DE ESCOLARIDAD",null,{"$f":"CONCATENATE(CARATULA!G28,\" \",CARATULA!H28)","v":" "}]
[null,null,"DIRECTORA/OR",null,{"$f":"CARATULA!G22","v":0}]
[null,null,"MAESTRA/O",null,{"$f":"CARATULA!G24","v":0}]
[null,null,"CAMPO ",null,{"$f":"CARATULA!G30","v":0},null,null,null,null,null,null,null,null,null,null,null,null,null,{"$f":"COUNTIF(J15:J59,\">=51\")","v":0},null,{"$f":"COUNTIF(Q15:Q59,\">=51\")","v":0},null,{"$f":"COUNTIF(X15:X59,\">=51\")","v":0},null,{"$f":"COUNTIF(AE15:AE59,\">=51\")","v":0},null,null,"% TOTAL APROBADOS ",null,null,null,null,{"$f":"COUNTIF(AG15:AG59,\"APROBADO\")","v":0}]
[null,null,"ÁREA",null,{"$f":"CARATULA!G32","v":0},null,null,null,null,null,null,null,null,null,null,null,null,null,"N° APROBADOS POR BIMESTRE ",null,null,null,null,null,null,null,null,"% TOTAL REPROBADOS ",null,null,null,null,{"$f":"COUNTIF(AG15:AG59,\"REPROBADO\")","v":0}]
[]
[null,"N","APELLIDOS Y NOMBRES","1° BIMESTRE ",null,null,null,null,null,null,"2° BIMESTRE ",null,null,null,null,null,null,"3° BIMESTRE ",null,null,null,null,null,null,"4° BIMESTRE ",null,null,null,null,null,null,"PROMEDIO FINAL ","ESTADO ACTUAL DEL ESTUDIANTE "]
[null,null,null,"EV. MAESTRA/O",null,null,null,"EV.EST.",null,"SUMA TOTAL","EV. MAESTRA/O",null,null,null,"EV.EST.",null,"SUMA TOTAL ","EV. MAESTRA/O",null,null,null,"EV.EST.",null,"SUMA TOTAL ","EV. MAESTRA/O",null,null,null,"EV.EST.",null,"SUMA TOTAL "]
[null,null,null,"SER","SABER ","HACER ","DECIDIR","SER","DECIDIR",null,"SER","SABER ","HACER ","DECIDIR","SER","DECIDIR",null,"SER","SABER ","HACER ","DECIDIR","SER","DECIDIR",null,"SER","SABER ","HACER ","DECIDIR","SER","DECIDIR"]
[null,1,{"$f":"'C. FILIACION'!C14:D14","v":0},{"$f":"'VAL. 1° B'!J19","v":""},{"$f":"'VAL. 1° B'!Z19","v":""},{"$f":"'VAL. 1° B'!AP19","v":""},{"$f":"'VAL. 1° B'!AV19","v":""},{"$f":"'VAL. 1° B'!AW19","v":0},{"$f":"'VAL. 1° B'!AX19","v":0},{"$f":"'VAL. 1° B'!AY19","v":0},{"$f":"'VAL. 2° B'!J19","v":""},{"$f":"'VAL. 2° B'!Z19","v":""},{"$f":"'VAL. 2° B'!AP19","v":""},{"$f":"'VAL. 2° B'!AV19","v":""},{"$f":"'VAL. 2° B'!AW19","v":0},{"$f":"'VAL. 2° B'!AX19","v":0},{"$f":"'VAL. 2° B'!AY19","v":0},{"$f":"'VAL. 3° B'!J19","v":""},{"$f":"'VAL. 3° B'!Z19","v":""},{"$f":"'VAL. 3° B'!AP19","v":""},{"$f":"'VAL. 3° B'!AV19","v":""},{"$f":"'VAL. 3° B'!AW19","v":0},{"$f":"'VAL. 3° B'!AX19","v":0},{"$f":"'VAL. 3° B'!AY19","v":0},{"$f":"'VAL. 4° B'!J19","v":""},{"$f":"'VAL. 4° B'!Z19","v":""},{"$f":"'VAL. 4° B'!AP19","v":""},{"$f":"'VAL. 4° B'!AV19","v":""},{"$f":"'VAL. 4° B'!AW19","v":0},{"$f":"'VAL. 4° B'!AX19","v":0},{"$f":"'VAL. 4° B'!AY19","v":0},{"$f":"IFERROR(ROUND(AVERAGE(J15,Q15,X15,AE15),0),\"\")","v":0},{"$f":"IF(AF15=\"\",\"\",(IF(AND(AF15>=1,AF15<=50.499),\"REPROBADO\",IF(AND(AF15>=50.5,AF15<=100),\"APROBADO\"))))","v":false}]
[null,2,{"$f":"'C. FILIACION'!C15:D15","v":0},{"$f":"'VAL. 1° B'!J20","v":""},{"$f":"'VAL. 1° B'!Z20","v":""},{"$f":"'VAL. 1° B'!AP20","v":""},{"$f":"'VAL. 1° B'!AV20","v":""},{"$f":"'VAL. 1° B'!AW20","v":0},{"$f":"'VAL. 1° B'!AX20","v":0},{"$f":"'VAL. 1° B'!AY20","v":0},{"$f":"'VAL. 2° B'!J20","v":""},{"$f":"'VAL. 2° B'!Z20","v":""},{"$f":"'VAL. 2° B'!AP20","v":""},{"$f":"'VAL. 2° B'!AV20","v":""},{"$f":"'VAL. 2° B'!AW20","v":0},{"$f":"'VAL. 2° B'!AX20","v":0},{"$f":"'VAL. 2° B'!AY20","v":0},{"$f":"'VAL. 3° B'!J20","v":""},{"$f":"'VAL. 3° B'!Z20","v":""},{"$f":"'VAL. 3° B'!AP20","v":""},{"$f":"'VAL. 3° B'!AV20","v":""},{"$f":"'VAL. 3° B'!AW20","v":0},{"$f":"'VAL. 3° B'!AX20","v":0},{"$f":"'VAL. 3° B'!AY20","v":0},{"$f":"'VAL. 4° B'!J20","v":""},{"$f":"'VAL. 4° B'!Z20","v":""},{"$f":"'VAL. 4° B'!AP20","v":""},{"$f":"'VAL. 4° B'!AV20","v":""},{"$f":"'VAL. 4° B'!AW20","v":0},{"$f":"'VAL. 4° B'!AX20","v":0},{"$f":"'VAL. 4° B'!AY20","v":0},{"$f":"IFERROR(ROUND(AVERAGE(J16,Q16,X16,AE16),0),\"\")","v":0},{"$f":"IF(AF16=\"\",\"\",(IF(AND(AF16>=1,AF16<=50.499),\"REPROBADO\",IF(AND(AF16>=50.5,AF16<=100),\"APROBADO\"))))","v":false}]
[null,3,{"$f":"'C. FILIACION'!C16:D16","v":0},{"$f":"'VAL. 1° B'!J21","v":""},{"$f":"'VAL. 1° B'!Z21","v":""},{"$f":"'VAL. 1° B'!AP21","v":""},{"$f":"'VAL. 1° B'!AV21","v":""},{"$f":"'VAL. 1° B'!AW21","v":0},{"$f":"'VAL. 1° B'!AX21","v":0},{"$f":"'VAL. 1° B'!AY21","v":0},{"$f":"'VAL. 2° B'!J21","v":""},{"$f":"'VAL. 2° B'!Z21","v":""},{"$f":"'VAL. 2° B'!AP21","v":""},{"$f":"'VAL. 2° B'!AV21","v":""},{"$f":"'VAL. 2° B'!AW21","v":0},{"$f":"'VAL. 2° B'!AX21","v":0},{"$f":"'VAL. 2° B'!AY21","v":0},{"$f":"'VAL. 3° B'!J21","v":""},{"$f":"'VAL. 3° B'!Z21","v":""},{"$f":"'VAL. 3° B'!AP21","v":""},{"$f":"'VAL. 3° B'!AV21","v":""},{"$f":"'VAL. 3° B'!AW21","v":0},{"$f":"'VAL. 3° B'!AX21","v":0},{"$f":"'VAL. 3° B'!AY21","v":0},{"$f":"'VAL. 4° B'!J21","v":""},{"$f":"'VAL. 4° B'!Z21","v":""},{"$f":"'VAL. 4° B'!AP21","v":""},{"$f":"'VAL. 4° B'!AV21","v":""},{"$f":"'VAL. 4° B'!AW21","v":0},{"$f":"'VAL. 4° B'!AX21","v":0},{"$f":"'VAL. 4° B'!AY21","v":0},0,false]
[null,4,{"$f":"'C. FILIACION'!C17:D17","v":0},{"$f":"'VAL. 1° B'!J22","v":""},{"$f":"'VAL. 1° B'!Z22","v":""},{"$f":"'VAL. 1° B'!AP22","v":""},{"$f":"'VAL. 1° B'!AV22","v":""},{"$f":"'VAL. 1° B'!AW22","v":0},{"$f":"'VAL. 1° B'!AX22","v":0},{"$f":"'VAL. 1° B'!AY22","v":0},{"$f":"'VAL. 2° B'!J22","v":""},{"$f":"'VAL. 2° B'!Z22","v":""},{"$f":"'VAL. 2° B'!AP22","v":""},{"$f":"'VAL. 2° B'!AV22","v":""},{"$f":"'VAL. 2° B'!AW22","v":0},{"$f":"'VAL. 2° B'!AX22","v":0},{"$f":"'VAL. 2° B'!AY22","v":0},{"$f":"'VAL. 3° B'!J22","v":""},{"$f":"'VAL. 3° B'!Z22","v":""},{"$f":"'VAL. 3° B'!AP22","v":""},{"$f":"'VAL. 3° B'!AV22","v":""},{"$f":"'VAL. 3° B'!AW22","v":0},{"$f":"'VAL. 3° B'!AX22","v":0},{"$f":"'VAL. 3° B'!AY22","v":0},{"$f":"'VAL. 4° B'!J22","v":""},{"$f":"'VAL. 4° B'!Z22","v":""},{"$f":"'VAL. 4° B'!AP22","v":""},{"$f":"'VAL. 4° B'!AV22","v":""},{"$f":"'VAL. 4° B'!AW22","v":0},{"$f":"'VAL. 4° B'!AX22","v":0},{"$f":"'VAL. 4° B'!AY22","v":0},0,false]
[null,5,{"$f":"'C. FILIACION'!C18:D18","v":0},{"$f":"'VAL. 1° B'!J23","v":""},{"$f":"'VAL. 1° B'!Z23","v":""},{"$f":"'VAL. 1° B'!AP23","v":""},{"$f":"'VAL. 1° B'!AV23","v":""},{"$f":"'VAL. 1° B'!AW23","v":0},{"$f":"'VAL. 1° B'!AX23","v":0},{"$f":"'VAL. 1° B'!AY23","v":0},{"$f":"'VAL. 2° B'!J23","v":""},{"$f":"'VAL. 2° B'!Z23","v":""},{"$f":"'VAL. 2° B'!AP23","v":""},{"$f":"'VAL. 2° B'!AV23","v":""},{"$f":"'VAL. 2° B'!AW23","v":0},{"$f":"'VAL. 2° B'!AX23","v":0},{"$f":"'VAL. 2° B'!AY23","v":0},{"$f":"'VAL. 3° B'!J23","v":""},{"$f":"'VAL. 3° B'!Z23","v":""},{"$f":"'VAL. 3° B'!AP23","v":""},{"$f":"'VAL. 3° B'!AV23","v":""},{"$f":"'VAL. 3° B'!AW23","v":0},{"$f":"'VAL. 3° B'!AX23","v":0},{"$f":"'VAL. 3° B'!AY23","v":0},{"$f":"'VAL. 4° B'!J23","v":""},{"$f":"'VAL. 4° B'!Z23","v":""},{"$f":"'VAL. 4° B'!AP23","v":""},{"$f":"'VAL. 4° B'!AV23","v":""},{"$f":"'VAL. 4° B'!AW23","v":0},{"$f":"'VAL. 4° B'!AX23","v":0},{"$f":"'VAL. 4° B'!AY23","v":0},0,false]
[null,6,{"$f":"'C. FILIACION'!C19:D19","v":0},{"$f":"'VAL. 1° B'!J24","v":""},{"$f":"'VAL. 1° B'!Z24","v":""},{"$f":"'VAL. 1° B'!AP24","v":""},{"$f":"'VAL. 1° B'!AV24","v":""},{"$f":"'VAL. 1° B'!AW24","v":0},{"$f":"'VAL. 1° B'!AX24","v":0},{"$f":"'VAL. 1° B'!AY24","v":0},{"$f":"'VAL. 2° B'!J24","v":""},{"$f":"'VAL. 2° B'!Z24","v":""},{"$f":"'VAL. 2° B'!AP24","v":""},{"$f":"'VAL. 2° B'!AV24","v":""},{"$f":"'VAL. 2° B'!AW24","v":0},{"$f":"'VAL. 2° B'!AX24","v":0},{"$f":"'VAL. 2° B'!AY24","v":0},{"$f":"'VAL. 3° B'!J24","v":""},{"$f":"'VAL. 3° B'!Z24","v":""},{"$f":"'VAL. 3° B'!AP24","v":""},{"$f":"'VAL. 3° B'!AV24","v":""},{"$f":"'VAL. 3° B'!AW24","v":0},{"$f":"'VAL. 3° B'!AX24","v":0},{"$f":"'VAL. 3° B'!AY24","v":0},{"$f":"'VAL. 4° B'!J24","v":""},{"$f":"'VAL. 4° B'!Z24","v":""},{"$f":"'VAL. 4° B'!AP24","v":""},{"$f":"'VAL. 4° B'!AV24","v":""},{"$f":"'VAL. 4° B'!AW24","v":0},{"$f":"'VAL. 4° B'!AX24","v":0},{"$f":"'VAL. 4° B'!AY24","v":0},0,false]
[null,7,{"$f":"'C. FILIACION'!C20:D20","v":0},{"$f":"'VAL. 1° B'!J25","v":""},{"$f":"'VAL. 1° B'!Z25","v":""},{"$f":"'VAL. 1° B'!AP25","v":""},{"$f":"'VAL. 1° B'!AV25","v":""},{"$f":"'VAL. 1° B'!AW25","v":0},{"$f":"'VAL. 1° B'!AX25","v":0},{"$f":"'VAL. 1° B'!AY25","v":0},{"$f":"'VAL. 2° B'!J25","v":""},{"$f":"'VAL. 2° B'!Z25","v":""},{"$f":"'VAL. 2° B'!AP25","v":""},{"$f":"'VAL. 2° B'!AV25","v":""},{"$f":"'VAL. 2° B'!AW25","v":0},{"$f":"'VAL. 2° B'!AX25","v":0},{"$f":"'VAL. 2° B'!AY25","v":0},{"$f":"'VAL. 3° B'!J25","v":""},{"$f":"'VAL. 3° B'!Z25","v":""},{"$f":"'VAL. 3° B'!AP25","v":""},{"$f":"'VAL. 3° B'!AV25","v":""},{"$f":"'VAL. 3° B'!AW25","v":0},{"$f":"'VAL. 3° B'!AX25","v":0},{"$f":"'VAL. 3° B'!AY25","v":0},{"$f":"'VAL. 4° B'!J25","v":""},{"$f":"'VAL. 4° B'!Z25","v":""},{"$f":"'VAL. 4° B'!AP25","v":""},{"$f":"'VAL. 4° B'!AV25","v":""},{"$f":"'VAL. 4° B'!AW25","v":0},{"$f":"'VAL. 4° B'!AX25","v":0},{"$f":"'VAL. 4° B'!AY25","v":0},0,false]
[null,8,{"$f":"'C. FILIACION'!C21:D21","v":0},{"$f":"'VAL. 1° B'!J26","v":""},{"$f":"'VAL. 1° B'!Z26","v":""},{"$f":"'VAL. 1° B'!AP26","v":""},{"$f":"'VAL. 1° B'!AV26","v":""},{"$f":"'VAL. 1° B'!AW26","v":0},{"$f":"'VAL. 1° B'!AX26","v":0},{"$f":"'VAL. 1° B'!AY26","v":0},{"$f":"'VAL. 2° B'!J26","v":""},{"$f":"'VAL. 2° B'!Z26","v":""},{"$f":"'VAL. 2° B'!AP26","v":""},{"$f":"'VAL. 2° B'!AV26","v":""},{"$f":"'VAL. 2° B'!AW26","v":0},{"$f":"'VAL. 2° B'!AX26","v":0},{"$f":"'VAL. 2° B'!AY26","v":0},{"$f":"'VAL. 3° B'!J26","v":""},{"$f":"'VAL. 3° B'!Z26","v":""},{"$f":"'VAL. 3° B'!AP26","v":""},{"$f":"'VAL. 3° B'!AV26","v":""},{"$f":"'VAL. 3° B'!AW26","v":0},{"$f":"'VAL. 3° B'!AX26","v":0},{"$f":"'VAL. 3° B'!AY26","v":0},{"$f":"'VAL. 4° B'!J26","v":""},{"$f":"'VAL. 4° B'!Z26","v":""},{"$f":"'VAL. 4° B'!AP26","v":""},{"$f":"'VAL. 4° B'!AV26","v":""},{"$f":"'VAL. 4° B'!AW26","v":0},{"$f":"'VAL. 4° B'!AX26","v":0},{"$f":"'VAL. 4° B'!AY26","v":0},0,false]
[null,9,{"$f":"'C. FILIACION'!C22:D22","v":0},{"$f":"'VAL. 1° B'!J27","v":""},{"$f":"'VAL. 1° B'!Z27","v":""},{"$f":"'VAL. 1° B'!AP27","v":""},{"$f":"'VAL. 1° B'!AV27","v":""},{"$f":"'VAL. 1° B'!AW27","v":0},{"$f":"'VAL. 1° B'!AX27","v":0},{"$f":"'VAL. 1° B'!AY27","v":0},{"$f":"'VAL. 2° B'!J27","v":""},{"$f":"'VAL. 2° B'!Z27","v":""},{"$f":"'VAL. 2° B'!AP27","v":""},{"$f":"'VAL. 2° B'!AV27","v":""},{"$f":"'VAL. 2° B'!AW27","v":0},{"$f":"'VAL. 2° B'!AX27","v":0},{"$f":"'VAL. 2° B'!AY27","v":0},{"$f":"'VAL. 3° B'!J27","v":""},{"$f":"'VAL. 3° B'!Z27","v":""},{"$f":"'VAL. 3° B'!AP27","v":""},{"$f":"'VAL. 3° B'!AV27","v":""},{"$f":"'VAL. 3° B'!AW27","v":0},{"$f":"'VAL. 3° B'!AX27","v":0},{"$f":"'VAL. 3° B'!AY27","v":0},{"$f":"'VAL. 4° B'!J27","v":""},{"$f":"'VAL. 4° B'!Z27","v":""},{"$f":"'VAL. 4° B'!AP27","v":""},{"$f":"'VAL. 4° B'!AV27","v":""},{"$f":"'VAL. 4° B'!AW27","v":0},{"$f":"'VAL. 4° B'!AX27","v":0},{"$f":"'VAL. 4° B'!AY27","v":0},0,false]
[null,10,{"$f":"'C. FILIACION'!C23:D23","v":0},{"$f":"'VAL. 1° B'!J28","v":""},{"$f":"'VAL. 1° B'!Z28","v":""},{"$f":"'VAL. 1° B'!AP28","v":""},{"$f":"'VAL. 1° B'!AV28","v":""},{"$f":"'VAL. 1° B'!AW28","v":0},{"$f":"'VAL. 1° B'!AX28","v":0},{"$f":"'VAL. 1° B'!AY28","v":0},{"$f":"'VAL. 2° B'!J28","v":""},{"$f":"'VAL. 2° B'!Z28","v":""},{"$f":"'VAL. 2° B'!AP28","v":""},{"$f":"'VAL. 2° B'!AV28","v":""},{"$f":"'VAL. 2° B'!AW28","v":0},{"$f":"'VAL. 2° B'!AX28","v":0},{"$f":"'VAL. 2° B'!AY28","v":0},{"$f":"'VAL. 3° B'!J28","v":""},{"$f":"'VAL. 3° B'!Z28","v":""},{"$f":"'VAL. 3° B'!AP28","v":""},{"$f":"'VAL. 3° B'!AV28","v":""},{"$f":"'VAL. 3° B'!AW28","v":0},{"$f":"'VAL. 3° B'!AX28","v":0},{"$f":"'VAL. 3° B'!AY28","v":0},{"$f":"'VAL. 4° B'!J28","v":""},{"$f":"'VAL. 4° B'!Z28","v":""},{"$f":"'VAL. 4° B'!AP28","v":""},{"$f":"'VAL. 4° B'!AV28","v":""},{"$f":"'VAL. 4° B'!AW28","v":0},{"$f":"'VAL. 4° B'!AX28","v":0},{"$f":"'VAL. 4° B'!AY28","v":0},0,false]
[null,11,{"$f":"'C. FILIACION'!C24:D24","v":0},{"$f":"'VAL. 1° B'!J29","v":""},{"$f":"'VAL. 1° B'!Z29","v":""},{"$f":"'VAL. 1° B'!AP29","v":""},{"$f":"'VAL. 1° B'!AV29","v":""},{"$f":"'VAL. 1° B'!AW29","v":0},{"$f":"'VAL. 1° B'!AX29","v":0},{"$f":"'VAL. 1° B'!AY29","v":0},{"$f":"'VAL. 2° B'!J29","v":""},{"$f":"'VAL. 2° B'!Z29","v":""},{"$f":"'VAL. 2° B'!AP29","v":""},{"$f":"'VAL. 2° B'!AV29","v":""},{"$f":"'VAL. 2° B'!AW29","v":0},{"$f":"'VAL. 2° B'!AX29","v":0},{"$f":"'VAL. 2° B'!AY29","v":0},{"$f":"'VAL. 3° B'!J29","v":""},{"$f":"'VAL. 3° B'!Z29","v":""},{"$f":"'VAL. 3° B'!AP29","v":""},{"$f":"'VAL. 3° B'!AV29","v":""},{"$f":"'VAL. 3° B'!AW29","v":0},{"$f":"'VAL. 3° B'!AX29","v":0},{"$f":"'VAL. 3° B'!AY29","v":0},{"$f":"'VAL. 4° B'!J29","v":""},{"$f":"'VAL. 4° B'!Z29","v":""},{"$f":"'VAL. 4° B'!AP29","v":""},{"$f":"'VAL. 4° B'!AV29","v":""},{"$f":"'VAL. 4° B'!AW29","v":0},{"$f":"'VAL. 4° B'!AX29","v":0},{"$f":"'VAL. 4° B'!AY29","v":0},0,false]
[null,12,{"$f":"'C. FILIACION'!C25:D25","v":0},{"$f":"'VAL. 1° B'!J30","v":""},{"$f":"'VAL. 1° B'!Z30","v":""},{"$f":"'VAL. 1° B'!AP30","v":""},{"$f":"'VAL. 1° B'!AV30","v":""},{"$f":"'VAL. 1° B'!AW30","v":0},{"$f":"'VAL. 1° B'!AX30","v":0},{"$f":"'VAL. 1° B'!AY30","v":0},{"$f":"'VAL. 2° B'!J30","v":""},{"$f":"'VAL. 2° B'!Z30","v":""},{"$f":"'VAL. 2° B'!AP30","v":""},{"$f":"'VAL. 2° B'!AV30","v":""},{"$f":"'VAL. 2° B'!AW30","v":0},{"$f":"'VAL. 2° B'!AX30","v":0},{"$f":"'VAL. 2° B'!AY30","v":0},{"$f":"'VAL. 3° B'!J30","v":""},{"$f":"'VAL. 3° B'!Z30","v":""},{"$f":"'VAL. 3° B'!AP30","v":""},{"$f":"'VAL. 3° B'!AV30","v":""},{"$f":"'VAL. 3° B'!AW30","v":0},{"$f":"'VAL. 3° B'!AX30","v":0},{"$f":"'VAL. 3° B'!AY30","v":0},{"$f":"'VAL. 4° B'!J30","v":""},{"$f":"'VAL. 4° B'!Z30","v":""},{"$f":"'VAL. 4° B'!AP30","v":""},{"$f":"'VAL. 4° B'!AV30","v":""},{"$f":"'VAL. 4° B'!AW30","v":0},{"$f":"'VAL. 4° B'!AX30","v":0},{"$f":"'VAL. 4° B'!AY30","v":0},0,false]
[null,13,{"$f":"'C. FILIACION'!C26:D26","v":0},{"$f":"'VAL. 1° B'!J31","v":""},{"$f":"'VAL. 1° B'!Z31","v":""},{"$f":"'VAL. 1° B'!AP31","v":""},{"$f":"'VAL. 1° B'!AV31","v":""},{"$f":"'VAL. 1° B'!AW31","v":0},{"$f":"'VAL. 1° B'!AX31","v":0},{"$f":"'VAL. 1° B'!AY31","v":0},{"$f":"'VAL. 2° B'!J31","v":""},{"$f":"'VAL. 2° B'!Z31","v":""},{"$f":"'VAL. 2° B'!AP31","v":""},{"$f":"'VAL. 2° B'!AV31","v":""},{"$f":"'VAL. 2° B'!AW31","v":0},{"$f":"'VAL. 2° B'!AX31","v":0},{"$f":"'VAL. 2° B'!AY31","v":0},{"$f":"'VAL. 3° B'!J31","v":""},{"$f":"'VAL. 3° B'!Z31","v":""},{"$f":"'VAL. 3° B'!AP31","v":""},{"$f":"'VAL. 3° B'!AV31","v":""},{"$f":"'VAL. 3° B'!AW31","v":0},{"$f":"'VAL. 3° B'!AX31","v":0},{"$f":"'VAL. 3° B'!AY31","v":0},{"$f":"'VAL. 4° B'!J31","v":""},{"$f":"'VAL. 4° B'!Z31","v":""},{"$f":"'VAL. 4° B'!AP31","v":""},{"$f":"'VAL. 4° B'!AV31","v":""},{"$f":"'VAL. 4° B'!AW31","v":0},{"$f":"'VAL. 4° B'!AX31","v":0},{"$f":"'VAL. 4° B'!AY31","v":0},0,false]
[null,14,{"$f":"'C. FILIACION'!C27:D27","v":0},{"$f":"'VAL. 1° B'!J32","v":""},{"$f":"'VAL. 1° B'!Z32","v":""},{"$f":"'VAL. 1° B'!AP32","v":""},{"$f":"'VAL. 1° B'!AV32","v":""},{"$f":"'VAL. 1° B'!AW32","v":0},{"$f":"'VAL. 1° B'!AX32","v":0},{"$f":"'VAL. 1° B'!AY32","v":0},{"$f":"'VAL. 2° B'!J32","v":""},{"$f":"'VAL. 2° B'!Z32","v":""},{"$f":"'VAL. 2° B'!AP32","v":""},{"$f":"'VAL. 2° B'!AV32","v":""},{"$f":"'VAL. 2° B'!AW32","v":0},{"$f":"'VAL. 2° B'!AX32","v":0},{"$f":"'VAL. 2° B'!AY32","v":0},{"$f":"'VAL. 3° B'!J32","v":""},{"$f":"'VAL. 3° B'!Z32","v":""},{"$f":"'VAL. 3° B'!AP32","v":""},{"$f":"'VAL. 3° B'!AV32","v":""},{"$f":"'VAL. 3° B'!AW32","v":0},{"$f":"'VAL. 3° B'!AX32","v":0},{"$f":"'VAL. 3° B'!AY32","v":0},{"$f":"'VAL. 4° B'!J32","v":""},{"$f":"'VAL. 4° B'!Z32","v":""},{"$f":"'VAL. 4° B'!AP32","v":""},{"$f":"'VAL. 4° B'!AV32","v":""},{"$f":"'VAL. 4° B'!AW32","v":0},{"$f":"'VAL. 4° B'!AX32","v":0},{"$f":"'VAL. 4° B'!AY32","v":0},0,false]
[null,15,{"$f":"'C. FILIACION'!C28:D28","v":0},{"$f":"'VAL. 1° B'!J33","v":""},{"$f":"'VAL. 1° B'!Z33","v":""},{"$f":"'VAL. 1° B'!AP33","v":""},{"$f":"'VAL. 1° B'!AV33","v":""},{"$f":"'VAL. 1° B'!AW33","v":0},{"$f":"'VAL. 1° B'!AX33","v":0},{"$f":"'VAL. 1° B'!AY33","v":0},{"$f":"'VAL. 2° B'!J33","v":""},{"$f":"'VAL. 2° B'!Z33","v":""},{"$f":"'VAL. 2° B'!AP33","v":""},{"$f":"'VAL. 2° B'!AV33","v":""},{"$f":"'VAL. 2° B'!AW33","v":0},{"$f":"'VAL. 2° B'!AX33","v":0},{"$f":"'VAL. 2° B'!AY33","v":0},{"$f":"'VAL. 3° B'!J33","v":""},{"$f":"'VAL. 3° B'!Z33","v":""},{"$f":"'VAL. 3° B'!AP33","v":""},{"$f":"'VAL. 3° B'!AV33","v":""},{"$f":"'VAL. 3° B'!AW33","v":0},{"$f":"'VAL. 3° B'!AX33","v":0},{"$f":"'VAL. 3° B'!AY33","v":0},{"$f":"'VAL. 4° B'!J33","v":""},{"$f":"'VAL. 4° B'!Z33","v":""},{"$f":"'VAL. 4° B'!AP33","v":""},{"$f":"'VAL. 4° B'!AV33","v":""},{"$f":"'VAL. 4° B'!AW33","v":0},{"$f":"'VAL. 4° B'!AX33","v":0},{"$f":"'VAL. 4° B'!AY33","v":0},0,false]
[null,16,{"$f":"'C. FILIACION'!C29:D29","v":0},{"$f":"'VAL. 1° B'!J34","v":""},{"$f":"'VAL. 1° B'!Z34","v":""},{"$f":"'VAL. 1° B'!AP34","v":""},{"$f":"'VAL. 1° B'!AV34","v":""},{"$f":"'VAL. 1° B'!AW34","v":0},{"$f":"'VAL. 1° B'!AX34","v":0},{"$f":"'VAL. 1° B'!AY34","v":0},{"$f":"'VAL. 2° B'!J34","v":""},{"$f":"'VAL. 2° B'!Z34","v":""},{"$f":"'VAL. 2° B'!AP34","v":""},{"$f":"'VAL. 2° B'!AV34","v":""},{"$f":"'VAL. 2° B'!AW34","v":0},{"$f":"'VAL. 2° B'!AX34","v":0},{"$f":"'VAL. 2° B'!AY34","v":0},{"$f":"'VAL. 3° B'!J34","v":""},{"$f":"'VAL. 3° B'!Z34","v":""},{"$f":"'VAL. 3° B'!AP34","v":""},{"$f":"'VAL. 3° B'!AV34","v":""},{"$f":"'VAL. 3° B'!AW34","v":0},{"$f":"'VAL. 3° B'!AX34","v":0},{"$f":"'VAL. 3° B'!AY34","v":0},{"$f":"'VAL. 4° B'!J34","v":""},{"$f":"'VAL. 4° B'!Z34","v":""},{"$f":"'VAL. 4° B'!AP34","v":""},{"$f":"'VAL. 4° B'!AV34","v":""},{"$f":"'VAL. 4° B'!AW34","v":0},{"$f":"'VAL. 4° B'!AX34","v":0},{"$f":"'VAL. 4° B'!AY34","v":0},0,false]
[null,17,{"$f":"'C. FILIACION'!C30:D30","v":0},{"$f":"'VAL. 1° B'!J35","v":""},{"$f":"'VAL. 1° B'!Z35","v":""},{"$f":"'VAL. 1° B'!AP35","v":""},{"$f":"'VAL. 1° B'!AV35","v":""},{"$f":"'VAL. 1° B'!AW35","v":0},{"$f":"'VAL. 1° B'!AX35","v":0},{"$f":"'VAL. 1° B'!AY35","v":0},{"$f":"'VAL. 2° B'!J35","v":""},{"$f":"'VAL. 2° B'!Z35","v":""},{"$f":"'VAL. 2° B'!AP35","v":""},{"$f":"'VAL. 2° B'!AV35","v":""},{"$f":"'VAL. 2° B'!AW35","v":0},{"$f":"'VAL. 2° B'!AX35","v":0},{"$f":"'VAL. 2° B'!AY35","v":0},{"$f":"'VAL. 3° B'!J35","v":""},{"$f":"'VAL. 3° B'!Z35","v":""},{"$f":"'VAL. 3° B'!AP35","v":""},{"$f":"'VAL. 3° B'!AV35","v":""},{"$f":"'VAL. 3° B'!AW35","v":0},{"$f":"'VAL. 3° B'!AX35","v":0},{"$f":"'VAL. 3° B'!AY35","v":0},{"$f":"'VAL. 4° B'!J35","v":""},{"$f":"'VAL. 4° B'!Z35","v":""},{"$f":"'VAL. 4° B'!AP35","v":""},{"$f":"'VAL. 4° B'!AV35","v":""},{"$f":"'VAL. 4° B'!AW35","v":0},{"$f":"'VAL. 4° B'!AX35","v":0},{"$f":"'VAL. 4° B'!AY35","v":0},0,false]
[null,18,{"$f":"'C. FILIACION'!C31:D31","v":0},{"$f":"'VAL. 1° B'!J36","v":""},{"$f":"'VAL. 1° B'!Z36","v":""},{"$f":"'VAL. 1° B'!AP36","v":""},{"$f":"'VAL. 1° B'!AV36","v":""},{"$f":"'VAL. 1° B'!AW36","v":0},{"$f":"'VAL. 1° B'!AX36","v":0},{"$f":"'VAL. 1° B'!AY36","v":0},{"$f":"'VAL. 2° B'!J36","v":""},{"$f":"'VAL. 2° B'!Z36","v":""},{"$f":"'VAL. 2° B'!AP36","v":""},{"$f":"'VAL. 2° B'!AV36","v":""},{"$f":"'VAL. 2° B'!AW36","v":0},{"$f":"'VAL. 2° B'!AX36","v":0},{"$f":"'VAL. 2° B'!AY36","v":0},{"$f":"'VAL. 3° B'!J36","v":""},{"$f":"'VAL. 3° B'!Z36","v":""},{"$f":"'VAL. 3° B'!AP36","v":""},{"$f":"'VAL. 3° B'!AV36","v":""},{"$f":"'VAL. 3° B'!AW36","v":0},{"$f":"'VAL. 3° B'!AX36","v":0},{"$f":"'VAL. 3° B'!AY36","v":0},{"$f":"'VAL. 4° B'!J36","v":""},{"$f":"'VAL. 4° B'!Z36","v":""},{"$f":"'VAL. 4° B'!AP36","v":""},{"$f":"'VAL. 4° B'!AV36","v":""},{"$f":"'VAL. 4° B'!AW36","v":0},{"$f":"'VAL. 4° B'!AX36","v":0},{"$f":"'VAL. 4° B'!AY36","v":0},0,false]
[null,19,{"$f":"'C. FILIACION'!C32:D32","v":0},{"$f":"'VAL. 1° B'!J37","v":""},{"$f":"'VAL. 1° B'!Z37","v":""},{"$f":"'VAL. 1° B'!AP37","v":""},{"$f":"'VAL. 1° B'!AV37","v":""},{"$f":"'VAL. 1° B'!AW37","v":0},{"$f":"'VAL. 1° B'!AX37","v":0},{"$f":"'VAL. 1° B'!AY37","v":0},{"$f":"'VAL. 2° B'!J37","v":""},{"$f":"'VAL. 2° B'!Z37","v":""},{"$f":"'VAL. 2° B'!AP37","v":""},{"$f":"'VAL. 2° B'!AV37","v":""},{"$f":"'VAL. 2° B'!AW37","v":0},{"$f":"'VAL. 2° B'!AX37","v":0},{"$f":"'VAL. 2° B'!AY37","v":0},{"$f":"'VAL. 3° B'!J37","v":""},{"$f":"'VAL. 3° B'!Z37","v":""},{"$f":"'VAL. 3° B'!AP37","v":""},{"$f":"'VAL. 3° B'!AV37","v":""},{"$f":"'VAL. 3° B'!AW37","v":0},{"$f":"'VAL. 3° B'!AX37","v":0},{"$f":"'VAL. 3° B'!AY37","v":0},{"$f":"'VAL. 4° B'!J37","v":""},{"$f":"'VAL. 4° B'!Z37","v":""},{"$f":"'VAL. 4° B'!AP37","v":""},{"$f":"'VAL. 4° B'!AV37","v":""},{"$f":"'VAL. 4° B'!AW37","v":0},{"$f":"'VAL. 4° B'!AX37","v":0},{"$f":"'VAL. 4° B'!AY37","v":0},0,false]
[null,20,{"$f":"'C. FILIACION'!C33:D33","v":0},{"$f":"'VAL. 1° B'!J38","v":""},{"$f":"'VAL. 1° B'!Z38","v":""},{"$f":"'VAL. 1° B'!AP38","v":""},{"$f":"'VAL. 1° B'!AV38","v":""},{"$f":"'VAL. 1° B'!AW38","v":0},{"$f":"'VAL. 1° B'!AX38","v":0},{"$f":"'VAL. 1° B'!AY38","v":0},{"$f":"'VAL. 2° B'!J38","v":""},{"$f":"'VAL. 2° B'!Z38","v":""},{"$f":"'VAL. 2° B'!AP38","v":""},{"$f":"'VAL. 2° B'!AV38","v":""},{"$f":"'VAL. 2° B'!AW38","v":0},{"$f":"'VAL. 2° B'!AX38","v":0},{"$f":"'VAL. 2° B'!AY38","v":0},{"$f":"'VAL. 3° B'!J38","v":""},{"$f":"'VAL. 3° B'!Z38","v":""},{"$f":"'VAL. 3° B'!AP38","v":""},{"$f":"'VAL. 3° B'!AV38","v":""},{"$f":"'VAL. 3° B'!AW38","v":0},{"$f":"'VAL. 3° B'!AX38","v":0},{"$f":"'VAL. 3° B'!AY38","v":0},{"$f":"'VAL. 4° B'!J38","v":""},{"$f":"'VAL. 4° B'!Z38","v":""},{"$f":"'VAL. 4° B'!AP38","v":""},{"$f":"'VAL. 4° B'!AV38","v":""},{"$f":"'VAL. 4° B'!AW38","v":0},{"$f":"'VAL. 4° B'!AX38","v":0},{"$f":"'VAL. 4° B'!AY38","v":0},0,false]
[null,21,{"$f":"'C. FILIACION'!C34:D34","v":0},{"$f":"'VAL. 1° B'!J39","v":""},{"$f":"'VAL. 1° B'!Z39","v":""},{"$f":"'VAL. 1° B'!AP39","v":""},{"$f":"'VAL. 1° B'!AV39","v":""},{"$f":"'VAL. 1° B'!AW39","v":0},{"$f":"'VAL. 1° B'!AX39","v":0},{"$f":"'VAL. 1° B'!AY39","v":0},{"$f":"'VAL. 2° B'!J39","v":""},{"$f":"'VAL. 2° B'!Z39","v":""},{"$f":"'VAL. 2° B'!AP39","v":""},{"$f":"'VAL. 2° B'!AV39","v":""},{"$f":"'VAL. 2° B'!AW39","v":0},{"$f":"'VAL. 2° B'!AX39","v":0},{"$f":"'VAL. 2° B'!AY39","v":0},{"$f":"'VAL. 3° B'!J39","v":""},{"$f":"'VAL. 3° B'!Z39","v":""},{"$f":"'VAL. 3° B'!AP39","v":""},{"$f":"'VAL. 3° B'!AV39","v":""},{"$f":"'VAL. 3° B'!AW39","v":0},{"$f":"'VAL. 3° B'!AX39","v":0},{"$f":"'VAL. 3° B'!AY39","v":0},{"$f":"'VAL. 4° B'!J39","v":""},{"$f":"'VAL. 4° B'!Z39","v":""},{"$f":"'VAL. 4° B'!AP39","v":""},{"$f":"'VAL. 4° B'!AV39","v":""},{"$f":"'VAL. 4° B'!AW39","v":0},{"$f":"'VAL. 4° B'!AX39","v":0},{"$f":"'VAL. 4° B'!AY39","v":0},0,false]
[null,22,{"$f":"'C. FILIACION'!C35:D35","v":0},{"$f":"'VAL. 1° B'!J40","v":""},{"$f":"'VAL. 1° B'!Z40","v":""},{"$f":"'VAL. 1° B'!AP40","v":""},{"$f":"'VAL. 1° B'!AV40","v":""},{"$f":"'VAL. 1° B'!AW40","v":0},{"$f":"'VAL. 1° B'!AX40","v":0},{"$f":"'VAL. 1° B'!AY40","v":0},{"$f":"'VAL. 2° B'!J40","v":""},{"$f":"'VAL. 2° B'!Z40","v":""},{"$f":"'VAL. 2° B'!AP40","v":""},{"$f":"'VAL. 2° B'!AV40","v":""},{"$f":"'VAL. 2° B'!AW40","v":0},{"$f":"'VAL. 2° B'!AX40","v":0},{"$f":"'VAL. 2° B'!AY40","v":0},{"$f":"'VAL. 3° B'!J40","v":""},{"$f":"'VAL. 3° B'!Z40","v":""},{"$f":"'VAL. 3° B'!AP40","v":""},{"$f":"'VAL. 3° B'!AV40","v":""},{"$f":"'VAL. 3° B'!AW40","v":0},{"$f":"'VAL. 3° B'!AX40","v":0},{"$f":"'VAL. 3° B'!AY40","v":0},{"$f":"'VAL. 4° B'!J40","v":""},{"$f":"'VAL. 4° B'!Z40","v":""},{"$f":"'VAL. 4° B'!AP40","v":""},{"$f":"'VAL. 4° B'!AV40","v":""},{"$f":"'VAL. 4° B'!AW40","v":0},{"$f":"'VAL. 4° B'!AX40","v":0},{"$f":"'VAL. 4° B'!AY40","v":0},0,false]
[null,23,{"$f":"'C. FILIACION'!C36:D36","v":0},{"$f":"'VAL. 1° B'!J41","v":""},{"$f":"'VAL. 1° B'!Z41","v":""},{"$f":"'VAL. 1° B'!AP41","v":""},{"$f":"'VAL. 1° B'!AV41","v":""},{"$f":"'VAL. 1° B'!AW41","v":0},{"$f":"'VAL. 1° B'!AX41","v":0},{"$f":"'VAL. 1° B'!AY41","v":0},{"$f":"'VAL. 2° B'!J41","v":""},{"$f":"'VAL. 2° B'!Z41","v":""},{"$f":"'VAL. 2° B'!AP41","v":""},{"$f":"'VAL. 2° B'!AV41","v":""},{"$f":"'VAL. 2° B'!AW41","v":0},{"$f":"'VAL. 2° B'!AX41","v":0},{"$f":"'VAL. 2° B'!AY41","v":0},{"$f":"'VAL. 3° B'!J41","v":""},{"$f":"'VAL. 3° B'!Z41","v":""},{"$f":"'VAL. 3° B'!AP41","v":""},{"$f":"'VAL. 3° B'!AV41","v":""},{"$f":"'VAL. 3° B'!AW41","v":0},{"$f":"'VAL. 3° B'!AX41","v":0},{"$f":"'VAL. 3° B'!AY41","v":0},{"$f":"'VAL. 4° B'!J41","v":""},{"$f":"'VAL. 4° B'!Z41","v":""},{"$f":"'VAL. 4° B'!AP41","v":""},{"$f":"'VAL. 4° B'!AV41","v":""},{"$f":"'VAL. 4° B'!AW41","v":0},{"$f":"'VAL. 4° B'!AX41","v":0},{"$f":"'VAL. 4° B'!AY41","v":0},0,false]
[null,24,{"$f":"'C. FILIACION'!C37:D37","v":0},{"$f":"'VAL. 1° B'!J42","v":""},{"$f":"'VAL. 1° B'!Z42","v":""},{"$f":"'VAL. 1° B'!AP42","v":""},{"$f":"'VAL. 1° B'!AV42","v":""},{"$f":"'VAL. 1° B'!AW42","v":0},{"$f":"'VAL. 1° B'!AX42","v":0},{"$f":"'VAL. 1° B'!AY42","v":0},{"$f":"'VAL. 2° B'!J42","v":""},{"$f":"'VAL. 2° B'!Z42","v":""},{"$f":"'VAL. 2° B'!AP42","v":""},{"$f":"'VAL. 2° B'!AV42","v":""},{"$f":"'VAL. 2° B'!AW42","v":0},{"$f":"'VAL. 2° B'!AX42","v":0},{"$f":"'VAL. 2° B'!AY42","v":0},{"$f":"'VAL. 3° B'!J42","v":""},{"$f":"'VAL. 3° B'!Z42","v":""},{"$f":"'VAL. 3° B'!AP42","v":""},{"$f":"'VAL. 3° B'!AV42","v":""},{"$f":"'VAL. 3° B'!AW42","v":0},{"$f":"'VAL. 3° B'!AX42","v":0},{"$f":"'VAL. 3° B'!AY42","v":0},{"$f":"'VAL. 4° B'!J42","v":""},{"$f":"'VAL. 4° B'!Z42","v":""},{"$f":"'VAL. 4° B'!AP42","v":""},{"$f":"'VAL. 4° B'!AV42","v":""},{"$f":"'VAL. 4° B'!AW42","v":0},{"$f":"'VAL. 4° B'!AX42","v":0},{"$f":"'VAL. 4° B'!AY42","v":0},0,false]
[null,25,{"$f":"'C. FILIACION'!C38:D38","v":0},{"$f":"'VAL. 1° B'!J43","v":""},{"$f":"'VAL. 1° B'!Z43","v":""},{"$f":"'VAL. 1° B'!AP43","v":""},{"$f":"'VAL. 1° B'!AV43","v":""},{"$f":"'VAL. 1° B'!AW43","v":0},{"$f":"'VAL. 1° B'!AX43","v":0},{"$f":"'VAL. 1° B'!AY43","v":0},{"$f":"'VAL. 2° B'!J43","v":""},{"$f":"'VAL. 2° B'!Z43","v":""},{"$f":"'VAL. 2° B'!AP43","v":""},{"$f":"'VAL. 2° B'!AV43","v":""},{"$f":"'VAL. 2° B'!AW43","v":0},{"$f":"'VAL. 2° B'!AX43","v":0},{"$f":"'VAL. 2° B'!AY43","v":0},{"$f":"'VAL. 3° B'!J43","v":""},{"$f":"'VAL. 3° B'!Z43","v":""},{"$f":"'VAL. 3° B'!AP43","v":""},{"$f":"'VAL. 3° B'!AV43","v":""},{"$f":"'VAL. 3° B'!AW43","v":0},{"$f":"'VAL. 3° B'!AX43","v":0},{"$f":"'VAL. 3° B'!AY43","v":0},{"$f":"'VAL. 4° B'!J43","v":""},{"$f":"'VAL. 4° B'!Z43","v":""},{"$f":"'VAL. 4° B'!AP43","v":""},{"$f":"'VAL. 4° B'!AV43","v":""},{"$f":"'VAL. 4° B'!AW43","v":0},{"$f":"'VAL. 4° B'!AX43","v":0},{"$f":"'VAL. 4° B'!AY43","v":0},0,false]
[null,26,{"$f":"'C. FILIACION'!C39:D39","v":0},{"$f":"'VAL. 1° B'!J44","v":""},{"$f":"'VAL. 1° B'!Z44","v":""},{"$f":"'VAL. 1° B'!AP44","v":""},{"$f":"'VAL. 1° B'!AV44","v":""},{"$f":"'VAL. 1° B'!AW44","v":0},{"$f":"'VAL. 1° B'!AX44","v":0},{"$f":"'VAL. 1° B'!AY44","v":0},{"$f":"'VAL. 2° B'!J44","v":""},{"$f":"'VAL. 2° B'!Z44","v":""},{"$f":"'VAL. 2° B'!AP44","v":""},{"$f":"'VAL. 2° B'!AV44","v":""},{"$f":"'VAL. 2° B'!AW44","v":0},{"$f":"'VAL. 2° B'!AX44","v":0},{"$f":"'VAL. 2° B'!AY44","v":0},{"$f":"'VAL. 3° B'!J44","v":""},{"$f":"'VAL. 3° B'!Z44","v":""},{"$f":"'VAL. 3° B'!AP44","v":""},{"$f":"'VAL. 3° B'!AV44","v":""},{"$f":"'VAL. 3° B'!AW44","v":0},{"$f":"'VAL. 3° B'!AX44","v":0},{"$f":"'VAL. 3° B'!AY44","v":0},{"$f":"'VAL. 4° B'!J44","v":""},{"$f":"'VAL. 4° B'!Z44","v":""},{"$f":"'VAL. 4° B'!AP44","v":""},{"$f":"'VAL. 4° B'!AV44","v":""},{"$f":"'VAL. 4° B'!AW44","v":0},{"$f":"'VAL. 4° B'!AX44","v":0},{"$f":"'VAL. 4° B'!AY44","v":0},0,false]
[null,27,{"$f":"'C. FILIACION'!C40:D40","v":0},{"$f":"'VAL. 1° B'!J45","v":""},{"$f":"'VAL. 1° B'!Z45","v":""},{"$f":"'VAL. 1° B'!AP45","v":""},{"$f":"'VAL. 1° B'!AV45","v":""},{"$f":"'VAL. 1° B'!AW45","v":0},{"$f":"'VAL. 1° B'!AX45","v":0},{"$f":"'VAL. 1° B'!AY45","v":0},{"$f":"'VAL. 2° B'!J45","v":""},{"$f":"'VAL. 2° B'!Z45","v":""},{"$f":"'VAL. 2° B'!AP45","v":""},{"$f":"'VAL. 2° B'!AV45","v":""},{"$f":"'VAL. 2° B'!AW45","v":0},{"$f":"'VAL. 2° B'!AX45","v":0},{"$f":"'VAL. 2° B'!AY45","v":0},{"$f":"'VAL. 3° B'!J45","v":""},{"$f":"'VAL. 3° B'!Z45","v":""},{"$f":"'VAL. 3° B'!AP45","v":""},{"$f":"'VAL. 3° B'!AV45","v":""},{"$f":"'VAL. 3° B'!AW45","v":0},{"$f":"'VAL. 3° B'!AX45","v":0},{"$f":"'VAL. 3° B'!AY45","v":0},{"$f":"'VAL. 4° B'!J45","v":""},{"$f":"'VAL. 4° B'!Z45","v":""},{"$f":"'VAL. 4° B'!AP45","v":""},{"$f":"'VAL. 4° B'!AV45","v":""},{"$f":"'VAL. 4° B'!AW45","v":0},{"$f":"'VAL. 4° B'!AX45","v":0},{"$f":"'VAL. 4° B'!AY45","v":0},0,false]
[null,28,{"$f":"'C. FILIACION'!C41:D41","v":0},{"$f":"'VAL. 1° B'!J46","v":""},{"$f":"'VAL. 1° B'!Z46","v":""},{"$f":"'VAL. 1° B'!AP46","v":""},{"$f":"'VAL. 1° B'!AV46","v":""},{"$f":"'VAL. 1° B'!AW46","v":0},{"$f":"'VAL. 1° B'!AX46","v":0},{"$f":"'VAL. 1° B'!AY46","v":0},{"$f":"'VAL. 2° B'!J46","v":""},{"$f":"'VAL. 2° B'!Z46","v":""},{"$f":"'VAL. 2° B'!AP46","v":""},{"$f":"'VAL. 2° B'!AV46","v":""},{"$f":"'VAL. 2° B'!AW46","v":0},{"$f":"'VAL. 2° B'!AX46","v":0},{"$f":"'VAL. 2° B'!AY46","v":0},{"$f":"'VAL. 3° B'!J46","v":""},{"$f":"'VAL. 3° B'!Z46","v":""},{"$f":"'VAL. 3° B'!AP46","v":""},{"$f":"'VAL. 3° B'!AV46","v":""},{"$f":"'VAL. 3° B'!AW46","v":0},{"$f":"'VAL. 3° B'!AX46","v":0},{"$f":"'VAL. 3° B'!AY46","v":0},{"$f":"'VAL. 4° B'!J46","v":""},{"$f":"'VAL. 4° B'!Z46","v":""},{"$f":"'VAL. 4° B'!AP46","v":""},{"$f":"'VAL. 4° B'!AV46","v":""},{"$f":"'VAL. 4° B'!AW46","v":0},{"$f":"'VAL. 4° B'!AX46","v":0},{"$f":"'VAL. 4° B'!AY46","v":0},0,false]
[null,29,{"$f":"'C. FILIACION'!C42:D42","v":0},{"$f":"'VAL. 1° B'!J47","v":""},{"$f":"'VAL. 1° B'!Z47","v":""},{"$f":"'VAL. 1° B'!AP47","v":""},{"$f":"'VAL. 1° B'!AV47","v":""},{"$f":"'VAL. 1° B'!AW47","v":0},{"$f":"'VAL. 1° B'!AX47","v":0},{"$f":"'VAL. 1° B'!AY47","v":0},{"$f":"'VAL. 2° B'!J47","v":""},{"$f":"'VAL. 2° B'!Z47","v":""},{"$f":"'VAL. 2° B'!AP47","v":""},{"$f":"'VAL. 2° B'!AV47","v":""},{"$f":"'VAL. 2° B'!AW47","v":0},{"$f":"'VAL. 2° B'!AX47","v":0},{"$f":"'VAL. 2° B'!AY47","v":0},{"$f":"'VAL. 3° B'!J47","v":""},{"$f":"'VAL. 3° B'!Z47","v":""},{"$f":"'VAL. 3° B'!AP47","v":""},{"$f":"'VAL. 3° B'!AV47","v":""},{"$f":"'VAL. 3° B'!AW47","v":0},{"$f":"'VAL. 3° B'!AX47","v":0},{"$f":"'VAL. 3° B'!AY47","v":0},{"$f":"'VAL. 4° B'!J47","v":""},{"$f":"'VAL. 4° B'!Z47","v":""},{"$f":"'VAL. 4° B'!AP47","v":""},{"$f":"'VAL. 4° B'!AV47","v":""},{"$f":"'VAL. 4° B'!AW47","v":0},{"$f":"'VAL. 4° B'!AX47","v":0},{"$f":"'VAL. 4° B'!AY47","v":0},0,false]
[null,30,{"$f":"'C. FILIACION'!C43:D43","v":0},{"$f":"'VAL. 1° B'!J48","v":""},{"$f":"'VAL. 1° B'!Z48","v":""},{"$f":"'VAL. 1° B'!AP48","v":""},{"$f":"'VAL. 1° B'!AV48","v":""},{"$f":"'VAL. 1° B'!AW48","v":0},{"$f":"'VAL. 1° B'!AX48","v":0},{"$f":"'VAL. 1° B'!AY48","v":0},{"$f":"'VAL. 2° B'!J48","v":""},{"$f":"'VAL. 2° B'!Z48","v":""},{"$f":"'VAL. 2° B'!AP48","v":""},{"$f":"'VAL. 2° B'!AV48","v":""},{"$f":"'VAL. 2° B'!AW48","v":0},{"$f":"'VAL. 2° B'!AX48","v":0},{"$f":"'VAL. 2° B'!AY48","v":0},{"$f":"'VAL. 3° B'!J48","v":""},{"$f":"'VAL. 3° B'!Z48","v":""},{"$f":"'VAL. 3° B'!AP48","v":""},{"$f":"'VAL. 3° B'!AV48","v":""},{"$f":"'VAL. 3° B'!AW48","v":0},{"$f":"'VAL. 3° B'!AX48","v":0},{"$f":"'VAL. 3° B'!AY48","v":0},{"$f":"'VAL. 4° B'!J48","v":""},{"$f":"'VAL. 4° B'!Z48","v":""},{"$f":"'VAL. 4° B'!AP48","v":""},{"$f":"'VAL. 4° B'!AV48","v":""},{"$f":"'VAL. 4° B'!AW48","v":0},{"$f":"'VAL. 4° B'!AX48","v":0},{"$f":"'VAL. 4° B'!AY48","v":0},0,false]
[null,31,{"$f":"'C. FILIACION'!C44:D44","v":0},{"$f":"'VAL. 1° B'!J49","v":""},{"$f":"'VAL. 1° B'!Z49","v":""},{"$f":"'VAL. 1° B'!AP49","v":""},{"$f":"'VAL. 1° B'!AV49","v":""},{"$f":"'VAL. 1° B'!AW49","v":0},{"$f":"'VAL. 1° B'!AX49","v":0},{"$f":"'VAL. 1° B'!AY49","v":0},{"$f":"'VAL. 2° B'!J49","v":""},{"$f":"'VAL. 2° B'!Z49","v":""},{"$f":"'VAL. 2° B'!AP49","v":""},{"$f":"'VAL. 2° B'!AV49","v":""},{"$f":"'VAL. 2° B'!AW49","v":0},{"$f":"'VAL. 2° B'!AX49","v":0},{"$f":"'VAL. 2° B'!AY49","v":0},{"$f":"'VAL. 3° B'!J49","v":""},{"$f":"'VAL. 3° B'!Z49","v":""},{"$f":"'VAL. 3° B'!AP49","v":""},{"$f":"'VAL. 3° B'!AV49","v":""},{"$f":"'VAL. 3° B'!AW49","v":0},{"$f":"'VAL. 3° B'!AX49","v":0},{"$f":"'VAL. 3° B'!AY49","v":0},{"$f":"'VAL. 4° B'!J49","v":""},{"$f":"'VAL. 4° B'!Z49","v":""},{"$f":"'VAL. 4° B'!AP49","v":""},{"$f":"'VAL. 4° B'!AV49","v":""},{"$f":"'VAL. 4° B'!AW49","v":0},{"$f":"'VAL. 4° B'!AX49","v":0},{"$f":"'VAL. 4° B'!AY49","v":0},0,false]
[null,32,{"$f":"'C. FILIACION'!C45:D45","v":0},{"$f":"'VAL. 1° B'!J50","v":""},{"$f":"'VAL. 1° B'!Z50","v":""},{"$f":"'VAL. 1° B'!AP50","v":""},{"$f":"'VAL. 1° B'!AV50","v":""},{"$f":"'VAL. 1° B'!AW50","v":0},{"$f":"'VAL. 1° B'!AX50","v":0},{"$f":"'VAL. 1° B'!AY50","v":0},{"$f":"'VAL. 2° B'!J50","v":""},{"$f":"'VAL. 2° B'!Z50","v":""},{"$f":"'VAL. 2° B'!AP50","v":""},{"$f":"'VAL. 2° B'!AV50","v":""},{"$f":"'VAL. 2° B'!AW50","v":0},{"$f":"'VAL. 2° B'!AX50","v":0},{"$f":"'VAL. 2° B'!AY50","v":0},{"$f":"'VAL. 3° B'!J50","v":""},{"$f":"'VAL. 3° B'!Z50","v":""},{"$f":"'VAL. 3° B'!AP50","v":""},{"$f":"'VAL. 3° B'!AV50","v":""},{"$f":"'VAL. 3° B'!AW50","v":0},{"$f":"'VAL. 3° B'!AX50","v":0},{"$f":"'VAL. 3° B'!AY50","v":0},{"$f":"'VAL. 4° B'!J50","v":""},{"$f":"'VAL. 4° B'!Z50","v":""},{"$f":"'VAL. 4° B'!AP50","v":""},{"$f":"'VAL. 4° B'!AV50","v":""},{"$f":"'VAL. 4° B'!AW50","v":0},{"$f":"'VAL. 4° B'!AX50","v":0},{"$f":"'VAL. 4° B'!AY50","v":0},0,false]
[null,33,{"$f":"'C. FILIACION'!C46:D46","v":0},{"$f":"'VAL. 1° B'!J51","v":""},{"$f":"'VAL. 1° B'!Z51","v":""},{"$f":"'VAL. 1° B'!AP51","v":""},{"$f":"'VAL. 1° B'!AV51","v":""},{"$f":"'VAL. 1° B'!AW51","v":0},{"$f":"'VAL. 1° B'!AX51","v":0},{"$f":"'VAL. 1° B'!AY51","v":0},{"$f":"'VAL. 2° B'!J51","v":""},{"$f":"'VAL. 2° B'!Z51","v":""},{"$f":"'VAL. 2° B'!AP51","v":""},{"$f":"'VAL. 2° B'!AV51","v":""},{"$f":"'VAL. 2° B'!AW51","v":0},{"$f":"'VAL. 2° B'!AX51","v":0},{"$f":"'VAL. 2° B'!AY51","v":0},{"$f":"'VAL. 3° B'!J51","v":""},{"$f":"'VAL. 3° B'!Z51","v":""},{"$f":"'VAL. 3° B'!AP51","v":""},{"$f":"'VAL. 3° B'!AV51","v":""},{"$f":"'VAL. 3° B'!AW51","v":0},{"$f":"'VAL. 3° B'!AX51","v":0},{"$f":"'VAL. 3° B'!AY51","v":0},{"$f":"'VAL. 4° B'!J51","v":""},{"$f":"'VAL. 4° B'!Z51","v":""},{"$f":"'VAL. 4° B'!AP51","v":""},{"$f":"'VAL. 4° B'!AV51","v":""},{"$f":"'VAL. 4° B'!AW51","v":0},{"$f":"'VAL. 4° B'!AX51","v":0},{"$f":"'VAL. 4° B'!AY51","v":0},0,false]
[null,34,{"$f":"'C. FILIACION'!C47:D47","v":0},{"$f":"'VAL. 1° B'!J52","v":""},{"$f":"'VAL. 1° B'!Z52","v":""},{"$f":"'VAL. 1° B'!AP52","v":""},{"$f":"'VAL. 1° B'!AV52","v":""},{"$f":"'VAL. 1° B'!AW52","v":0},{"$f":"'VAL. 1° B'!AX52","v":0},{"$f":"'VAL. 1° B'!AY52","v":0},{"$f":"'VAL. 2° B'!J52","v":""},{"$f":"'VAL. 2° B'!Z52","v":""},{"$f":"'VAL. 2° B'!AP52","v":""},{"$f":"'VAL. 2° B'!AV52","v":""},{"$f":"'VAL. 2° B'!AW52","v":0},{"$f":"'VAL. 2° B'!AX52","v":0},{"$f":"'VAL. 2° B'!AY52","v":0},{"$f":"'VAL. 3° B'!J52","v":""},{"$f":"'VAL. 3° B'!Z52","v":""},{"$f":"'VAL. 3° B'!AP52","v":""},{"$f":"'VAL. 3° B'!AV52","v":""},{"$f":"'VAL. 3° B'!AW52","v":0},{"$f":"'VAL. 3° B'!AX52","v":0},{"$f":"'VAL. 3° B'!AY52","v":0},{"$f":"'VAL. 4° B'!J52","v":""},{"$f":"'VAL. 4° B'!Z52","v":""},{"$f":"'VAL. 4° B'!AP52","v":""},{"$f":"'VAL. 4° B'!AV52","v":""},{"$f":"'VAL. 4° B'!AW52","v":0},{"$f":"'VAL. 4° B'!AX52","v":0},{"$f":"'VAL. 4° B'!AY52","v":0},0,false]
[null,35,{"$f":"'C. FILIACION'!C48:D48","v":0},{"$f":"'VAL. 1° B'!J53","v":""},{"$f":"'VAL. 1° B'!Z53","v":""},{"$f":"'VAL. 1° B'!AP53","v":""},{"$f":"'VAL. 1° B'!AV53","v":""},{"$f":"'VAL. 1° B'!AW53","v":0},{"$f":"'VAL. 1° B'!AX53","v":0},{"$f":"'VAL. 1° B'!AY53","v":0},{"$f":"'VAL. 2° B'!J53","v":""},{"$f":"'VAL. 2° B'!Z53","v":""},{"$f":"'VAL. 2° B'!AP53","v":""},{"$f":"'VAL. 2° B'!AV53","v":""},{"$f":"'VAL. 2° B'!AW53","v":0},{"$f":"'VAL. 2° B'!AX53","v":0},{"$f":"'VAL. 2° B'!AY53","v":0},{"$f":"'VAL. 3° B'!J53","v":""},{"$f":"'VAL. 3° B'!Z53","v":""},{"$f":"'VAL. 3° B'!AP53","v":""},{"$f":"'VAL. 3° B'!AV53","v":""},{"$f":"'VAL. 3° B'!AW53","v":0},{"$f":"'VAL. 3° B'!AX53","v":0},{"$f":"'VAL. 3° B'!AY53","v":0},{"$f":"'VAL. 4° B'!J53","v":""},{"$f":"'VAL. 4° B'!Z53","v":""},{"$f":"'VAL. 4° B'!AP53","v":""},{"$f":"'VAL. 4° B'!AV53","v":""},{"$f":"'VAL. 4° B'!AW53","v":0},{"$f":"'VAL. 4° B'!AX53","v":0},{"$f":"'VAL. 4° B'!AY53","v":0},0,false]
[null,36,{"$f":"'C. FILIACION'!C49:D49","v":0},{"$f":"'VAL. 1° B'!J54","v":""},{"$f":"'VAL. 1° B'!Z54","v":""},{"$f":"'VAL. 1° B'!AP54","v":""},{"$f":"'VAL. 1° B'!AV54","v":""},{"$f":"'VAL. 1° B'!AW54","v":0},{"$f":"'VAL. 1° B'!AX54","v":0},{"$f":"'VAL. 1° B'!AY54","v":0},{"$f":"'VAL. 2° B'!J54","v":""},{"$f":"'VAL. 2° B'!Z54","v":""},{"$f":"'VAL. 2° B'!AP54","v":""},{"$f":"'VAL. 2° B'!AV54","v":""},{"$f":"'VAL. 2° B'!AW54","v":0},{"$f":"'VAL. 2° B'!AX54","v":0},{"$f":"'VAL. 2° B'!AY54","v":0},{"$f":"'VAL. 3° B'!J54","v":""},{"$f":"'VAL. 3° B'!Z54","v":""},{"$f":"'VAL. 3° B'!AP54","v":""},{"$f":"'VAL. 3° B'!AV54","v":""},{"$f":"'VAL. 3° B'!AW54","v":0},{"$f":"'VAL. 3° B'!AX54","v":0},{"$f":"'VAL. 3° B'!AY54","v":0},{"$f":"'VAL. 4° B'!J54","v":""},{"$f":"'VAL. 4° B'!Z54","v":""},{"$f":"'VAL. 4° B'!AP54","v":""},{"$f":"'VAL. 4° B'!AV54","v":""},{"$f":"'VAL. 4° B'!AW54","v":0},{"$f":"'VAL. 4° B'!AX54","v":0},{"$f":"'VAL. 4° B'!AY54","v":0},0,false]
[null,37,{"$f":"'C. FILIACION'!C50:D50","v":0},{"$f":"'VAL. 1° B'!J55","v":""},{"$f":"'VAL. 1° B'!Z55","v":""},{"$f":"'VAL. 1° B'!AP55","v":""},{"$f":"'VAL. 1° B'!AV55","v":""},{"$f":"'VAL. 1° B'!AW55","v":0},{"$f":"'VAL. 1° B'!AX55","v":0},{"$f":"'VAL. 1° B'!AY55","v":0},{"$f":"'VAL. 2° B'!J55","v":""},{"$f":"'VAL. 2° B'!Z55","v":""},{"$f":"'VAL. 2° B'!AP55","v":""},{"$f":"'VAL. 2° B'!AV55","v":""},{"$f":"'VAL. 2° B'!AW55","v":0},{"$f":"'VAL. 2° B'!AX55","v":0},{"$f":"'VAL. 2° B'!AY55","v":0},{"$f":"'VAL. 3° B'!J55","v":""},{"$f":"'VAL. 3° B'!Z55","v":""},{"$f":"'VAL. 3° B'!AP55","v":""},{"$f":"'VAL. 3° B'!AV55","v":""},{"$f":"'VAL. 3° B'!AW55","v":0},{"$f":"'VAL. 3° B'!AX55","v":0},{"$f":"'VAL. 3° B'!AY55","v":0},{"$f":"'VAL. 4° B'!J55","v":""},{"$f":"'VAL. 4° B'!Z55","v":""},{"$f":"'VAL. 4° B'!AP55","v":""},{"$f":"'VAL. 4° B'!AV55","v":""},{"$f":"'VAL. 4° B'!AW55","v":0},{"$f":"'VAL. 4° B'!AX55","v":0},{"$f":"'VAL. 4° B'!AY55","v":0},0,false]
[null,38,{"$f":"'C. FILIACION'!C51:D51","v":0},{"$f":"'VAL. 1° B'!J56","v":""},{"$f":"'VAL. 1° B'!Z56","v":""},{"$f":"'VAL. 1° B'!AP56","v":""},{"$f":"'VAL. 1° B'!AV56","v":""},{"$f":"'VAL. 1° B'!AW56","v":0},{"$f":"'VAL. 1° B'!AX56","v":0},{"$f":"'VAL. 1° B'!AY56","v":0},{"$f":"'VAL. 2° B'!J56","v":""},{"$f":"'VAL. 2° B'!Z56","v":""},{"$f":"'VAL. 2° B'!AP56","v":""},{"$f":"'VAL. 2° B'!AV56","v":""},{"$f":"'VAL. 2° B'!AW56","v":0},{"$f":"'VAL. 2° B'!AX56","v":0},{"$f":"'VAL. 2° B'!AY56","v":0},{"$f":"'VAL. 3° B'!J56","v":""},{"$f":"'VAL. 3° B'!Z56","v":""},{"$f":"'VAL. 3° B'!AP56","v":""},{"$f":"'VAL. 3° B'!AV56","v":""},{"$f":"'VAL. 3° B'!AW56","v":0},{"$f":"'VAL. 3° B'!AX56","v":0},{"$f":"'VAL. 3° B'!AY56","v":0},{"$f":"'VAL. 4° B'!J56","v":""},{"$f":"'VAL. 4° B'!Z56","v":""},{"$f":"'VAL. 4° B'!AP56","v":""},{"$f":"'VAL. 4° B'!AV56","v":""},{"$f":"'VAL. 4° B'!AW56","v":0},{"$f":"'VAL. 4° B'!AX56","v":0},{"$f":"'VAL. 4° B'!AY56","v":0},0,false]
[null,39,{"$f":"'C. FILIACION'!C52:D52","v":0},{"$f":"'VAL. 1° B'!J57","v":""},{"$f":"'VAL. 1° B'!Z57","v":""},{"$f":"'VAL. 1° B'!AP57","v":""},{"$f":"'VAL. 1° B'!AV57","v":""},{"$f":"'VAL. 1° B'!AW57","v":0},{"$f":"'VAL. 1° B'!AX57","v":0},{"$f":"'VAL. 1° B'!AY57","v":0},{"$f":"'VAL. 2° B'!J57","v":""},{"$f":"'VAL. 2° B'!Z57","v":""},{"$f":"'VAL. 2° B'!AP57","v":""},{"$f":"'VAL. 2° B'!AV57","v":""},{"$f":"'VAL. 2° B'!AW57","v":0},{"$f":"'VAL. 2° B'!AX57","v":0},{"$f":"'VAL. 2° B'!AY57","v":0},{"$f":"'VAL. 3° B'!J57","v":""},{"$f":"'VAL. 3° B'!Z57","v":""},{"$f":"'VAL. 3° B'!AP57","v":""},{"$f":"'VAL. 3° B'!AV57","v":""},{"$f":"'VAL. 3° B'!AW57","v":0},{"$f":"'VAL. 3° B'!AX57","v":0},{"$f":"'VAL. 3° B'!AY57","v":0},{"$f":"'VAL. 4° B'!J57","v":""},{"$f":"'VAL. 4° B'!Z57","v":""},{"$f":"'VAL. 4° B'!AP57","v":""},{"$f":"'VAL. 4° B'!AV57","v":""},{"$f":"'VAL. 4° B'!AW57","v":0},{"$f":"'VAL. 4° B'!AX57","v":0},{"$f":"'VAL. 4° B'!AY57","v":0},0,false]
[null,40,{"$f":"'C. FILIACION'!C53:D53","v":0},{"$f":"'VAL. 1° B'!J58","v":""},{"$f":"'VAL. 1° B'!Z58","v":""},{"$f":"'VAL. 1° B'!AP58","v":""},{"$f":"'VAL. 1° B'!AV58","v":""},{"$f":"'VAL. 1° B'!AW58","v":0},{"$f":"'VAL. 1° B'!AX58","v":0},{"$f":"'VAL. 1° B'!AY58","v":0},{"$f":"'VAL. 2° B'!J58","v":""},{"$f":"'VAL. 2° B'!Z58","v":""},{"$f":"'VAL. 2° B'!AP58","v":""},{"$f":"'VAL. 2° B'!AV58","v":""},{"$f":"'VAL. 2° B'!AW58","v":0},{"$f":"'VAL. 2° B'!AX58","v":0},{"$f":"'VAL. 2° B'!AY58","v":0},{"$f":"'VAL. 3° B'!J58","v":""},{"$f":"'VAL. 3° B'!Z58","v":""},{"$f":"'VAL. 3° B'!AP58","v":""},{"$f":"'VAL. 3° B'!AV58","v":""},{"$f":"'VAL. 3° B'!AW58","v":0},{"$f":"'VAL. 3° B'!AX58","v":0},{"$f":"'VAL. 3° B'!AY58","v":0},{"$f":"'VAL. 4° B'!J58","v":""},{"$f":"'VAL. 4° B'!Z58","v":""},{"$f":"'VAL. 4° B'!AP58","v":""},{"$f":"'VAL. 4° B'!AV58","v":""},{"$f":"'VAL. 4° B'!AW58","v":0},{"$f":"'VAL. 4° B'!AX58","v":0},{"$f":"'VAL. 4° B'!AY58","v":0},0,false]
[null,41,{"$f":"'C. FILIACION'!C54:D54","v":0},{"$f":"'VAL. 1° B'!J59","v":""},{"$f":"'VAL. 1° B'!Z59","v":""},{"$f":"'VAL. 1° B'!AP59","v":""},{"$f":"'VAL. 1° B'!AV59","v":""},{"$f":"'VAL. 1° B'!AW59","v":0},{"$f":"'VAL. 1° B'!AX59","v":0},{"$f":"'VAL. 1° B'!AY59","v":0},{"$f":"'VAL. 2° B'!J59","v":""},{"$f":"'VAL. 2° B'!Z59","v":""},{"$f":"'VAL. 2° B'!AP59","v":""},{"$f":"'VAL. 2° B'!AV59","v":""},{"$f":"'VAL. 2° B'!AW59","v":0},{"$f":"'VAL. 2° B'!AX59","v":0},{"$f":"'VAL. 2° B'!AY59","v":0},{"$f":"'VAL. 3° B'!J59","v":""},{"$f":"'VAL. 3° B'!Z59","v":""},{"$f":"'VAL. 3° B'!AP59","v":""},{"$f":"'VAL. 3° B'!AV59","v":""},{"$f":"'VAL. 3° B'!AW59","v":0},{"$f":"'VAL. 3° B'!AX59","v":0},{"$f":"'VAL. 3° B'!AY59","v":0},{"$f":"'VAL. 4° B'!J59","v":""},{"$f":"'VAL. 4° B'!Z59","v":""},{"$f":"'VAL. 4° B'!AP59","v":""},{"$f":"'VAL. 4° B'!AV59","v":""},{"$f":"'VAL. 4° B'!AW59","v":0},{"$f":"'VAL. 4° B'!AX59","v":0},{"$f":"'VAL. 4° B'!AY59","v":0},0,false]
[null,42,{"$f":"'C. FILIACION'!C55:D55","v":0},{"$f":"'VAL. 1° B'!J60","v":""},{"$f":"'VAL. 1° B'!Z60","v":""},{"$f":"'VAL. 1° B'!AP60","v":""},{"$f":"'VAL. 1° B'!AV60","v":""},{"$f":"'VAL. 1° B'!AW60","v":0},{"$f":"'VAL. 1° B'!AX60","v":0},{"$f":"'VAL. 1° B'!AY60","v":0},{"$f":"'VAL. 2° B'!J60","v":""},{"$f":"'VAL. 2° B'!Z60","v":""},{"$f":"'VAL. 2° B'!AP60","v":""},{"$f":"'VAL. 2° B'!AV60","v":""},{"$f":"'VAL. 2° B'!AW60","v":0},{"$f":"'VAL. 2° B'!AX60","v":0},{"$f":"'VAL. 2° B'!AY60","v":0},{"$f":"'VAL. 3° B'!J60","v":""},{"$f":"'VAL. 3° B'!Z60","v":""},{"$f":"'VAL. 3° B'!AP60","v":""},{"$f":"'VAL. 3° B'!AV60","v":""},{"$f":"'VAL. 3° B'!AW60","v":0},{"$f":"'VAL. 3° B'!AX60","v":0},{"$f":"'VAL. 3° B'!AY60","v":0},{"$f":"'VAL. 4° B'!J60","v":""},{"$f":"'VAL. 4° B'!Z60","v":""},{"$f":"'VAL. 4° B'!AP60","v":""},{"$f":"'VAL. 4° B'!AV60","v":""},{"$f":"'VAL. 4° B'!AW60","v":0},{"$f":"'VAL. 4° B'!AX60","v":0},{"$f":"'VAL. 4° B'!AY60","v":0},0,false]
[null,43,{"$f":"'C. FILIACION'!C56:D56","v":0},{"$f":"'VAL. 1° B'!J61","v":""},{"$f":"'VAL. 1° B'!Z61","v":""},{"$f":"'VAL. 1° B'!AP61","v":""},{"$f":"'VAL. 1° B'!AV61","v":""},{"$f":"'VAL. 1° B'!AW61","v":0},{"$f":"'VAL. 1° B'!AX61","v":0},{"$f":"'VAL. 1° B'!AY61","v":0},{"$f":"'VAL. 2° B'!J61","v":""},{"$f":"'VAL. 2° B'!Z61","v":""},{"$f":"'VAL. 2° B'!AP61","v":""},{"$f":"'VAL. 2° B'!AV61","v":""},{"$f":"'VAL. 2° B'!AW61","v":0},{"$f":"'VAL. 2° B'!AX61","v":0},{"$f":"'VAL. 2° B'!AY61","v":0},{"$f":"'VAL. 3° B'!J61","v":""},{"$f":"'VAL. 3° B'!Z61","v":""},{"$f":"'VAL. 3° B'!AP61","v":""},{"$f":"'VAL. 3° B'!AV61","v":""},{"$f":"'VAL. 3° B'!AW61","v":0},{"$f":"'VAL. 3° B'!AX61","v":0},{"$f":"'VAL. 3° B'!AY61","v":0},{"$f":"'VAL. 4° B'!J61","v":""},{"$f":"'VAL. 4° B'!Z61","v":""},{"$f":"'VAL. 4° B'!AP61","v":""},{"$f":"'VAL. 4° B'!AV61","v":""},{"$f":"'VAL. 4° B'!AW61","v":0},{"$f":"'VAL. 4° B'!AX61","v":0},{"$f":"'VAL. 4° B'!AY61","v":0},0,false]
[null,44,{"$f":"'C. FILIACION'!C57:D57","v":0},{"$f":"'VAL. 1° B'!J62","v":""},{"$f":"'VAL. 1° B'!Z62","v":""},{"$f":"'VAL. 1° B'!AP62","v":""},{"$f":"'VAL. 1° B'!AV62","v":""},{"$f":"'VAL. 1° B'!AW62","v":0},{"$f":"'VAL. 1° B'!AX62","v":0},{"$f":"'VAL. 1° B'!AY62","v":0},{"$f":"'VAL. 2° B'!J62","v":""},{"$f":"'VAL. 2° B'!Z62","v":""},{"$f":"'VAL. 2° B'!AP62","v":""},{"$f":"'VAL. 2° B'!AV62","v":""},{"$f":"'VAL. 2° B'!AW62","v":0},{"$f":"'VAL. 2° B'!AX62","v":0},{"$f":"'VAL. 2° B'!AY62","v":0},{"$f":"'VAL. 3° B'!J62","v":""},{"$f":"'VAL. 3° B'!Z62","v":""},{"$f":"'VAL. 3° B'!AP62","v":""},{"$f":"'VAL. 3° B'!AV62","v":""},{"$f":"'VAL. 3° B'!AW62","v":0},{"$f":"'VAL. 3° B'!AX62","v":0},{"$f":"'VAL. 3° B'!AY62","v":0},{"$f":"'VAL. 4° B'!J62","v":""},{"$f":"'VAL. 4° B'!Z62","v":""},{"$f":"'VAL. 4° B'!AP62","v":""},{"$f":"'VAL. 4° B'!AV62","v":""},{"$f":"'VAL. 4° B'!AW62","v":0},{"$f":"'VAL. 4° B'!AX62","v":0},{"$f":"'VAL. 4° B'!AY62","v":0},0,false]
[null,45,{"$f":"'C. FILIACION'!C58:D58","v":0},{"$f":"'VAL. 1° B'!J63","v":""},{"$f":"'VAL. 1° B'!Z63","v":""},{"$f":"'VAL. 1° B'!AP63","v":""},{"$f":"'VAL. 1° B'!AV63","v":""},{"$f":"'VAL. 1° B'!AW63","v":0},{"$f":"'VAL. 1° B'!AX63","v":0},{"$f":"'VAL. 1° B'!AY63","v":0},{"$f":"'VAL. 2° B'!J63","v":""},{"$f":"'VAL. 2° B'!Z63","v":""},{"$f":"'VAL. 2° B'!AP63","v":""},{"$f":"'VAL. 2° B'!AV63","v":""},{"$f":"'VAL. 2° B'!AW63","v":0},{"$f":"'VAL. 2° B'!AX63","v":0},{"$f":"'VAL. 2° B'!AY63","v":0},{"$f":"'VAL. 3° B'!J63","v":""},{"$f":"'VAL. 3° B'!Z63","v":""},{"$f":"'VAL. 3° B'!AP63","v":""},{"$f":"'VAL. 3° B'!AV63","v":""},{"$f":"'VAL. 3° B'!AW63","v":0},{"$f":"'VAL. 3° B'!AX63","v":0},{"$f":"'VAL. 3° B'!AY63","v":0},{"$f":"'VAL. 4° B'!J63","v":""},{"$f":"'VAL. 4° B'!Z63","v":""},{"$f":"'VAL. 4° B'!AP63","v":""},{"$f":"'VAL. 4° B'!AV63","v":""},{"$f":"'VAL. 4° B'!AW63","v":0},{"$f":"'VAL. 4° B'!AX63","v":0},{"$f":"'VAL. 4° B'!AY63","v":0},0,false]
[]
[]
[]
[null,null,null,{"$f":"CARATULA!G22","v":0},null,null,null,null,null,null,null,null,null,null,null,null,null,{"$f":"CARATULA!G24","v":0}]

{"sheet":"% REP-APR","index":17,"n_rows":34,"n_cols":12,"rows_kept":34,"cut":false,"hidden":false,"merged":[[2,2,2,11],[33,2,33,4],[33,8,33,11],[18,2,19,11],[9,2,9,11],[11,3,11,4],[12,3,12,4],[13,3,13,4],[14,3,14,4],[15,3,15,4],[30,3,30,5],[30,7,30,9]]}
[]
[]
[null,null,"CUADRO DE EDADES "]
[]
[null,null,null,12,{"$f":"D5+1","v":13},{"$f":"E5+1","v":14},15,16,17,18,19,"TOTALES "]
[null,null,"FEMENINO",{"$f":"COUNTIFS('C. FILIACION'!I14:I58,\"12\",'C. FILIACION'!E14:E58,\"F\")","v":0},{"$f":"COUNTIFS('C. FILIACION'!I14:I58,\"13\",'C. FILIACION'!E14:E58,\"F\")","v":0},{"$f":"COUNTIFS('C. FILIACION'!I14:I58,\"14\",'C. FILIACION'!E14:E58,\"F\")","v":0},{"$f":"COUNTIFS('C. FILIACION'!I14:I58,\"15\",'C. FILIACION'!E14:E58,\"F\")","v":0},{"$f":"COUNTIFS('C. FILIACION'!I14:I58,\"16\",'C. FILIACION'!E14:E58,\"F\")","v":0},{"$f":"COUNTIFS('C. FILIACION'!I14:I58,\"17\",'C. FILIACION'!E14:E58,\"F\")","v":0},{"$f":"COUNTIFS('C. FILIACION'!I14:I58,\"18\",'C. FILIACION'!E14:E58,\"F\")","v":0},{"$f":"COUNTIFS('C. FILIACION'!I14:I58,\"19\",'C. FILIACION'!E14:E58,\"F\")","v":0},{"$f":"SUM(D6:K6)","v":0}]
[null,null,"MASCULINO ",{"$f":"COUNTIFS('C. FILIACION'!I14:I58,\"12\",'C. FILIACION'!E14:E58,\"M\")","v":0},{"$f":"COUNTIFS('C. FILIACION'!I14:I58,\"13\",'C. FILIACION'!E14:E58,\"M\")","v":0},{"$f":"COUNTIFS('C. FILIACION'!I14:I58,\"14\",'C. FILIACION'!E14:E58,\"M\")","v":0},{"$f":"COUNTIFS('C. FILIACION'!I14:I58,\"15\",'C. FILIACION'!E14:E58,\"M\")","v":0},{"$f":"COUNTIFS('C. FILIACION'!I14:I58,\"16\",'C. FILIACION'!E14:E58,\"M\")","v":0},{"$f":"COUNTIFS('C. FILIACION'!I14:I58,\"17\",'C. FILIACION'!E14:E58,\"M\")","v":0},{"$f":"COUNTIFS('C. FILIACION'!I14:I58,\"18\",'C. FILIACION'!E14:E58,\"M\")","v":0},{"$f":"COUNTIFS('C. FILIACION'!I14:I58,\"19\",'C. FILIACION'!E14:E58,\"M\")","v":0},{"$f":"SUM(D7:K7)","v":0}]
[null,null,"TOTALES ",{"$f":"D6+D7","v":0},{"$f":"E6+E7","v":0},0,0,0,0,0,0,{"$f":"L6+L7","v":0}]
[]
[null,null,"DATOS DE REGISTRO"]
[]
[null,null,"ESTADO DEL ESTUDIANTE","CANTIDAD"]
[null,null,"INSCRITO ",{"$f":"'C. FILIACION'!Q6","v":0}]
[null,null,"RETIRO O ABANDONO",{"$f":"'C. FILIACION'!Q7","v":0}]
[null,null,"NO INCORPORADO",{"$f":"'C. FILIACION'!Q8","v":0}]
[null,null,"EFECTIVO",{"$f":"'C. FILIACION'!Q9","v":0}]
[]
[]
[null,null,"GRÁFICO DE BARRAS SEGÚN PORCENTAJE (%) DE REPROBADOS Y APROBADOS ANUAL"]
[]
[]
[]
[]
[]
[]
[]
[]
[]
[]
[]
[null,null,null,"% APROBADOS ",null,null,null,"% REPOBADOS "]
[]
[]
[null,null,{"$f":"CARATULA!G22","v":0},null,null,null,null,null,{"$f":"CARATULA!G24","v":0}]

{"sheet":"CEN. POR AREA","index":18,"n_rows":105,"n_cols":74,"rows_kept":105,"cut":false,"hidden":false,"merged":[[1,1,1,73],[11,73,12,73],[11,54,11,70],[12,1,12,2],[7,3,7,14],[9,3,9,14],[8,3,8,14],[3,3,3,14],[11,1,11,2],[11,3,11,19],[11,20,11,36],[11,37,11,53],[4,3,4,14],[6,3,6,14],[5,3,5,13],[2,3,2,14]]}
[]
[null,"CENTRALIZADOR DE NOTAS POR ÁREAS Y BIMESTRES "]
[null,null,"UNIDAD EDUCATIVA ",{"$f":"CARATULA!G20","v":0}]
[null,null,"NIVEL ",{"$f":"CARATULA!G26","v":0}]
[null,null,"AÑO DE ESCOLARIDAD ",{"$f":"CONCATENATE(CARATULA!G28,\" \",CARATULA!H28)","v":" "}]
[null,null,"DIRECTORA/OR",{"$f":"CARATULA!G22","v":0}]
[null,null,"MAESTRA/O",{"$f":"CARATULA!G24","v":0}]
[null,null,"CAMPO ",{"$f":"CARATULA!G30","v":0}]
[null,null,"ÁREA",{"$f":"CARATULA!G32","v":0}]
[null,null,"BTH-GENERAL /ESPECIALIZADA ","ESPECIALIDAD: AGROECOLOGÍA"]
[]
[null,null,null,"1⁰ BIMESTRE ",null,null,null,null,null,null,null,null,null,null,null,null,null,null,null,null,"2⁰ BIMESTRE ",null,null,null,null,null,null,null,null,null,null,null,null,null,null,null,null,"3⁰ BIMESTRE ",null,null,null,null,null,null,null,null,null,null,null,null,null,null,null,null,"4⁰ BIMESTRE ",null,null,null,null,null,null,null,null,null,null,null,null,null,null,null,null,null,null,"TOTAL ÁREAS REPROBADAS  "]
[null,"                            ÁREAS\n\n\n\n   APELLIDOS\n          Y\n   NOMBRES\n",null,"COMUNICACIÓN Y LENGUAJES: LENGUA CASTELLANA Y ORIGINARIA ","LENGUA EXTRANJERA","CIENCIAS SOCIALES ","EDUCACIÓN FÍSICA Y DEPORTES","EDUCACIÓN MUSICAL ","ARTES PLÁSTICAS Y VISUALES","MATEMÁTICA ",{"$f":"D10","v":"ESPECIALIDAD: AGROECOLOGÍA"},"CIENCIAS NATURALES: BIOLOGÍA - GEOGRAFÍA","CIENCIAS NATURALES: FÍSICA ","CIENCIAS NATURALES: QUÍMICA ","COSMOVISIÓNES, FILOSOFÍA Y SICOLOGÍA ","VALORES, ESPIRITUALIDAD Y RELIGIONES ","PROMEDIO BIMESTRAL",null,null,"ÁREAS REPROBADAS ","COMUNICACIÓN Y LENGUAJES: LENGUA CASTELLANA Y ORIGINARIA ","LENGUA EXTRANJERA","CIENCIAS SOCIALES ","EDUCACIÓN FÍSICA Y DEPORTES","EDUCACIÓN MUSICAL ","ARTES PLÁSTICAS Y VISUALES","MATEMÁTICA ",{"$f":"D10","v":"ESPECIALIDAD: AGROECOLOGÍA"},"CIENCIAS NATURALES: BIOLOGÍA - GEOGRAFÍA","CIENCIAS NATURALES: FÍSICA ","CIENCIAS NATURALES: QUÍMICA ","COSMOVISIÓNES, FILOSOFÍA Y SICOLOGÍA ","VALORES, ESPIRITUALIDAD Y RELIGIONES ","PROMEDIO BIMESTRAL",null,null,"ÁREAS REPROBADAS ","COMUNICACIÓN Y LENGUAJES: LENGUA CASTELLANA Y ORIGINARIA ","LENGUA EXTRANJERA","CIENCIAS SOCIALES ","EDUCACIÓN FÍSICA Y DEPORTES","EDUCACIÓN MUSICAL ","ARTES PLÁSTICAS Y VISUALES","MATEMÁTICA ",{"$f":"D10","v":"ESPECIALIDAD: AGROECOLOGÍA"},"CIENCIAS NATURALES: BIOLOGÍA - GEOGRAFÍA","CIENCIAS NATURALES: FÍSICA ","CIENCIAS NATURALES: QUÍMICA ","COSMOVISIÓNES, FILOSOFÍA Y SICOLOGÍA ","VALORES, ESPIRITUALIDAD Y RELIGIONES ","PROMEDIO BIMESTRAL",null,null,"ÁREAS REPROBADAS ","COMUNICACIÓN Y LENGUAJES: LENGUA CASTELLANA Y ORIGINARIA ","LENGUA EXTRANJERA","CIENCIAS SOCIALES ","EDUCACIÓN FÍSICA Y DEPORTES","EDUCACIÓN MUSICAL ","ARTES PLÁSTICAS Y VISUALES","MATEMÁTICA ",{"$f":"D10","v":"ESPECIALIDAD: AGROECOLOGÍA"},"CIENCIAS NATURALES: BIOLOGÍA - GEOGRAFÍA","CIENCIAS NATURALES: FÍSICA ","CIENCIAS NATURALES: QUÍMICA ","COSMOVISIÓNES, FILOSOFÍA Y SICOLOGÍA ","VALORES, ESPIRITUALIDAD Y RELIGIONES ","PROMEDIO BIMESTRAL",null,null,"ÁREAS REPROBADAS ","PROMEDIO FINAL ANUAL "]
["A1",1,{"$f":"'C. FILIACION'!C14:D14","v":0},null,null,null,null,null,null,null,null,null,null,null,null,null,{"$f":"IFERROR(ROUND(AVERAGE(D14:P14),0),\"\")","v":""},{"$f":"IF((COUNTIF(D14:K14,\"<51\"))=0,\"\",COUNTIF(D14:K14,\"<51\"))","v":""},{"$f":"IF((COUNTIF(N14:P14,\"<51\"))=0,\"\",COUNTIF(N14:P14,\"<51\"))","v":""},{"$f":"IF(SUM(R14:S14)=0,\" \",SUM(R14:S14))","v":" "},null,null,null,null,null,null,null,null,null,null,null,null,null,{"$f":"IFERROR(ROUND(AVERAGE(U14:AG14),0),\"\")","v":""},{"$f":"IF((COUNTIF(U14:AB14,\"<51\"))=0,\"\",COUNTIF(U14:AB14,\"<51\"))","v":""},{"$f":"IF((COUNTIF(AE14:AG14,\"<51\"))=0,\"\",COUNTIF(AE14:AG14,\"<51\"))","v":""},{"$f":"IF(SUM(AI14:AJ14)=0,\" \",SUM(AI14:AJ14))","v":" "},null,null,null,null,null,null,null,null,null,null,null,null,null,{"$f":"IFERROR(ROUND(AVERAGE(AL14:AX14),0),\"\")","v":""},{"$f":"IF((COUNTIF(AL14:AS14,\"<51\"))=0,\"\",COUNTIF(AL14:AS14,\"<51\"))","v":""},{"$f":"IF((COUNTIF(AV14:AX14,\"<51\"))=0,\"\",COUNTIF(AV14:AX14,\"<51\"))","v":""},{"$f":"IF(SUM(AZ14:BA14)=0,\" \",SUM(AZ14:BA14))","v":" "},null,null,null,null,null,null,null,null,null,null,null,null,null,{"$f":"IFERROR(ROUND(AVERAGE(BC14:BO14),0),\"\")","v":""},{"$f":"IF((COUNTIF(BC14:BJ14,\"<51\"))=0,\"\",COUNTIF(BC14:BJ14,\"<51\"))","v":""},{"$f":"IF((COUNTIF(BM14:BO14,\"<51\"))=0,\"\",COUNTIF(BM14:BO14,\"<51\"))","v":""},{"$f":"IF(SUM(BQ14:BR14)=0,\" \",SUM(BQ14:BR14))","v":" "},{"$f":"IFERROR(ROUND(AVERAGE(Q14,AH14,AY14,BP14),0),\"\")","v":""},{"$f":"IFERROR(ROUND(AVERAGE(Q14,AH14,AY14,BP14),3),\"\")","v":""},{"$f":"SUM(T14,AK14,BB14,BS14)","v":0}]
["A2",2,{"$f":"'C. FILIACION'!C15:D15","v":0},null,null,null,null,null,null,null,null,null,null,null,null,null,{"$f":"IFERROR(ROUND(AVERAGE(D15:P15),0),\"\")","v":""},"",""," ",null,null,null,null,null,null,null,null,null,null,null,null,null,{"$f":"IFERROR(ROUND(AVERAGE(U15:AG15),0),\"\")","v":""},"","",{"$f":"IF(SUM(AI15:AJ15)=0,\" \",SUM(AI15:AJ15))","v":" "},null,null,null,null,null,null,null,null,null,null,null,null,null,{"$f":"IFERROR(ROUND(AVERAGE(AL15:AX15),0),\"\")","v":""},"","",{"$f":"IF(SUM(AZ15:BA15)=0,\" \",SUM(AZ15:BA15))","v":" "},null,null,null,null,null,null,null,null,null,null,null,null,null,{"$f":"IFERROR(ROUND(AVERAGE(BC15:BO15),0),\"\")","v":""},"","",{"$f":"IF(SUM(BQ15:BR15)=0,\" \",SUM(BQ15:BR15))","v":" "},{"$f":"IFERROR(ROUND(AVERAGE(Q15,AH15,AY15,BP15),0),\"\")","v":""},{"$f":"IFERROR(ROUND(AVERAGE(Q15,AH15,AY15,BP15),4),\"\")","v":""},0]
["A3",3,{"$f":"'C. FILIACION'!C16:D16","v":0},null,null,null,null,null,null,null,null,null,null,null,null,null,"","",""," ",null,null,null,null,null,null,null,null,null,null,null,null,null,"","",""," ",null,null,null,null,null,null,null,null,null,null,null,null,null,"","",""," ",null,null,null,null,null,null,null,null,null,null,null,null,null,"","",""," ","","",0]
["A4",4,{"$f":"'C. FILIACION'!C17:D17","v":0},null,null,null,null,null,null,null,null,null,null,null,null,null,"","",""," ",null,null,null,null,null,null,null,null,null,null,null,null,null,"","",""," ",null,null,null,null,null,null,null,null,null,null,null,null,null,"","",""," ",null,null,null,null,null,null,null,null,null,null,null,null,null,"","",""," ","","",0]
["A5",5,{"$f":"'C. FILIACION'!C18:D18","v":0},null,null,null,null,null,null,null,null,null,null,null,null,null,"","",""," ",null,null,null,null,null,null,null,null,null,null,null,null,null,"","",""," ",null,null,null,null,null,null,null,null,null,null,null,null,null,"","",""," ",null,null,null,null,null,null,null,null,null,null,null,null,null,"","",""," ","","",0]
["A6",6,{"$f":"'C. FILIACION'!C19:D19","v":0},null,null,null,null,null,null,null,null,null,null,null,null,null,"","",""," ",null,null,null,null,null,null,null,null,null,null,null,null,null,"","",""," ",null,null,null,null,null,null,null,null,null,null,null,null,null,"","",""," ",null,null,null,null,null,null,null,null,null,null,null,null,null,"","",""," ","","",0]
["A7",7,{"$f":"'C. FILIACION'!C20:D20","v":0},null,null,null,null,null,null,null,null,null,null,null,null,null,"","",""," ",null,null,null,null,null,null,null,null,null,null,null,null,null,"","",""," ",null,null,null,null,null,null,null,null,null,null,null,null,null,"","",""," ",null,null,null,null,null,null,null,null,null,null,null,null,null,"","",""," ","","",0]
["A8",8,{"$f":"'C. FILIACION'!C21:D21","v":0},null,null,null,null,null,null,null,null,null,null,null,null,null,"","",""," ",null,null,null,null,null,null,null,null,null,null,null,null,null,"","",""," ",null,null,null,null,null,null,null,null,null,null,null,null,null,"","",""," ",null,null,null,null,null,null,null,null,null,null,null,null,null,"","",""," ","","",0]
["A9",9,{"$f":"'C. FILIACION'!C22:D22","v":0},null,null,null,null,null,null,null,null,null,null,null,null,null,"","",""," ",null,null,null,null,null,null,null,null,null,null,null,null,null,"","",""," ",null,null,null,null,null,null,null,null,null,null,null,null,null,"","",""," ",null,null,null,null,null,null,null,null,null,null,null,null,null,"","",""," ","","",0]
["A10",10,{"$f":"'C. FILIACION'!C23:D23","v":0},null,null,null,null,null,null,null,null,null,null,null,null,null,"","",""," ",null,null,null,null,null,null,null,null,null,null,null,null,null,"","",""," ",null,null,null,null,null,null,null,null,null,null,null,null,null,"","",""," ",null,null,null,null,null,null,null,null,null,null,null,null,null,"","",""," ","","",0]
["A11",11,{"$f":"'C. FILIACION'!C24:D24","v":0},null,null,null,null,null,null,null,null,null,null,null,null,null,"","",""," ",null,null,null,null,null,null,null,null,null,null,null,null,null,"","",""," ",null,null,null,null,null,null,null,null,null,null,null,null,null,"","",""," ",null,null,null,null,null,null,null,null,null,null,null,null,null,"","",""," ","","",0]
["A12",12,{"$f":"'C. FILIACION'!C25:D25","v":0},null,null,null,null,null,null,null,null,null,null,null,null,null,"","",""," ",null,null,null,null,null,null,null,null,null,null,null,null,null,"","",""," ",null,null,null,null,null,null,null,null,null,null,null,null,null,"","",""," ",null,null,null,null,null,null,null,null,null,null,null,null,null,"","",""," ","","",0]
["A13",13,{"$f":"'C. FILIACION'!C26:D26","v":0},null,null,null,null,null,null,null,null,null,null,null,null,null,"","",""," ",null,null,null,null,null,null,null,null,null,null,null,null,null,"","",""," ",null,null,null,null,null,null,null,null,null,null,null,null,null,"","",""," ",null,null,null,null,null,null,null,null,null,null,null,null,null,"","",""," ","","",0]
["A14",14,{"$f":"'C. FILIACION'!C27:D27","v":0},null,null,null,null,null,null,null,null,null,null,null,null,null,"","",""," ",null,null,null,null,null,null,null,null,null,null,null,null,null,"","",""," ",null,null,null,null,null,null,null,null,null,null,null,null,null,"","",""," ",null,null,null,null,null,null,null,null,null,null,null,null,null,"","",""," ","","",0]
["A15",15,{"$f":"'C. FILIACION'!C28:D28","v":0},null,null,null,null,null,null,null,null,null,null,null,null,null,"","",""," ",null,null,null,null,null,null,null,null,null,null,null,null,null,"","",""," ",null,null,null,null,null,null,null,null,null,null,null,null,null,"","",""," ",null,null,null,null,null,null,null,null,null,null,null,null,null,"","",""," ","","",0]
["A16",16,{"$f":"'C. FILIACION'!C29:D29","v":0},null,null,null,null,null,null,null,null,null,null,null,null,null,"","",""," ",null,null,null,null,null,null,null,null,null,null,null,null,null,"","",""," ",null,null,null,null,null,null,null,null,null,null,null,null,null,"","",""," ",null,null,null,null,null,null,null,null,null,null,null,null,null,"","",""," ","","",0]
["A17",17,{"$f":"'C. FILIACION'!C30:D30","v":0},null,null,null,null,null,null,null,null,null,null,null,null,null,"","",""," ",null,null,null,null,null,null,null,null,null,null,null,null,null,"","",""," ",null,null,null,null,null,null,null,null,null,null,null,null,null,"","",""," ",null,null,null,null,null,null,null,null,null,null,null,null,null,"","",""," ","","",0]
["A18",18,{"$f":"'C. FILIACION'!C31:D31","v":0},null,null,null,null,null,null,null,null,null,null,null,null,null,"","",""," ",null,null,null,null,null,null,null,null,null,null,null,null,null,"","",""," ",null,null,null,null,null,null,null,null,null,null,null,null,null,"","",""," ",null,null,null,null,null,null,null,null,null,null,null,null,null,"","",""," ","","",0]
["A19",19,{"$f":"'C. FILIACION'!C32:D32","v":0},null,null,null,null,null,null,null,null,null,null,null,null,null,"","",""," ",null,null,null,null,null,null,null,null,null,null,null,null,null,"","",""," ",null,null,null,null,null,null,null,null,null,null,null,null,null,"","",""," ",null,null,null,null,null,null,null,null,null,null,null,null,null,"","",""," ","","",0]
["A20",20,{"$f":"'C. FILIACION'!C33:D33","v":0},null,null,null,null,null,null,null,null,null,null,null,null,null,"","",""," ",null,null,null,null,null,null,null,null,null,null,null,null,null,"","",""," ",null,null,null,null,null,null,null,null,null,null,null,null,null,"","",""," ",null,null,null,null,null,null,null,null,null,null,null,null,null,"","",""," ","","",0]
["A21",21,{"$f":"'C. FILIACION'!C34:D34","v":0},null,null,null,null,null,null,null,null,null,null,null,null,null,"","",""," ",null,null,null,null,null,null,null,null,null,null,null,null,null,"","",""," ",null,null,null,null,null,null,null,null,null,null,null,null,null,"","",""," ",null,null,null,null,null,null,null,null,null,null,null,null,null,"","",""," ","","",0]
["A22",22,{"$f":"'C. FILIACION'!C35:D35","v":0},null,null,null,null,null,null,null,null,null,null,null,null,null,"","",""," ",null,null,null,null,null,null,null,null,null,null,null,null,null,"","",""," ",null,null,null,null,null,null,null,null,null,null,null,null,null,"","",""," ",null,null,null,null,null,null,null,null,null,null,null,null,null,"","",""," ","","",0]
["A23",23,{"$f":"'C. FILIACION'!C36:D36","v":0},null,null,null,null,null,null,null,null,null,null,null,null,null,"","",""," ",null,null,null,null,null,null,null,null,null,null,null,null,null,"","",""," ",null,null,null,null,null,null,null,null,null,null,null,null,null,"","",""," ",null,null,null,null,null,null,null,null,null,null,null,null,null,"","",""," ","","",0]
["A24",24,{"$f":"'C. FILIACION'!C37:D37","v":0},null,null,null,null,null,null,null,null,null,null,null,null,null,"","",""," ",null,null,null,null,null,null,null,null,null,null,null,null,null,"","",""," ",null,null,null,null,null,null,null,null,null,null,null,null,null,"","",""," ",null,null,null,null,null,null,null,null,null,null,null,null,null,"","",""," ","","",0]
["A25",25,{"$f":"'C. FILIACION'!C38:D38","v":0},null,null,null,null,null,null,null,null,null,null,null,null,null,"","",""," ",null,null,null,null,null,null,null,null,null,null,null,null,null,"","",""," ",null,null,null,null,null,null,null,null,null,null,null,null,null,"","",""," ",null,null,null,null,null,null,null,null,null,null,null,null,null,"","",""," ","","",0]
["A26",26,{"$f":"'C. FILIACION'!C39:D39","v":0},null,null,null,null,null,null,null,null,null,null,null,null,null,"","",""," ",null,null,null,null,null,null,null,null,null,null,null,null,null,"","",""," ",null,null,null,null,null,null,null,null,null,null,null,null,null,"","",""," ",null,null,null,null,null,null,null,null,null,null,null,null,null,"","",""," ","","",0]
["A27",27,{"$f":"'C. FILIACION'!C40:D40","v":0},null,null,null,null,null,null,null,null,null,null,null,null,null,"","",""," ",null,null,null,null,null,null,null,null,null,null,null,null,null,"","",""," ",null,null,null,null,null,null,null,null,null,null,null,null,null,"","",""," ",null,null,null,null,null,null,null,null,null,null,null,null,null,"","",""," ","","",0]
["A28",28,{"$f":"'C. FILIACION'!C41:D41","v":0},null,null,null,null,null,null,null,null,null,null,null,null,null,"","",""," ",null,null,null,null,null,null,null,null,null,null,null,null,null,"","",""," ",null,null,null,null,null,null,null,null,null,null,null,null,null,"","",""," ",null,null,null,null,null,null,null,null,null,null,null,null,null,"","",""," ","","",0]
["A29",29,{"$f":"'C. FILIACION'!C42:D42","v":0},null,null,null,null,null,null,null,null,null,null,null,null,null,"","",""," ",null,null,null,null,null,null,null,null,null,null,null,null,null,"","",""," ",null,null,null,null,null,null,null,null,null,null,null,null,null,"","",""," ",null,null,null,null,null,null,null,null,null,null,null,null,null,"","",""," ","","",0]
["A30",30,{"$f":"'C. FILIACION'!C43:D43","v":0},null,null,null,null,null,null,null,null,null,null,null,null,null,"","",""," ",null,null,null,null,null,null,null,null,null,null,null,null,null,"","",""," ",null,null,null,null,null,null,null,null,null,null,null,null,null,"","",""," ",null,null,null,null,null,null,null,null,null,null,null,null,null,"","",""," ","","",0]
["A31",31,{"$f":"'C. FILIACION'!C44:D44","v":0},null,null,null,null,null,null,null,null,null,null,null,null,null,"","",""," ",null,null,null,null,null,null,null,null,null,null,null,null,null,"","",""," ",null,null,null,null,null,null,null,null,null,null,null,null,null,"","",""," ",null,null,null,null,null,null,null,null,null,null,null,null,null,"","",""," ","","",0]
["A32",32,{"$f":"'C. FILIACION'!C45:D45","v":0},null,null,null,null,null,null,null,null,null,null,null,null,null,"","",""," ",null,null,null,null,null,null,null,null,null,null,null,null,null,"","",""," ",null,null,null,null,null,null,null,null,null,null,null,null,null,"","",""," ",null,null,null,null,null,null,null,null,null,null,null,null,null,"","",""," ","","",0]
["A33",33,{"$f":"'C. FILIACION'!C46:D46","v":0},null,null,null,null,null,null,null,null,null,null,null,null,null,"","",""," ",null,null,null,null,null,null,null,null,null,null,null,null,null,"","",""," ",null,null,null,null,null,null,null,null,null,null,null,null,null,"","",""," ",null,null,null,null,null,null,null,null,null,null,null,null,null,"","",""," ","","",0]
["A34",34,{"$f":"'C. FILIACION'!C47:D47","v":0},null,null,null,null,null,null,null,null,null,null,null,null,null,"","",""," ",null,null,null,null,null,null,null,null,null,null,null,null,null,"","",""," ",null,null,null,null,null,null,null,null,null,null,null,null,null,"","",""," ",null,null,null,null,null,null,null,null,null,null,null,null,null,"","",""," ","","",0]
["A35",35,{"$f":"'C. FILIACION'!C48:D48","v":0},null,null,null,null,null,null,null,null,null,null,null,null,null,"","",""," ",null,null,null,null,null,null,null,null,null,null,null,null,null,"","",""," ",null,null,null,null,null,null,null,null,null,null,null,null,null,"","",""," ",null,null,null,null,null,null,null,null,null,null,null,null,null,"","",""," ","","",0]
["A36",36,{"$f":"'C. FILIACION'!C49:D49","v":0},null,null,null,null,null,null,null,null,null,null,null,null,null,"","",""," ",null,null,null,null,null,null,null,null,null,null,null,null,null,"","",""," ",null,null,null,null,null,null,null,null,null,null,null,null,null,"","",""," ",null,null,null,null,null,null,null,null,null,null,null,null,null,"","",""," ","","",0]
["A37",37,{"$f":"'C. FILIACION'!C50:D50","v":0},null,null,null,null,null,null,null,null,null,null,null,null,null,"","",""," ",null,null,null,null,null,null,null,null,null,null,null,null,null,"","",""," ",null,null,null,null,null,null,null,null,null,null,null,null,null,"","",""," ",null,null,null,null,null,null,null,null,null,null,null,null,null,"","",""," ","","",0]
["A38",38,{"$f":"'C. FILIACION'!C51:D51","v":0},null,null,null,null,null,null,null,null,null,null,null,null,null,"","",""," ",null,null,null,null,null,null,null,null,null,null,null,null,null,"","",""," ",null,null,null,null,null,null,null,null,null,null,null,null,null,"","",""," ",null,null,null,null,null,null,null,null,null,null,null,null,null,"","",""," ","","",0]
["A39",39,{"$f":"'C. FILIACION'!C52:D52","v":0},null,null,null,null,null,null,null,null,null,null,null,null,null,"","",""," ",null,null,null,null,null,null,null,null,null,null,null,null,null,"","",""," ",null,null,null,null,null,null,null,null,null,null,null,null,null,"","",""," ",null,null,null,null,null,null,null,null,null,null,null,null,null,"","",""," ","","",0]
["A40",40,{"$f":"'C. FILIACION'!C53:D53","v":0},null,null,null,null,null,null,null,null,null,null,null,null,null,"","",""," ",null,null,null,null,null,null,null,null,null,null,null,null,null,"","",""," ",null,null,null,null,null,null,null,null,null,null,null,null,null,"","",""," ",null,null,null,null,null,null,null,null,null,null,null,null,null,"","",""," ","","",0]
["A41",41,{"$f":"'C. FILIACION'!C54:D54","v":0},null,null,null,null,null,null,null,null,null,null,null,null,null,"","",""," ",null,null,null,null,null,null,null,null,null,null,null,null,null,"","",""," ",null,null,null,null,null,null,null,null,null,null,null,null,null,"","",""," ",null,null,null,null,null,null,null,null,null,null,null,null,null,"","",""," ","","",0]
["A42",42,{"$f":"'C. FILIACION'!C55:D55","v":0},null,null,null,null,null,null,null,null,null,null,null,null,null,"","",""," ",null,null,null,null,null,null,null,null,null,null,null,null,null,"","",""," ",null,null,null,null,null,null,null,null,null,null,null,null,null,"","",""," ",null,null,null,null,null,null,null,null,null,null,null,null,null,"","",""," ","","",0]
["A43",43,{"$f":"'C. FILIACION'!C56:D56","v":0},null,null,null,null,null,null,null,null,null,null,null,null,null,"","",""," ",null,null,null,null,null,null,null,null,null,null,null,null,null,"","",""," ",null,null,null,null,null,null,null,null,null,null,null,null,null,"","",""," ",null,null,null,null,null,null,null,null,null,null,null,null,null,"","",""," ","","",0]
["A44",44,{"$f":"'C. FILIACION'!C57:D57","v":0},null,null,null,null,null,null,null,null,null,null,null,null,null,"","",""," ",null,null,null,null,null,null,null,null,null,null,null,null,null,"","",""," ",null,null,null,null,null,null,null,null,null,null,null,null,null,"","",""," ",null,null,null,null,null,null,null,null,null,null,null,null,null,"","",""," ","","",0]
["A45",45,{"$f":"'C. FILIACION'!C58:D58","v":0},null,null,null,null,null,null,null,null,null,null,null,null,null,"","",""," ",null,null,null,null,null,null,null,null,null,null,null,null,null,"","",""," ",null,null,null,null,null,null,null,null,null,null,null,null,null,"","",""," ",null,null,null,null,null,null,null,null,null,null,null,null,null,"","",""," ","","",0]
[]
[null,null,null,null,null,null,null,null,"TOTAL REPROBADOS POR BIMESTRE",null,null,null,null,null,null,null,null,null,null,{"$f":"COUNT(T14:T58)","v":0},null,null,null,null,null,"TOTAL REPROBADOS POR BIMESTRE",null,null,null,null,null,null,null,null,null,null,{"$f":"COUNT(AK14:AK58)","v":0},null,null,null,null,null,"TOTAL REPROBADOS POR BIMESTRE",null,null,null,null,null,null,null,null,null,null,{"$f":"COUNT(BB14:BB58)","v":0},null,null,null,null,null,"TOTAL REPROBADOS POR BIMESTRE",null,null,null,null,null,null,null,null,null,null,{"$f":"COUNT(BS14:BS58)","v":0}]
[]
[]
[]
[]
[null,1,"TÉCNICA TECNOLOGÍA GENERAL"]
[null,2,"ESPECIALIDAD: AGROPECUARIA"]
[null,3,"ESPECIALIDAD: AGROECOLOGÍA"]
[null,4,"ESPECIALIDAD: VETERINARIA Y ZOOTECNIA"]
[null,5,"ESPECIALIDAD: MECÁNICA AUTOMOTRIZ"]
[null,6,"ESPECIALIDAD: MECÁNICA INDUSTRIAL"]
[null,7,"ESPECIALIDAD: ELECTRÓNICA"]
[null,8,"ESPECIALIDAD: ELECTRICIDAD"]
[null,9,"ESPECIALIDAD: ELECTROMECÁNICA"]
[null,10,"ESPECIALIDAD: ROBÓTICA"]
[null,11,"ESPECIALIDAD: TRANSFORMACIÓN  DE ALIMENTOS"]
[null,12,"ESPECIALIDAD: TURISMO Y HOTELERÍA"]
[null,13,"ESPECIALIDAD: CONSTRUCCIÓN CIVIL"]
[null,14,"ESPECIALIDAD: TEXTILES Y CONFECCIONES"]
[null,15,"ESPECIALIDAD: SISTEMAS INFORMÁTICOS"]
[null,16,"ESPECIALIDAD: ADMINISTRACIÓN"]
[null,17,"ESPECIALIDAD: CONTABILIDAD"]
[null,18,"ESPECIALIDAD: SECRETARIADO"]
[null,19,"ESPECIALIDAD: ARTE Y ARTESANÍA"]
[null,20,"ESPECIALIDAD: QUÍMICA INDUSTRIAL"]
[null,21,"ESPECIALIDAD: INSTALACIONES DE GAS DOMICILIARIO "]
[null,22,"ESPECIALIDAD: LENGUA EXTRANJERA: INGLES "]
[null,23,"ESPECIALIDAD: CARPINTERÍA EN MADERA"]
[null,24,"ESPECIALIDAD: CARPINTERÍA METÁLICA "]
[null,25,"ESPECIALIDAD: COMUNICACIÓN"]
[null,26,"ESPECIALIDAD: GASTRONOMÍA"]
[null,27,"ESPECIALIDAD: VITICULTURA Y ENOLOGÍA "]
[null,28,"ESPECIALIDAD: TEJIDOS Y TELARES "]
[null,29,"ESPECIALIDAD: DISEÑO GRÁFICO "]
[null,30,"ESPECIALIDAD: MERCADOTECNIA "]
[null,31,"ESPECIALIDAD: CERÁMICA Y ALFARERÍA "]
[null,32,"ESPECIALIDAD: RESTAURACIÓN Y CONSERVACIÓN PATRIMONIAL "]
[null,33,"ESPECIALIDAD: LENGUAS INDÍGENAS ORIGINARIA "]
[null,34,"ESPECIALIDAD: INSTRUMENTO MUSICAL - CUERDA "]
[null,35,"ESPECIALIDAD: INSTRUMENTO MUSICAL - PERCUSIÓN "]
[null,36,"ESPECIALIDAD: INSTRUMENTO MUSICAL - VIENTO "]
[null,37,"ESPECIALIDAD: TEATRO"]
[null,38,"ESPECIALIDAD: CANTO"]
[null,39,"ESPECIALIDAD: DANZA MODERNA "]
[null,40,"ESPECIALIDAD: BELLEZA INTEGRAL "]
[null,41,"ESPECIALIDAD: SALUD Y PRIMEROS AUXILIOS "]

{"sheet":"BOLETINES ","index":19,"n_rows":37,"n_cols":8,"rows_kept":37,"cut":false,"hidden":false,"merged":[[18,2,19,2],[18,3,18,7],[36,5,36,7],[3,1,3,9],[17,2,17,3],[17,4,17,7],[6,2,15,2],[6,4,6,5],[7,4,7,5],[8,4,8,5],[9,4,9,5],[10,4,10,5],[11,4,11,5],[12,4,12,5],[6,6,6,8],[7,6,7,8],[13,4,13,5],[13,6,13,8],[35,5,35,7],[8,6,8,8],[9,6,9,8],[10,6,10,8],[11,6,11,8],[12,6,12,8]]}
[]
[]
[]
[null,"DATOS DEL ESTUDIANTE "]
[null,null,"CÓDIGO DE ESTUDIANTE ","A1"]
[]
[null,null,{"$f":"INDEX('CODIGO Y FOTOGRAFIA '!B3:E47,MATCH('BOLETINES '!D5,'CODIGO Y FOTOGRAFIA '!B3:B47,0),4)","v":"IMAG1"},null,"NOMBRE ",null,{"$f":"INDEX('C. FILIACION'!A14:Q58,MATCH('BOLETINES '!D5,'C. FILIACION'!A14:A58,0),3)","v":0}]
[null,null,null,null,"GÉNERO",null,{"$f":"INDEX('C. FILIACION'!A14:Q58,MATCH('BOLETINES '!D5,'C. FILIACION'!A14:A58,0),5)","v":0}]
[null,null,null,null,"EDAD",null,{"$f":"INDEX('C. FILIACION'!A14:Q58,MATCH('BOLETINES '!D5,'C. FILIACION'!A14:A58,0),9)","v":{"$error":"#NUM!"}}]
[null,null,null,null,"RUDE ",null,{"$f":"INDEX('C. FILIACION'!A14:Q58,MATCH('BOLETINES '!D5,'C. FILIACION'!A14:A58,0),11)","v":0}]
[null,null,null,null,"C.I.",null,{"$f":"INDEX('C. FILIACION'!A14:Q58,MATCH('BOLETINES '!D5,'C. FILIACION'!A14:A58,0),12)","v":0}]
[null,null,null,null,"DIRECCIÓN ACTUAL",null,{"$f":"INDEX('C. FILIACION'!A14:Q58,MATCH('BOLETINES '!D5,'C. FILIACION'!A14:A58,0),14)","v":0}]
[null,null,null,null,"NOMBRE DE TUTOR",null,{"$f":"INDEX('C. FILIACION'!A14:Q58,MATCH('BOLETINES '!D5,'C. FILIACION'!A14:A58,0),15)","v":0}]
[null,null,null,null,"TELÉFONO ",null,{"$f":"INDEX('C. FILIACION'!A14:Q58,MATCH('BOLETINES '!D5,'C. FILIACION'!A14:A58,0),17)","v":0}]
[]
[]
[]
[null,null,{"$f":"G7","v":0},null,{"$f":"CONCATENATE(CARATULA!G28,\" \",CARATULA!H28)","v":" "}]
[null,null,"ÁREAS CURRICULARES ","VALORACIÓN CUANTITATIVA "]
[null,null,null,"1⁰ BIMESTRE","2⁰ BIMESTRE","3⁰ BIMESTRE","4⁰ BIMESTRE","PRO. ANUAL"]
[null,null,"COMUNICACIÓN Y LENGUAJES: LENGUA CASTELLANA Y ORIGINARIA ",{"$f":"INDEX('CEN. POR AREA'!A14:Q58,MATCH('BOLETINES '!D5,'CEN. POR AREA'!A14:A58,0),4)","v":0},{"$f":"INDEX('CEN. POR AREA'!A14:AH58,MATCH('BOLETINES '!D5,'CEN. POR AREA'!A14:A58,0),21)","v":0},{"$f":"INDEX('CEN. POR AREA'!A14:AY58,MATCH('BOLETINES '!D5,'CEN. POR AREA'!A14:A58,0),38)","v":0},{"$f":"INDEX('CEN. POR AREA'!A14:BP58,MATCH('BOLETINES '!D5,'CEN. POR AREA'!A14:A58,0),55)","v":0},{"$f":"IFERROR(AVERAGE(D21:G21),\"\")","v":0}]
[null,null,"LENGUA EXTRANJERA",{"$f":"INDEX('CEN. POR AREA'!A14:Q58,MATCH('BOLETINES '!D5,'CEN. POR AREA'!A14:A58,0),5)","v":0},{"$f":"INDEX('CEN. POR AREA'!A14:AH58,MATCH('BOLETINES '!D5,'CEN. POR AREA'!A14:A58,0),22)","v":0},{"$f":"INDEX('CEN. POR AREA'!A14:AY58,MATCH('BOLETINES '!D5,'CEN. POR AREA'!A14:A58,0),39)","v":0},{"$f":"INDEX('CEN. POR AREA'!A14:BP58,MATCH('BOLETINES '!D5,'CEN. POR AREA'!A14:A58,0),56)","v":0},{"$f":"IFERROR(AVERAGE(D22:G22),\"\")","v":0}]
[null,null,"CIENCIAS SOCIALES ",{"$f":"INDEX('CEN. POR AREA'!A14:Q58,MATCH('BOLETINES '!D5,'CEN. POR AREA'!A14:A58,0),6)","v":0},{"$f":"INDEX('CEN. POR AREA'!A14:AH58,MATCH('BOLETINES '!D5,'CEN. POR AREA'!A14:A58,0),23)","v":0},{"$f":"INDEX('CEN. POR AREA'!A14:AY58,MATCH('BOLETINES '!D5,'CEN. POR AREA'!A14:A58,0),40)","v":0},{"$f":"INDEX('CEN. POR AREA'!A14:BP58,MATCH('BOLETINES '!D5,'CEN. POR AREA'!A14:A58,0),57)","v":0},0]
[null,null,"EDUCACIÓN FÍSICA Y DEPORTES",{"$f":"INDEX('CEN. POR AREA'!A14:Q58,MATCH('BOLETINES '!D5,'CEN. POR AREA'!A14:A58,0),7)","v":0},{"$f":"INDEX('CEN. POR AREA'!A14:AH58,MATCH('BOLETINES '!D5,'CEN. POR AREA'!A14:A58,0),24)","v":0},{"$f":"INDEX('CEN. POR AREA'!A14:AY58,MATCH('BOLETINES '!D5,'CEN. POR AREA'!A14:A58,0),41)","v":0},{"$f":"INDEX('CEN. POR AREA'!A14:BP58,MATCH('BOLETINES '!D5,'CEN. POR AREA'!A14:A58,0),58)","v":0},0]
[null,null,"EDUCACIÓN MUSICAL",{"$f":"INDEX('CEN. POR AREA'!A14:Q58,MATCH('BOLETINES '!D5,'CEN. POR AREA'!A14:A58,0),8)","v":0},{"$f":"INDEX('CEN. POR AREA'!A14:AH58,MATCH('BOLETINES '!D5,'CEN. POR AREA'!A14:A58,0),25)","v":0},{"$f":"INDEX('CEN. POR AREA'!A14:AY58,MATCH('BOLETINES '!D5,'CEN. POR AREA'!A14:A58,0),42)","v":0},{"$f":"INDEX('CEN. POR AREA'!A14:BP58,MATCH('BOLETINES '!D5,'CEN. POR AREA'!A14:A58,0),59)","v":0},0]
[null,null,"ARTES PLÁSTICAS Y VISUALES ",{"$f":"INDEX('CEN. POR AREA'!A14:Q58,MATCH('BOLETINES '!D5,'CEN. POR AREA'!A14:A58,0),9)","v":0},{"$f":"INDEX('CEN. POR AREA'!A14:AH58,MATCH('BOLETINES '!D5,'CEN. POR AREA'!A14:A58,0),26)","v":0},{"$f":"INDEX('CEN. POR AREA'!A14:AY58,MATCH('BOLETINES '!D5,'CEN. POR AREA'!A14:A58,0),43)","v":0},{"$f":"INDEX('CEN. POR AREA'!A14:BP58,MATCH('BOLETINES '!D5,'CEN. POR AREA'!A14:A58,0),60)","v":0},0]
[null,null,"MATEMÁTICA ",{"$f":"INDEX('CEN. POR AREA'!A14:Q58,MATCH('BOLETINES '!D5,'CEN. POR AREA'!A14:A58,0),10)","v":0},{"$f":"INDEX('CEN. POR AREA'!A14:AH58,MATCH('BOLETINES '!D5,'CEN. POR AREA'!A14:A58,0),27)","v":0},{"$f":"INDEX('CEN. POR AREA'!A14:AY58,MATCH('BOLETINES '!D5,'CEN. POR AREA'!A14:A58,0),44)","v":0},{"$f":"INDEX('CEN. POR AREA'!A14:BP58,MATCH('BOLETINES '!D5,'CEN. POR AREA'!A14:A58,0),61)","v":0},0]
[null,null,{"$f":"'CEN. POR AREA'!K13","v":"ESPECIALIDAD: AGROECOLOGÍA"},{"$f":"INDEX('CEN. POR AREA'!A14:Q58,MATCH('BOLETINES '!D5,'CEN. POR AREA'!A14:A58,0),11)","v":0},{"$f":"INDEX('CEN. POR AREA'!A14:AH58,MATCH('BOLETINES '!D5,'CEN. POR AREA'!A14:A58,0),28)","v":0},{"$f":"INDEX('CEN. POR AREA'!A14:AY58,MATCH('BOLETINES '!D5,'CEN. POR AREA'!A14:A58,0),45)","v":0},{"$f":"INDEX('CEN. POR AREA'!A14:BP58,MATCH('BOLETINES '!D5,'CEN. POR AREA'!A14:A58,0),62)","v":0},0]
[null,null,"CIENCIAS NATURALES: BIOLOGÍA - GEOGRAFÍA",{"$f":"INDEX('CEN. POR AREA'!A14:Q58,MATCH('BOLETINES '!D5,'CEN. POR AREA'!A14:A58,0),12)","v":0},{"$f":"INDEX('CEN. POR AREA'!A14:AH58,MATCH('BOLETINES '!D5,'CEN. POR AREA'!A14:A58,0),29)","v":0},{"$f":"INDEX('CEN. POR AREA'!A14:AY58,MATCH('BOLETINES '!D5,'CEN. POR AREA'!A14:A58,0),46)","v":0},{"$f":"INDEX('CEN. POR AREA'!A14:BP58,MATCH('BOLETINES '!D5,'CEN. POR AREA'!A14:A58,0),63)","v":0},0]
[null,null,"CIENCIAS NATURALES: FÍSICA ",{"$f":"INDEX('CEN. POR AREA'!A14:Q58,MATCH('BOLETINES '!D5,'CEN. POR AREA'!A14:A58,0),13)","v":0},{"$f":"INDEX('CEN. POR AREA'!A14:AH58,MATCH('BOLETINES '!D5,'CEN. POR AREA'!A14:A58,0),30)","v":0},{"$f":"INDEX('CEN. POR AREA'!A14:AY58,MATCH('BOLETINES '!D5,'CEN. POR AREA'!A14:A58,0),47)","v":0},{"$f":"INDEX('CEN. POR AREA'!A14:BP58,MATCH('BOLETINES '!D5,'CEN. POR AREA'!A14:A58,0),64)","v":0},0]
[null,null,"CIENCIAS NATURALES: QUÍMICA ",{"$f":"INDEX('CEN. POR AREA'!A14:Q58,MATCH('BOLETINES '!D5,'CEN. POR AREA'!A14:A58,0),14)","v":0},{"$f":"INDEX('CEN. POR AREA'!A14:AH58,MATCH('BOLETINES '!D5,'CEN. POR AREA'!A14:A58,0),31)","v":0},{"$f":"INDEX('CEN. POR AREA'!A14:AY58,MATCH('BOLETINES '!D5,'CEN. POR AREA'!A14:A58,0),48)","v":0},{"$f":"INDEX('CEN. POR AREA'!A14:BP58,MATCH('BOLETINES '!D5,'CEN. POR AREA'!A14:A58,0),65)","v":0},0]
[null,null,"COSMOVISIONES, FILOSOFÍA Y SICOLOGÍA ",{"$f":"INDEX('CEN. POR AREA'!A14:Q58,MATCH('BOLETINES '!D5,'CEN. POR AREA'!A14:A58,0),15)","v":0},{"$f":"INDEX('CEN. POR AREA'!A14:AH58,MATCH('BOLETINES '!D5,'CEN. POR AREA'!A14:A58,0),32)","v":0},{"$f":"INDEX('CEN. POR AREA'!A14:AY58,MATCH('BOLETINES '!D5,'CEN. POR AREA'!A14:A58,0),49)","v":0},{"$f":"INDEX('CEN. POR AREA'!A14:BP58,MATCH('BOLETINES '!D5,'CEN. POR AREA'!A14:A58,0),66)","v":0},0]
[null,null,"VALORES, ESPIRITUALIDAD Y RELIGIONES",{"$f":"INDEX('CEN. POR AREA'!A14:Q58,MATCH('BOLETINES '!D5,'CEN. POR AREA'!A14:A58,0),16)","v":0},{"$f":"INDEX('CEN. POR AREA'!A14:AH58,MATCH('BOLETINES '!D5,'CEN. POR AREA'!A14:A58,0),33)","v":0},{"$f":"INDEX('CEN. POR AREA'!A14:AY58,MATCH('BOLETINES '!D5,'CEN. POR AREA'!A14:A58,0),50)","v":0},{"$f":"INDEX('CEN. POR AREA'!A14:BP58,MATCH('BOLETINES '!D5,'CEN. POR AREA'!A14:A58,0),67)","v":0},0]
[null,null,"PROMEDIO BIMESTRAL Y ANUAL ",{"$f":"INDEX('CEN. POR AREA'!A14:Q58,MATCH('BOLETINES '!D5,'CEN. POR AREA'!A14:A58,0),17)","v":""},{"$f":"INDEX('CEN. POR AREA'!A14:AH58,MATCH('BOLETINES '!D5,'CEN. POR AREA'!A14:A58,0),34)","v":""},{"$f":"INDEX('CEN. POR AREA'!A14:AY58,MATCH('BOLETINES '!D5,'CEN. POR AREA'!A14:A58,0),51)","v":""},{"$f":"INDEX('CEN. POR AREA'!A14:BP58,MATCH('BOLETINES '!D5,'CEN. POR AREA'!A14:A58,0),68)","v":""},{"$f":"INDEX('CEN. POR AREA'!A14:BT58,MATCH('BOLETINES '!D5,'CEN. POR AREA'!A14:A58,0),72)","v":""}]
[]
[]
[null,null,{"$f":"CARATULA!G22","v":0},null,null,{"$f":"CARATULA!G24","v":0}]

{"sheet":"NOT_ALT","index":20,"n_rows":51,"n_cols":11,"rows_kept":51,"cut":false,"hidden":true,"merged":[]}
[]
[]
[]
[]
[]
["Nº","NOTA","Nº","APELLIDOS Y NOMBRES",null,"nombre ","promedio "]
[1,{"$f":"IF('CEN. POR AREA'!BU$14<=1,\" \",LARGE('CEN. POR AREA'!BU$14:BU$58,1))","v":{"$error":"#NUM!"}},{"$f":"IF(B7<=1,\" \",MATCH(B7,'CEN. POR AREA'!BU$14:BU$58,0))","v":{"$error":"#NUM!"}},{"$f":"LOOKUP(C7,'CEN. POR AREA'!B$14:B$58:'CEN. POR AREA'!C$14:C$58)","v":{"$error":"#NUM!"}},1,{"$f":"IF('C. FILIACION'!C16=\"\",0,'C. FILIACION'!C16)","v":0},{"$f":"IF('CEN. POR AREA'!BU16=\"\",0,'CEN. POR AREA'!BU16)","v":0},{"$f":"IF(G7<=1,\" \",LARGE(G7:G51,1))","v":" "},{"$f":"IF(H7<=1,\" \",MATCH(H7,$G$7:$G$51,1))","v":{"$error":"#N/A"}},{"$f":"VLOOKUP(I7,E6:F50,2,TRUE)","v":{"$error":"#N/A"}},{"$f":"VLOOKUP(H7,F7:H26,2,FALSE)","v":{"$error":"#N/A"}}]
[2,{"$f":"IF('CEN. POR AREA'!BU$14<=1,\" \",LARGE('CEN. POR AREA'!BU$14:BU$58,2))","v":{"$error":"#NUM!"}},{"$f":"IF(B8<=1,\" \",MATCH(B8,'CEN. POR AREA'!BU$14:BU$58,0))","v":{"$error":"#NUM!"}},{"$f":"LOOKUP(C8,'CEN. POR AREA'!B$14:B$58:'CEN. POR AREA'!C$14:C$58)","v":{"$error":"#NUM!"}},2,{"$f":"IF('C. FILIACION'!C26=\"\",0,'C. FILIACION'!C26)","v":0},{"$f":"IF('CEN. POR AREA'!BU26=\"\",0,'CEN. POR AREA'!BU26)","v":0},{"$f":"IF(G8<=1,\" \",LARGE(G7:G51,2))","v":" "},{"$f":"IF(H8<=1,\" \",MATCH(H8,$G$7:$G$51,0))","v":{"$error":"#N/A"}},{"$f":"VLOOKUP(I8,E7:F51,2,TRUE)","v":{"$error":"#N/A"}}]
[3,{"$f":"IF('CEN. POR AREA'!BU$14<=1,\" \",LARGE('CEN. POR AREA'!BU$14:BU$58,3))","v":{"$error":"#NUM!"}},{"$f":"IF(B9<=1,\" \",MATCH(B9,'CEN. POR AREA'!BU$14:BU$58,0))","v":{"$error":"#NUM!"}},{"$f":"LOOKUP(C9,'CEN. POR AREA'!B$14:B$58:'CEN. POR AREA'!C$14:C$58)","v":{"$error":"#NUM!"}},3,{"$f":"IF('C. FILIACION'!C29=\"\",0,'C. FILIACION'!C29)","v":0},{"$f":"IF('CEN. POR AREA'!BU29=\"\",0,'CEN. POR AREA'!BU29)","v":0},{"$f":"IF(G9<=1,\" \",LARGE(G7:G51,3))","v":" "},{"$f":"IF(H9<=1,\" \",MATCH(H9,$G$7:$G$51,0))","v":{"$error":"#N/A"}},{"$f":"VLOOKUP(I9,E7:F51,2,TRUE)","v":{"$error":"#N/A"}}]
[4,{"$f":"IF('CEN. POR AREA'!BU$14<=1,\" \",LARGE('CEN. POR AREA'!BU$14:BU$58,4))","v":{"$error":"#NUM!"}},{"$f":"IF(B10<=1,\" \",MATCH(B10,'CEN. POR AREA'!BU$14:BU$58,0))","v":{"$error":"#NUM!"}},{"$f":"LOOKUP(C10,'CEN. POR AREA'!B$14:B$58:'CEN. POR AREA'!C$14:C$58)","v":{"$error":"#NUM!"}},4,{"$f":"IF('C. FILIACION'!C22=\"\",0,'C. FILIACION'!C22)","v":0},{"$f":"IF('CEN. POR AREA'!BU22=\"\",0,'CEN. POR AREA'!BU22)","v":0},{"$f":"IF(G10<=1,\" \",LARGE(G7:G51,4))","v":" "},{"$f":"IF(H10<=1,\" \",MATCH(H10,$G$7:$G$51,0))","v":{"$error":"#N/A"}},{"$f":"VLOOKUP(I10,E7:F51,2,TRUE)","v":{"$error":"#N/A"}}]
[5,{"$f":"IF('CEN. POR AREA'!BU$14<=1,\" \",LARGE('CEN. POR AREA'!BU$14:BU$58,5))","v":{"$error":"#NUM!"}},{"$f":"IF(B11<=1,\" \",MATCH(B11,'CEN. POR AREA'!BU$14:BU$58,0))","v":{"$error":"#NUM!"}},{"$f":"LOOKUP(C11,'CEN. POR AREA'!B$14:B$58:'CEN. POR AREA'!C$14:C$58)","v":{"$error":"#NUM!"}},5,{"$f":"IF('C. FILIACION'!C31=\"\",0,'C. FILIACION'!C31)","v":0},{"$f":"IF('CEN. POR AREA'!BU31=\"\",0,'CEN. POR AREA'!BU31)","v":0},{"$f":"IF(G11<=1,\" \",LARGE(G7:G51,5))","v":" "},{"$f":"IF(H11<=1,\" \",MATCH(H11,$G$7:$G$51,0))","v":{"$error":"#N/A"}},{"$f":"VLOOKUP(I11,E7:F51,2,FALSE)","v":{"$error":"#N/A"}}]
[6,{"$f":"IF('CEN. POR AREA'!BU$14<=1,\" \",LARGE('CEN. POR AREA'!BU$14:BU$58,6))","v":{"$error":"#NUM!"}},{"$f":"IF(B12<=1,\" \",MATCH(B12,'CEN. POR AREA'!BU$14:BU$58,0))","v":{"$error":"#NUM!"}},{"$f":"LOOKUP(C12,'CEN. POR AREA'!B$14:B$58:'CEN. POR AREA'!C$14:C$58)","v":{"$error":"#NUM!"}},6,{"$f":"IF('C. FILIACION'!C24=\"\",0,'C. FILIACION'!C24)","v":0},{"$f":"IF('CEN. POR AREA'!BU24=\"\",0,'CEN. POR AREA'!BU24)","v":0},{"$f":"IF(G12<=1,\" \",LARGE(G7:G51,6))","v":" "},{"$f":"IF(H12<=1,\" \",MATCH(H12,G7:G51,0))","v":{"$error":"#N/A"}},{"$f":"VLOOKUP(I12,E12:F56,2,TRUE)","v":{"$error":"#N/A"}}]
[7,{"$f":"IF('CEN. POR AREA'!BU$14<=1,\" \",LARGE('CEN. POR AREA'!BU$14:BU$58,7))","v":{"$error":"#NUM!"}},{"$f":"IF(B13<=1,\" \",MATCH(B13,'CEN. POR AREA'!BU$14:BU$58,0))","v":{"$error":"#NUM!"}},{"$f":"LOOKUP(C13,'CEN. POR AREA'!B$14:B$58:'CEN. POR AREA'!C$14:C$58)","v":{"$error":"#NUM!"}},7,{"$f":"IF('C. FILIACION'!C19=\"\",0,'C. FILIACION'!C19)","v":0},{"$f":"IF('CEN. POR AREA'!BU19=\"\",0,'CEN. POR AREA'!BU19)","v":0},{"$f":"IF(G13<=1,\" \",LARGE(G7:G51,7))","v":" "},{"$f":"IF(H13<=1,\" \",MATCH(H13,G7:G51,0))","v":{"$error":"#N/A"}},{"$error":"#N/A"}]
[8,{"$f":"IF('CEN. POR AREA'!BU$14<=1,\" \",LARGE('CEN. POR AREA'!BU$14:BU$58,8))","v":{"$error":"#NUM!"}},{"$f":"IF(B14<=1,\" \",MATCH(B14,'CEN. POR AREA'!BU$14:BU$58,0))","v":{"$error":"#NUM!"}},{"$f":"LOOKUP(C14,'CEN. POR AREA'!B$14:B$58:'CEN. POR AREA'!C$14:C$58)","v":{"$error":"#NUM!"}},8,{"$f":"IF('C. FILIACION'!C21=\"\",0,'C. FILIACION'!C21)","v":0},{"$f":"IF('CEN. POR AREA'!BU21=\"\",0,'CEN. POR AREA'!BU21)","v":0},{"$f":"IF(G14<=1,\" \",LARGE(G7:G51,8))","v":" "},{"$f":"IF(H14<=1,\" \",MATCH(H14,G7:G51,0))","v":{"$error":"#N/A"}},{"$error":"#N/A"}]
[9,{"$f":"IF('CEN. POR AREA'!BU$14<=1,\" \",LARGE('CEN. POR AREA'!BU$14:BU$58,9))","v":{"$error":"#NUM!"}},{"$f":"IF(B15<=1,\" \",MATCH(B15,'CEN. POR AREA'!BU$14:BU$58,0))","v":{"$error":"#NUM!"}},{"$f":"LOOKUP(C15,'CEN. POR AREA'!B$14:B$58:'CEN. POR AREA'!C$14:C$58)","v":{"$error":"#NUM!"}},9,{"$f":"IF('C. FILIACION'!C25=\"\",0,'C. FILIACION'!C25)","v":0},{"$f":"IF('CEN. POR AREA'!BU25=\"\",0,'CEN. POR AREA'!BU25)","v":0},{"$f":"IF(G15<=1,\" \",LARGE(G7:G51,9))","v":" "},{"$f":"IF(H15<=1,\" \",MATCH(H15,G7:G51,0))","v":{"$error":"#N/A"}},{"$error":"#N/A"}]
[10,{"$f":"IF('CEN. POR AREA'!BU$14<=1,\" \",LARGE('CEN. POR AREA'!BU$14:BU$58,10))","v":{"$error":"#NUM!"}},{"$f":"IF(B16<=1,\" \",MATCH(B16,'CEN. POR AREA'!BU$14:BU$58,0))","v":{"$error":"#NUM!"}},{"$f":"LOOKUP(C16,'CEN. POR AREA'!B$14:B$58:'CEN. POR AREA'!C$14:C$58)","v":{"$error":"#NUM!"}},10,{"$f":"IF('C. FILIACION'!C23=\"\",0,'C. FILIACION'!C23)","v":0},{"$f":"IF('CEN. POR AREA'!BU23=\"\",0,'CEN. POR AREA'!BU23)","v":0},{"$f":"IF(G16<=1,\" \",LARGE(G7:G51,10))","v":" "},{"$f":"IF(H16<=1,\" \",MATCH(H16,G7:G51,0))","v":{"$error":"#N/A"}},{"$error":"#N/A"}]
[11,{"$f":"IF('CEN. POR AREA'!BU$14<=1,\" \",LARGE('CEN. POR AREA'!BU$14:BU$58,11))","v":{"$error":"#NUM!"}},{"$f":"IF(B17<=1,\" \",MATCH(B17,'CEN. POR AREA'!BU$14:BU$58,0))","v":{"$error":"#NUM!"}},{"$f":"LOOKUP(C17,'CEN. POR AREA'!B$14:B$58:'CEN. POR AREA'!C$14:C$58)","v":{"$error":"#NUM!"}},11,{"$f":"IF('C. FILIACION'!C14=\"\",0,'C. FILIACION'!C14)","v":0},{"$f":"IF('CEN. POR AREA'!BU14=\"\",0,'CEN. POR AREA'!BU14)","v":0},{"$f":"IF(G17<=1,\" \",LARGE(G7:G51,11))","v":" "},{"$f":"IF(H17<=1,\" \",MATCH(H17,G7:G51,0))","v":{"$error":"#N/A"}},{"$error":"#N/A"}]
[12,{"$f":"IF('CEN. POR AREA'!BU$14<=1,\" \",LARGE('CEN. POR AREA'!BU$14:BU$58,12))","v":{"$error":"#NUM!"}},{"$f":"IF(B18<=1,\" \",MATCH(B18,'CEN. POR AREA'!BU$14:BU$58,0))","v":{"$error":"#NUM!"}},{"$f":"LOOKUP(C18,'CEN. POR AREA'!B$14:B$58:'CEN. POR AREA'!C$14:C$58)","v":{"$error":"#NUM!"}},12,{"$f":"IF('C. FILIACION'!C32=\"\",0,'C. FILIACION'!C32)","v":0},{"$f":"IF('CEN. POR AREA'!BU32=\"\",0,'CEN. POR AREA'!BU32)","v":0},{"$f":"IF(G18<=1,\" \",LARGE(G7:G51,12))","v":" "},{"$f":"IF(H18<=1,\" \",MATCH(H18,G7:G51,0))","v":{"$error":"#N/A"}},{"$error":"#N/A"}]
[13,{"$f":"IF('CEN. POR AREA'!BU$14<=1,\" \",LARGE('CEN. POR AREA'!BU$14:BU$58,13))","v":{"$error":"#NUM!"}},{"$f":"IF(B19<=1,\" \",MATCH(B19,'CEN. POR AREA'!BU$14:BU$58,0))","v":{"$error":"#NUM!"}},{"$f":"LOOKUP(C19,'CEN. POR AREA'!B$14:B$58:'CEN. POR AREA'!C$14:C$58)","v":{"$error":"#NUM!"}},13,{"$f":"IF('C. FILIACION'!C17=\"\",0,'C. FILIACION'!C17)","v":0},{"$f":"IF('CEN. POR AREA'!BU17=\"\",0,'CEN. POR AREA'!BU17)","v":0},{"$f":"IF(G19<=1,\" \",LARGE(G7:G51,13))","v":" "},{"$f":"IF(H19<=1,\" \",MATCH(H19,G7:G51,0))","v":{"$error":"#N/A"}},{"$error":"#N/A"}]
[14,{"$f":"IF('CEN. POR AREA'!BU$14<=1,\" \",LARGE('CEN. POR AREA'!BU$14:BU$58,14))","v":{"$error":"#NUM!"}},{"$f":"IF(B20<=1,\" \",MATCH(B20,'CEN. POR AREA'!BU$14:BU$58,0))","v":{"$error":"#NUM!"}},{"$f":"LOOKUP(C20,'CEN. POR AREA'!B$14:B$58:'CEN. POR AREA'!C$14:C$58)","v":{"$error":"#NUM!"}},14,{"$f":"IF('C. FILIACION'!C15=\"\",0,'C. FILIACION'!C15)","v":0},{"$f":"IF('CEN. POR AREA'!BU15=\"\",0,'CEN. POR AREA'!BU15)","v":0},{"$f":"IF(G20<=1,\" \",LARGE(G7:G51,14))","v":" "},{"$f":"IF(H20<=1,\" \",MATCH(H20,G7:G51,0))","v":{"$error":"#N/A"}},{"$error":"#N/A"}]
[15,{"$f":"IF('CEN. POR AREA'!BU$14<=1,\" \",LARGE('CEN. POR AREA'!BU$14:BU$58,15))","v":{"$error":"#NUM!"}},{"$f":"IF(B21<=1,\" \",MATCH(B21,'CEN. POR AREA'!BU$14:BU$58,0))","v":{"$error":"#NUM!"}},{"$f":"LOOKUP(C21,'CEN. POR AREA'!B$14:B$58:'CEN. POR AREA'!C$14:C$58)","v":{"$error":"#NUM!"}},15,{"$f":"IF('C. FILIACION'!C28=\"\",0,'C. FILIACION'!C28)","v":0},{"$f":"IF('CEN. POR AREA'!BU28=\"\",0,'CEN. POR AREA'!BU28)","v":0},{"$f":"IF(G21<=1,\" \",LARGE(G7:G51,15))","v":" "},{"$f":"IF(H21<=1,\" \",MATCH(H21,G7:G51,0))","v":{"$error":"#N/A"}},{"$error":"#N/A"}]
[16,{"$f":"IF('CEN. POR AREA'!BU$14<=1,\" \",LARGE('CEN. POR AREA'!BU$14:BU$58,16))","v":{"$error":"#NUM!"}},{"$f":"IF(B22<=1,\" \",MATCH(B22,'CEN. POR AREA'!BU$14:BU$58,0))","v":{"$error":"#NUM!"}},{"$f":"LOOKUP(C22,'CEN. POR AREA'!B$14:B$58:'CEN. POR AREA'!C$14:C$58)","v":{"$error":"#NUM!"}},16,{"$f":"IF('C. FILIACION'!C27=\"\",0,'C. FILIACION'!C27)","v":0},{"$f":"IF('CEN. POR AREA'!BU27=\"\",0,'CEN. POR AREA'!BU27)","v":0},{"$f":"IF(G22<=1,\" \",LARGE(G7:G51,16))","v":" "},{"$f":"IF(H22<=1,\" \",MATCH(H22,G7:G51,0))","v":{"$error":"#N/A"}},{"$error":"#N/A"}]
[17,{"$f":"IF('CEN. POR AREA'!BU$14<=1,\" \",LARGE('CEN. POR AREA'!BU$14:BU$58,17))","v":{"$error":"#NUM!"}},{"$f":"IF(B23<=1,\" \",MATCH(B23,'CEN. POR AREA'!BU$14:BU$58,0))","v":{"$error":"#NUM!"}},{"$f":"LOOKUP(C23,'CEN. POR AREA'!B$14:B$58:'CEN. POR AREA'!C$14:C$58)","v":{"$error":"#NUM!"}},17,{"$f":"IF('C. FILIACION'!C30=\"\",0,'C. FILIACION'!C30)","v":0},{"$f":"IF('CEN. POR AREA'!BU30=\"\",0,'CEN. POR AREA'!BU30)","v":0},{"$f":"IF(G23<=1,\" \",LARGE(G7:G51,17))","v":" "},{"$f":"IF(H23<=1,\" \",MATCH(H23,G7:G51,0))","v":{"$error":"#N/A"}},{"$error":"#N/A"}]
[18,{"$f":"IF('CEN. POR AREA'!BU$14<=1,\" \",LARGE('CEN. POR AREA'!BU$14:BU$58,18))","v":{"$error":"#NUM!"}},{"$f":"IF(B24<=1,\" \",MATCH(B24,'CEN. POR AREA'!BU$14:BU$58,0))","v":{"$error":"#NUM!"}},{"$f":"LOOKUP(C24,'CEN. POR AREA'!B$14:B$58:'CEN. POR AREA'!C$14:C$58)","v":{"$error":"#NUM!"}},18,{"$f":"IF('C. FILIACION'!C18=\"\",0,'C. FILIACION'!C18)","v":0},{"$f":"IF('CEN. POR AREA'!BU18=\"\",0,'CEN. POR AREA'!BU18)","v":0},{"$f":"IF(G24<=1,\" \",LARGE(G7:G51,18))","v":" "},{"$f":"IF(H24<=1,\" \",MATCH(H24,G7:G51,0))","v":{"$error":"#N/A"}},{"$error":"#N/A"}]
[19,{"$f":"IF('CEN. POR AREA'!BU$14<=1,\" \",LARGE('CEN. POR AREA'!BU$14:BU$58,19))","v":{"$error":"#NUM!"}},{"$f":"IF(B25<=1,\" \",MATCH(B25,'CEN. POR AREA'!BU$14:BU$58,0))","v":{"$error":"#NUM!"}},{"$f":"LOOKUP(C25,'CEN. POR AREA'!B$14:B$58:'CEN. POR AREA'!C$14:C$58)","v":{"$error":"#NUM!"}},19,{"$f":"IF('C. FILIACION'!C20=\"\",0,'C. FILIACION'!C20)","v":0},{"$f":"IF('CEN. POR AREA'!BU20=\"\",0,'CEN. POR AREA'!BU20)","v":0},{"$f":"IF(G25<=1,\" \",LARGE(G1:G51,19))","v":" "},{"$f":"IF(H25<=1,\" \",MATCH(H25,G7:G51,0))","v":{"$error":"#N/A"}},{"$error":"#N/A"}]
[20,{"$f":"IF('CEN. POR AREA'!BU$14<=1,\" \",LARGE('CEN. POR AREA'!BU$14:BU$58,20))","v":{"$error":"#NUM!"}},{"$f":"IF(B26<=1,\" \",MATCH(B26,'CEN. POR AREA'!BU$14:BU$58,0))","v":{"$error":"#NUM!"}},{"$f":"LOOKUP(C26,'CEN. POR AREA'!B$14:B$58:'CEN. POR AREA'!C$14:C$58)","v":{"$error":"#NUM!"}},20,{"$f":"IF('C. FILIACION'!C33=\"\",0,'C. FILIACION'!C33)","v":0},{"$f":"IF('CEN. POR AREA'!BU33=\"\",0,'CEN. POR AREA'!BU33)","v":0},{"$f":"IF(G26<=1,\" \",LARGE(G7:G51,20))","v":" "},{"$f":"IF(H26<=1,\" \",MATCH(H26,G7:G51,0))","v":{"$error":"#N/A"}},{"$error":"#N/A"}]
[21,{"$f":"IF('CEN. POR AREA'!BU$14<=1,\" \",LARGE('CEN. POR AREA'!BU$14:BU$58,21))","v":{"$error":"#NUM!"}},{"$f":"IF(B27<=1,\" \",MATCH(B27,'CEN. POR AREA'!BU$14:BU$58,0))","v":{"$error":"#NUM!"}},{"$f":"LOOKUP(C27,'CEN. POR AREA'!B$14:B$58:'CEN. POR AREA'!C$14:C$58)","v":{"$error":"#NUM!"}},21,{"$f":"IF('C. FILIACION'!C34=\"\",0,'C. FILIACION'!C34)","v":0},{"$f":"IF('CEN. POR AREA'!BU34=\"\",0,'CEN. POR AREA'!BU34)","v":0},{"$f":"IF(G27<=1,\" \",LARGE(G7:G51,21))","v":" "},{"$f":"IF(H27<=1,\" \",MATCH(H27,G7:G51,0))","v":{"$error":"#N/A"}},{"$error":"#N/A"}]
[22,{"$f":"IF('CEN. POR AREA'!BU$14<=1,\" \",LARGE('CEN. POR AREA'!BU$14:BU$58,22))","v":{"$error":"#NUM!"}},{"$f":"IF(B28<=1,\" \",MATCH(B28,'CEN. POR AREA'!BU$14:BU$58,0))","v":{"$error":"#NUM!"}},{"$f":"LOOKUP(C28,'CEN. POR AREA'!B$14:B$58:'CEN. POR AREA'!C$14:C$58)","v":{"$error":"#NUM!"}},22,{"$f":"IF('C. FILIACION'!C35=\"\",0,'C. FILIACION'!C35)","v":0},{"$f":"IF('CEN. POR AREA'!BU35=\"\",0,'CEN. POR AREA'!BU35)","v":0},{"$f":"IF(G28<=1,\" \",LARGE(G7:G51,22))","v":" "},{"$f":"IF(H28<=1,\" \",MATCH(H28,G7:G51,0))","v":{"$error":"#N/A"}},{"$error":"#N/A"}]
[23,{"$f":"IF('CEN. POR AREA'!BU$14<=1,\" \",LARGE('CEN. POR AREA'!BU$14:BU$58,23))","v":{"$error":"#NUM!"}},{"$f":"IF(B29<=1,\" \",MATCH(B29,'CEN. POR AREA'!BU$14:BU$58,0))","v":{"$error":"#NUM!"}},{"$f":"LOOKUP(C29,'CEN. POR AREA'!B$14:B$58:'CEN. POR AREA'!C$14:C$58)","v":{"$error":"#NUM!"}},23,{"$f":"IF('C. FILIACION'!C36=\"\",0,'C. FILIACION'!C36)","v":0},{"$f":"IF('CEN. POR AREA'!BU36=\"\",0,'CEN. POR AREA'!BU36)","v":0},{"$f":"IF(G29<=1,\" \",LARGE(G7:G51,23))","v":" "},{"$f":"IF(H29<=1,\" \",MATCH(H29,G7:G51,0))","v":{"$error":"#N/A"}},{"$error":"#N/A"}]
[24,{"$f":"IF('CEN. POR AREA'!BU$14<=1,\" \",LARGE('CEN. POR AREA'!BU$14:BU$58,24))","v":{"$error":"#NUM!"}},{"$f":"IF(B30<=1,\" \",MATCH(B30,'CEN. POR AREA'!BU$14:BU$58,0))","v":{"$error":"#NUM!"}},{"$f":"LOOKUP(C30,'CEN. POR AREA'!B$14:B$58:'CEN. POR AREA'!C$14:C$58)","v":{"$error":"#NUM!"}},24,{"$f":"IF('C. FILIACION'!C37=\"\",0,'C. FILIACION'!C37)","v":0},{"$f":"IF('CEN. POR AREA'!BU37=\"\",0,'CEN. POR AREA'!BU37)","v":0},{"$f":"IF(G30<=1,\" \",LARGE(G7:G51,24))","v":" "},{"$f":"IF(H30<=1,\" \",MATCH(H30,G7:G51,0))","v":{"$error":"#N/A"}},{"$error":"#N/A"}]
[25,{"$f":"IF('CEN. POR AREA'!BU$14<=1,\" \",LARGE('CEN. POR AREA'!BU$14:BU$58,25))","v":{"$error":"#NUM!"}},{"$f":"IF(B31<=1,\" \",MATCH(B31,'CEN. POR AREA'!BU$14:BU$58,0))","v":{"$error":"#NUM!"}},{"$f":"LOOKUP(C31,'CEN. POR AREA'!B$14:B$58:'CEN. POR AREA'!C$14:C$58)","v":{"$error":"#NUM!"}},25,{"$f":"IF('C. FILIACION'!C38=\"\",0,'C. FILIACION'!C38)","v":0},{"$f":"IF('CEN. POR AREA'!BU38=\"\",0,'CEN. POR AREA'!BU38)","v":0},{"$f":"IF(G31<=1,\" \",LARGE(G7:G51,25))","v":" "},{"$f":"IF(H31<=1,\" \",MATCH(H31,G7:G51,0))","v":{"$error":"#N/A"}},{"$error":"#N/A"}]
[26,{"$f":"IF('CEN. POR AREA'!BU$14<=1,\" \",LARGE('CEN. POR AREA'!BU$14:BU$58,26))","v":{"$error":"#NUM!"}},{"$f":"IF(B32<=1,\" \",MATCH(B32,'CEN. POR AREA'!BU$14:BU$58,0))","v":{"$error":"#NUM!"}},{"$f":"LOOKUP(C32,'CEN. POR AREA'!B$14:B$58:'CEN. POR AREA'!C$14:C$58)","v":{"$error":"#NUM!"}},26,{"$f":"IF('C. FILIACION'!C39=\"\",0,'C. FILIACION'!C39)","v":0},{"$f":"IF('CEN. POR AREA'!BU39=\"\",0,'CEN. POR AREA'!BU39)","v":0},{"$f":"IF(G32<=1,\" \",LARGE(G7:G51,26))","v":" "},{"$f":"IF(H32<=1,\" \",MATCH(H32,G7:G51,0))","v":{"$error":"#N/A"}}]
[27,{"$f":"IF('CEN. POR AREA'!BU$14<=1,\" \",LARGE('CEN. POR AREA'!BU$14:BU$58,27))","v":{"$error":"#NUM!"}},{"$f":"IF(B33<=1,\" \",MATCH(B33,'CEN. POR AREA'!BU$14:BU$58,0))","v":{"$error":"#NUM!"}},{"$f":"LOOKUP(C33,'CEN. POR AREA'!B$14:B$58:'CEN. POR AREA'!C$14:C$58)","v":{"$error":"#NUM!"}},27,{"$f":"IF('C. FILIACION'!C40=\"\",0,'C. FILIACION'!C40)","v":0},{"$f":"IF('CEN. POR AREA'!BU40=\"\",0,'CEN. POR AREA'!BU40)","v":0},{"$f":"IF(G33<=1,\" \",LARGE(G7:G51,27))","v":" "},{"$f":"IF(H33<=1,\" \",MATCH(H33,G7:G51,0))","v":{"$error":"#N/A"}}]
[28,{"$f":"IF('CEN. POR AREA'!BU$14<=1,\" \",LARGE('CEN. POR AREA'!BU$14:BU$58,28))","v":{"$error":"#NUM!"}},{"$f":"IF(B34<=1,\" \",MATCH(B34,'CEN. POR AREA'!BU$14:BU$58,0))","v":{"$error":"#NUM!"}},{"$f":"LOOKUP(C34,'CEN. POR AREA'!B$14:B$58:'CEN. POR AREA'!C$14:C$58)","v":{"$error":"#NUM!"}},28,{"$f":"IF('C. FILIACION'!C41=\"\",0,'C. FILIACION'!C41)","v":0},{"$f":"IF('CEN. POR AREA'!BU41=\"\",0,'CEN. POR AREA'!BU41)","v":0},{"$f":"IF(G34<=1,\" \",LARGE(G7:G51,28))","v":" "},{"$f":"IF(H34<=1,\" \",MATCH(H34,G7:G51,0))","v":{"$error":"#N/A"}}]
[29,{"$f":"IF('CEN. POR AREA'!BU$14<=1,\" \",LARGE('CEN. POR AREA'!BU$14:BU$58,29))","v":{"$error":"#NUM!"}},{"$f":"IF(B35<=1,\" \",MATCH(B35,'CEN. POR AREA'!BU$14:BU$58,0))","v":{"$error":"#NUM!"}},{"$f":"LOOKUP(C35,'CEN. POR AREA'!B$14:B$58:'CEN. POR AREA'!C$14:C$58)","v":{"$error":"#NUM!"}},29,{"$f":"IF('C. FILIACION'!C42=\"\",0,'C. FILIACION'!C42)","v":0},{"$f":"IF('CEN. POR AREA'!BU42=\"\",0,'CEN. POR AREA'!BU42)","v":0},{"$f":"IF(G35<=1,\" \",LARGE(G7:G51,29))","v":" "},{"$f":"IF(H35<=1,\" \",MATCH(H35,G7:G51,0))","v":{"$error":"#N/A"}}]
[30,{"$f":"IF('CEN. POR AREA'!BU$14<=1,\" \",LARGE('CEN. POR AREA'!BU$14:BU$58,30))","v":{"$error":"#NUM!"}},{"$f":"IF(B36<=1,\" \",MATCH(B36,'CEN. POR AREA'!BU$14:BU$58,0))","v":{"$error":"#NUM!"}},{"$f":"LOOKUP(C36,'CEN. POR AREA'!B$14:B$58:'CEN. POR AREA'!C$14:C$58)","v":{"$error":"#NUM!"}},30,{"$f":"IF('C. FILIACION'!C43=\"\",0,'C. FILIACION'!C43)","v":0},{"$f":"IF('CEN. POR AREA'!BU43=\"\",0,'CEN. POR AREA'!BU43)","v":0},{"$f":"IF(G36<=1,\" \",LARGE(G7:G51,30))","v":" "},{"$f":"IF(H36<=1,\" \",MATCH(H36,G7:G51,0))","v":{"$error":"#N/A"}}]
[31,{"$f":"IF('CEN. POR AREA'!BU$14<=1,\" \",LARGE('CEN. POR AREA'!BU$14:BU$58,31))","v":{"$error":"#NUM!"}},{"$f":"IF(B37<=1,\" \",MATCH(B37,'CEN. POR AREA'!BU$14:BU$58,0))","v":{"$error":"#NUM!"}},{"$f":"LOOKUP(C37,'CEN. POR AREA'!B$14:B$58:'CEN. POR AREA'!C$14:C$58)","v":{"$error":"#NUM!"}},31,{"$f":"IF('C. FILIACION'!C44=\"\",0,'C. FILIACION'!C44)","v":0},{"$f":"IF('CEN. POR AREA'!BU44=\"\",0,'CEN. POR AREA'!BU44)","v":0},{"$f":"IF(G37<=1,\" \",LARGE(G7:G51,31))","v":" "},{"$f":"IF(H37<=1,\" \",MATCH(H37,G7:G51,0))","v":{"$error":"#N/A"}}]
[32,{"$f":"IF('CEN. POR AREA'!BU$14<=1,\" \",LARGE('CEN. POR AREA'!BU$14:BU$58,32))","v":{"$error":"#NUM!"}},{"$f":"IF(B38<=1,\" \",MATCH(B38,'CEN. POR AREA'!BU$14:BU$58,0))","v":{"$error":"#NUM!"}},{"$f":"LOOKUP(C38,'CEN. POR AREA'!B$14:B$58:'CEN. POR AREA'!C$14:C$58)","v":{"$error":"#NUM!"}},32,{"$f":"IF('C. FILIACION'!C45=\"\",0,'C. FILIACION'!C45)","v":0},{"$f":"IF('CEN. POR AREA'!BU45=\"\",0,'CEN. POR AREA'!BU45)","v":0},{"$f":"IF(G38<=1,\" \",LARGE(G7:G51,32))","v":" "},{"$f":"IF(H38<=1,\" \",MATCH(H38,G7:G51,0))","v":{"$error":"#N/A"}}]
[33,{"$f":"IF('CEN. POR AREA'!BU$14<=1,\" \",LARGE('CEN. POR AREA'!BU$14:BU$58,33))","v":{"$error":"#NUM!"}},{"$f":"IF(B39<=1,\" \",MATCH(B39,'CEN. POR AREA'!BU$14:BU$58,0))","v":{"$error":"#NUM!"}},{"$f":"LOOKUP(C39,'CEN. POR AREA'!B$14:B$58:'CEN. POR AREA'!C$14:C$58)","v":{"$error":"#NUM!"}},33,{"$f":"IF('C. FILIACION'!C46=\"\",0,'C. FILIACION'!C46)","v":0},{"$f":"IF('CEN. POR AREA'!BU46=\"\",0,'CEN. POR AREA'!BU46)","v":0},{"$f":"IF(G39<=1,\" \",LARGE(G7:G51,33))","v":" "},{"$f":"IF(H39<=1,\" \",MATCH(H39,G7:G51,0))","v":{"$error":"#N/A"}}]
[34,{"$f":"IF('CEN. POR AREA'!BU$14<=1,\" \",LARGE('CEN. POR AREA'!BU$14:BU$58,34))","v":{"$error":"#NUM!"}},{"$f":"IF(B40<=1,\" \",MATCH(B40,'CEN. POR AREA'!BU$14:BU$58,0))","v":{"$error":"#NUM!"}},{"$f":"LOOKUP(C40,'CEN. POR AREA'!B$14:B$58:'CEN. POR AREA'!C$14:C$58)","v":{"$error":"#NUM!"}},34,{"$f":"IF('C. FILIACION'!C47=\"\",0,'C. FILIACION'!C47)","v":0},{"$f":"IF('CEN. POR AREA'!BU47=\"\",0,'CEN. POR AREA'!BU47)","v":0},{"$f":"IF(G40<=1,\" \",LARGE(G7:G51,34))","v":" "},{"$f":"IF(H40<=1,\" \",MATCH(H40,G7:G51,0))","v":{"$error":"#N/A"}}]
[35,{"$f":"IF('CEN. POR AREA'!BU$14<=1,\" \",LARGE('CEN. POR AREA'!BU$14:BU$58,35))","v":{"$error":"#NUM!"}},{"$f":"IF(B41<=1,\" \",MATCH(B41,'CEN. POR AREA'!BU$14:BU$58,0))","v":{"$error":"#NUM!"}},{"$f":"LOOKUP(C41,'CEN. POR AREA'!B$14:B$58:'CEN. POR AREA'!C$14:C$58)","v":{"$error":"#NUM!"}},35,{"$f":"IF('C. FILIACION'!C48=\"\",0,'C. FILIACION'!C48)","v":0},{"$f":"IF('CEN. POR AREA'!BU48=\"\",0,'CEN. POR AREA'!BU48)","v":0},{"$f":"IF(G41<=1,\" \",LARGE(G7:G51,35))","v":" "},{"$f":"IF(H41<=1,\" \",MATCH(H41,G7:G51,0))","v":{"$error":"#N/A"}}]
[36,{"$f":"IF('CEN. POR AREA'!BU$14<=1,\" \",LARGE('CEN. POR AREA'!BU$14:BU$58,36))","v":{"$error":"#NUM!"}},{"$f":"IF(B42<=1,\" \",MATCH(B42,'CEN. POR AREA'!BU$14:BU$58,0))","v":{"$error":"#NUM!"}},{"$f":"LOOKUP(C42,'CEN. POR AREA'!B$14:B$58:'CEN. POR AREA'!C$14:C$58)","v":{"$error":"#NUM!"}},36,{"$f":"IF('C. FILIACION'!C49=\"\",0,'C. FILIACION'!C49)","v":0},{"$f":"IF('CEN. POR AREA'!BU49=\"\",0,'CEN. POR AREA'!BU49)","v":0},{"$f":"IF(G42<=1,\" \",LARGE(G7:G51,36))","v":" "},{"$f":"IF(H42<=1,\" \",MATCH(H42,G7:G51,0))","v":{"$error":"#N/A"}}]
[37,{"$f":"IF('CEN. POR AREA'!BU$14<=1,\" \",LARGE('CEN. POR AREA'!BU$14:BU$58,37))","v":{"$error":"#NUM!"}},{"$f":"IF(B43<=1,\" \",MATCH(B43,'CEN. POR AREA'!BU$14:BU$58,0))","v":{"$error":"#NUM!"}},{"$f":"LOOKUP(C43,'CEN. POR AREA'!B$14:B$58:'CEN. POR AREA'!C$14:C$58)","v":{"$error":"#NUM!"}},37,{"$f":"IF('C. FILIACION'!C50=\"\",0,'C. FILIACION'!C50)","v":0},{"$f":"IF('CEN. POR AREA'!BU50=\"\",0,'CEN. POR AREA'!BU50)","v":0},{"$f":"IF(G43<=1,\" \",LARGE(G7:G51,37))","v":" "},{"$f":"IF(H43<=1,\" \",MATCH(H43,G7:G51,0))","v":{"$error":"#N/A"}}]
[38,{"$f":"IF('CEN. POR AREA'!BU$14<=1,\" \",LARGE('CEN. POR AREA'!BU$14:BU$58,38))","v":{"$error":"#NUM!"}},{"$f":"IF(B44<=1,\" \",MATCH(B44,'CEN. POR AREA'!BU$14:BU$58,0))","v":{"$error":"#NUM!"}},{"$f":"LOOKUP(C44,'CEN. POR AREA'!B$14:B$58:'CEN. POR AREA'!C$14:C$58)","v":{"$error":"#NUM!"}},38,{"$f":"IF('C. FILIACION'!C51=\"\",0,'C. FILIACION'!C51)","v":0},{"$f":"IF('CEN. POR AREA'!BU51=\"\",0,'CEN. POR AREA'!BU51)","v":0},{"$f":"IF(G44<=1,\" \",LARGE(G7:G51,38))","v":" "},{"$f":"IF(H44<=1,\" \",MATCH(H44,G7:G51,0))","v":{"$error":"#N/A"}}]
[39,{"$f":"IF('CEN. POR AREA'!BU$14<=1,\" \",LARGE('CEN. POR AREA'!BU$14:BU$58,39))","v":{"$error":"#NUM!"}},{"$f":"IF(B45<=1,\" \",MATCH(B45,'CEN. POR AREA'!BU$14:BU$58,0))","v":{"$error":"#NUM!"}},{"$f":"LOOKUP(C45,'CEN. POR AREA'!B$14:B$58:'CEN. POR AREA'!C$14:C$58)","v":{"$error":"#NUM!"}},39,{"$f":"IF('C. FILIACION'!C52=\"\",0,'C. FILIACION'!C52)","v":0},{"$f":"IF('CEN. POR AREA'!BU52=\"\",0,'CEN. POR AREA'!BU52)","v":0},{"$f":"IF(G45<=1,\" \",LARGE(G7:G51,39))","v":" "},{"$f":"IF(H45<=1,\" \",MATCH(H45,G7:G51,0))","v":{"$error":"#N/A"}}]
[40,{"$f":"IF('CEN. POR AREA'!BU$14<=1,\" \",LARGE('CEN. POR AREA'!BU$14:BU$58,40))","v":{"$error":"#NUM!"}},{"$f":"IF(B46<=1,\" \",MATCH(B46,'CEN. POR AREA'!BU$14:BU$58,0))","v":{"$error":"#NUM!"}},{"$f":"LOOKUP(C46,'CEN. POR AREA'!B$14:B$58:'CEN. POR AREA'!C$14:C$58)","v":{"$error":"#NUM!"}},40,{"$f":"IF('C. FILIACION'!C53=\"\",0,'C. FILIACION'!C53)","v":0},{"$f":"IF('CEN. POR AREA'!BU53=\"\",0,'CEN. POR AREA'!BU53)","v":0},{"$f":"IF(G46<=1,\" \",LARGE(G7:G51,40))","v":" "},{"$f":"IF(H46<=1,\" \",MATCH(H46,G7:G51,0))","v":{"$error":"#N/A"}}]
[41,{"$f":"IF('CEN. POR AREA'!BU$14<=1,\" \",LARGE('CEN. POR AREA'!BU$14:BU$58,41))","v":{"$error":"#NUM!"}},{"$f":"IF(B47<=1,\" \",MATCH(B47,'CEN. POR AREA'!BU$14:BU$58,0))","v":{"$error":"#NUM!"}},{"$f":"LOOKUP(C47,'CEN. POR AREA'!B$14:B$58:'CEN. POR AREA'!C$14:C$58)","v":{"$error":"#NUM!"}},41,{"$f":"IF('C. FILIACION'!C54=\"\",0,'C. FILIACION'!C54)","v":0},{"$f":"IF('CEN. POR AREA'!BU54=\"\",0,'CEN. POR AREA'!BU54)","v":0},{"$f":"IF(G47<=1,\" \",LARGE(G7:G51,41))","v":" "},{"$f":"IF(H47<=1,\" \",MATCH(H47,G7:G51,0))","v":{"$error":"#N/A"}}]
[42,{"$f":"IF('CEN. POR AREA'!BU$14<=1,\" \",LARGE('CEN. POR AREA'!BU$14:BU$58,42))","v":{"$error":"#NUM!"}},{"$f":"IF(B48<=1,\" \",MATCH(B48,'CEN. POR AREA'!BU$14:BU$58,0))","v":{"$error":"#NUM!"}},{"$f":"LOOKUP(C48,'CEN. POR AREA'!B$14:B$58:'CEN. POR AREA'!C$14:C$58)","v":{"$error":"#NUM!"}},42,{"$f":"IF('C. FILIACION'!C55=\"\",0,'C. FILIACION'!C55)","v":0},{"$f":"IF('CEN. POR AREA'!BU55=\"\",0,'CEN. POR AREA'!BU55)","v":0},{"$f":"IF(G48<=1,\" \",LARGE(G7:G51,42))","v":" "},{"$f":"IF(H48<=1,\" \",MATCH(H48,G7:G51,0))","v":{"$error":"#N/A"}}]
[43,{"$f":"IF('CEN. POR AREA'!BU$14<=1,\" \",LARGE('CEN. POR AREA'!BU$14:BU$58,43))","v":{"$error":"#NUM!"}},{"$f":"IF(B49<=1,\" \",MATCH(B49,'CEN. POR AREA'!BU$14:BU$58,0))","v":{"$error":"#NUM!"}},{"$f":"LOOKUP(C49,'CEN. POR AREA'!B$14:B$58:'CEN. POR AREA'!C$14:C$58)","v":{"$error":"#NUM!"}},43,{"$f":"IF('C. FILIACION'!C56=\"\",0,'C. FILIACION'!C56)","v":0},{"$f":"IF('CEN. POR AREA'!BU56=\"\",0,'CEN. POR AREA'!BU56)","v":0},{"$f":"IF(G49<=1,\" \",LARGE(G7:G51,43))","v":" "},{"$f":"IF(H49<=1,\" \",MATCH(H49,G7:G51,0))","v":{"$error":"#N/A"}}]
[44,{"$f":"IF('CEN. POR AREA'!BU$14<=1,\" \",LARGE('CEN. POR AREA'!BU$14:BU$58,44))","v":{"$error":"#NUM!"}},{"$f":"IF(B50<=1,\" \",MATCH(B50,'CEN. POR AREA'!BU$14:BU$58,0))","v":{"$error":"#NUM!"}},{"$f":"LOOKUP(C50,'CEN. POR AREA'!B$14:B$58:'CEN. POR AREA'!C$14:C$58)","v":{"$error":"#NUM!"}},44,{"$f":"IF('C. FILIACION'!C57=\"\",0,'C. FILIACION'!C57)","v":0},{"$f":"IF('CEN. POR AREA'!BU57=\"\",0,'CEN. POR AREA'!BU57)","v":0},{"$f":"IF(G50<=1,\" \",LARGE(G7:G51,44))","v":" "},{"$f":"IF(H50<=1,\" \",MATCH(H50,G7:G51,0))","v":{"$error":"#N/A"}}]
[45,{"$f":"IF('CEN. POR AREA'!BU$14<=1,\" \",LARGE('CEN. POR AREA'!BU$14:BU$58,45))","v":{"$error":"#NUM!"}},{"$f":"IF(B51<=1,\" \",MATCH(B51,'CEN. POR AREA'!BU$14:BU$58,0))","v":{"$error":"#NUM!"}},{"$f":"LOOKUP(C51,'CEN. POR AREA'!B$14:B$58:'CEN. POR AREA'!C$14:C$58)","v":{"$error":"#NUM!"}},45,{"$f":"IF('C. FILIACION'!C58=\"\",0,'C. FILIACION'!C58)","v":0},{"$f":"IF('CEN. POR AREA'!BU58=\"\",0,'CEN. POR AREA'!BU58)","v":0},{"$f":"IF(G51<=1,\" \",LARGE(G7:G51,45))","v":" "},{"$f":"IF(H51<=1,\" \",MATCH(H51,G7:G51,0))","v":{"$error":"#N/A"}}]

{"sheet":"EST_DEST","index":21,"n_rows":79,"n_cols":12,"rows_kept":79,"cut":false,"hidden":false,"merged":[[15,4,15,5],[51,4,51,5],[52,4,52,5],[53,4,53,5],[54,4,54,5],[46,4,46,5],[47,4,47,5],[48,4,48,5],[49,4,49,5],[50,4,50,5],[41,4,41,5],[42,4,42,5],[43,4,43,5],[38,4,38,5],[39,4,39,5],[40,4,40,5],[16,4,16,5],[17,4,17,5],[18,4,18,5],[19,4,19,5],[20,4,20,5],[66,2,66,6],[66,7,66,12],[21,4,21,5],[22,4,22,5],[23,4,23,5],[24,4,24,5],[44,4,44,5],[45,4,45,5],[26,4,26,5],[28,4,28,5],[30,4,30,5],[56,4,56,5],[59,4,59,5],[55,4,55,5],[67,2,67,6],[67,7,67,12],[70,11,70,12],[25,4,25,5],[27,4,27,5],[60,4,60,5],[29,4,29,5],[57,4,57,5],[58,4,58,5],[31,4,31,5],[32,4,32,5],[33,4,33,5],[34,4,34,5],[35,4,35,5],[36,4,36,5],[37,4,37,5],[13,4,13,5],[13,7,13,9],[14,4,14,5],[14,7,14,9],[12,4,12,5],[12,7,12,9],[2,2,2,11],[4,5,4,6],[4,7,5,7],[4,8,5,9],[5,5,5,6],[6,2,6,4],[6,5,6,9],[7,2,7,4],[7,5,7,7],[4,1,4,4],[5,1,5,4]]}
[]
[]
[null,null,"ESTUDIANTES DESTACADOS ANUAL"]
[]
[null,"Unidad Educativa:",null,null,null,{"$f":"IF((CARATULA!G20)=0,\"\",(CARATULA!G20))","v":""},null,null,{"$f":"IF((CARATULA!G34)=0,\"\",(CARATULA!G34))","v":2019}]
[null,"Año de Escolaridad:",null,null,null,{"$f":"CONCATENATE(CARATULA!G28,\" \",CARATULA!H28)","v":" "}]
[null,null,"Nivel:",null,null,{"$f":"IF((CARATULA!G26)=0,\"\",(CARATULA!G26))","v":""}]
[null,null,"Maestra/o:",null,null,{"$f":"IF((CARATULA!G24)=0,\"\",(CARATULA!G24))","v":""}]
[]
[]
[]
[]
[null,null,null,null,"1er lugar",null,{"$f":"[5]NOT_ALT!D7","v":{"$error":"#REF!"}},{"$f":"[5]NOT_ALT!B7","v":{"$error":"#REF!"}}]
[null,null,null,null,"2do lugar",null,{"$f":"[5]NOT_ALT!D8","v":{"$error":"#REF!"}},{"$f":"[5]NOT_ALT!B8","v":{"$error":"#REF!"}}]
[null,null,null,null,"3er lugar",null,{"$f":"[5]NOT_ALT!D9","v":{"$error":"#REF!"}},{"$f":"[5]NOT_ALT!B9","v":{"$error":"#REF!"}}]
[null,null,null,null,"LUGAR",null,"APELLIDOS Y NOMBRES ","VALORACIÓN "]
[null,null,null,null,"1ro lugar",null,{"$f":"IF('C. FILIACION'!C33=\"\",0,'C. FILIACION'!C33)","v":0},{"$f":"IF('CEN. POR AREA'!BU33=\"\",0,'CEN. POR AREA'!BU33)","v":0}]
[null,null,null,null,"2do lugar",null,{"$f":"IF('C. FILIACION'!C35=\"\",0,'C. FILIACION'!C35)","v":0},{"$f":"IF('CEN. POR AREA'!BU35=\"\",0,'CEN. POR AREA'!BU35)","v":0}]
[null,null,null,null,"3ro lugar",null,{"$f":"IF('C. FILIACION'!C36=\"\",0,'C. FILIACION'!C36)","v":0},{"$f":"IF('CEN. POR AREA'!BU36=\"\",0,'CEN. POR AREA'!BU36)","v":0}]
[null,null,null,null,"4to lugar",null,{"$f":"IF('C. FILIACION'!C17=\"\",0,'C. FILIACION'!C17)","v":0},{"$f":"IF('CEN. POR AREA'!BU17=\"\",0,'CEN. POR AREA'!BU17)","v":0}]
[null,null,null,null,"5to lugar",null,{"$f":"IF('C. FILIACION'!C19=\"\",0,'C. FILIACION'!C19)","v":0},{"$f":"IF('CEN. POR AREA'!BU19=\"\",0,'CEN. POR AREA'!BU19)","v":0}]
[null,null,null,null,"6to lugar",null,{"$f":"IF('C. FILIACION'!C18=\"\",0,'C. FILIACION'!C18)","v":0},{"$f":"IF('CEN. POR AREA'!BU18=\"\",0,'CEN. POR AREA'!BU18)","v":0}]
[null,null,null,null,"7mo lugar",null,{"$f":"IF('C. FILIACION'!C28=\"\",0,'C. FILIACION'!C28)","v":0},{"$f":"IF('CEN. POR AREA'!BU28=\"\",0,'CEN. POR AREA'!BU28)","v":0}]
[null,null,null,null,"8vo lugar",null,{"$f":"IF('C. FILIACION'!C16=\"\",0,'C. FILIACION'!C16)","v":0},{"$f":"IF('CEN. POR AREA'!BU16=\"\",0,'CEN. POR AREA'!BU16)","v":0}]
[null,null,null,null,"9no lugar",null,{"$f":"IF('C. FILIACION'!C48=\"\",0,'C. FILIACION'!C48)","v":0},{"$f":"IF('CEN. POR AREA'!BU48=\"\",0,'CEN. POR AREA'!BU48)","v":0}]
[null,null,null,null,"10mo lugar",null,{"$f":"IF('C. FILIACION'!C20=\"\",0,'C. FILIACION'!C20)","v":0},{"$f":"IF('CEN. POR AREA'!BU20=\"\",0,'CEN. POR AREA'!BU20)","v":0}]
[null,null,null,null,"11mo lugar",null,{"$f":"IF('C. FILIACION'!C23=\"\",0,'C. FILIACION'!C23)","v":0},{"$f":"IF('CEN. POR AREA'!BU23=\"\",0,'CEN. POR AREA'!BU23)","v":0}]
[null,null,null,null,"12mo lugar",null,{"$f":"IF('C. FILIACION'!C15=\"\",0,'C. FILIACION'!C15)","v":0},{"$f":"IF('CEN. POR AREA'!BU15=\"\",0,'CEN. POR AREA'!BU15)","v":0}]
[null,null,null,null,"13ro lugar",null,{"$f":"IF('C. FILIACION'!C25=\"\",0,'C. FILIACION'!C25)","v":0},{"$f":"IF('CEN. POR AREA'!BU25=\"\",0,'CEN. POR AREA'!BU25)","v":0}]
[null,null,null,null,"14to lugar",null,{"$f":"IF('C. FILIACION'!C30=\"\",0,'C. FILIACION'!C30)","v":0},{"$f":"IF('CEN. POR AREA'!BU30=\"\",0,'CEN. POR AREA'!BU30)","v":0}]
[null,null,null,null,"15to lugar",null,{"$f":"IF('C. FILIACION'!C27=\"\",0,'C. FILIACION'!C27)","v":0},{"$f":"IF('CEN. POR AREA'!BU27=\"\",0,'CEN. POR AREA'!BU27)","v":0}]
[null,null,null,null,"16to lugar",null,{"$f":"IF('C. FILIACION'!C14=\"\",0,'C. FILIACION'!C14)","v":0},{"$f":"IF('CEN. POR AREA'!BU14=\"\",0,'CEN. POR AREA'!BU14)","v":0}]
[null,null,null,null,"17mo lugar",null,{"$f":"IF('C. FILIACION'!C26=\"\",0,'C. FILIACION'!C26)","v":0},{"$f":"IF('CEN. POR AREA'!BU26=\"\",0,'CEN. POR AREA'!BU26)","v":0}]
[null,null,null,null,"18vo lugar",null,{"$f":"IF('C. FILIACION'!C29=\"\",0,'C. FILIACION'!C29)","v":0},{"$f":"IF('CEN. POR AREA'!BU29=\"\",0,'CEN. POR AREA'!BU29)","v":0}]
[null,null,null,null,"19no lugar",null,{"$f":"IF('C. FILIACION'!C22=\"\",0,'C. FILIACION'!C22)","v":0},{"$f":"IF('CEN. POR AREA'!BU22=\"\",0,'CEN. POR AREA'!BU22)","v":0}]
[null,null,null,null,"20mo lugar",null,{"$f":"IF('C. FILIACION'!C31=\"\",0,'C. FILIACION'!C31)","v":0},{"$f":"IF('CEN. POR AREA'!BU31=\"\",0,'CEN. POR AREA'!BU31)","v":0}]
[null,null,null,null,"21ro lugar",null,{"$f":"IF('C. FILIACION'!C24=\"\",0,'C. FILIACION'!C24)","v":0},{"$f":"IF('CEN. POR AREA'!BU24=\"\",0,'CEN. POR AREA'!BU24)","v":0}]
[null,null,null,null,"22do lugar",null,{"$f":"IF('C. FILIACION'!C32=\"\",0,'C. FILIACION'!C32)","v":0},{"$f":"IF('CEN. POR AREA'!BU32=\"\",0,'CEN. POR AREA'!BU32)","v":0}]
[null,null,null,null,"23ro lugar",null,{"$f":"IF('C. FILIACION'!C21=\"\",0,'C. FILIACION'!C21)","v":0},{"$f":"IF('CEN. POR AREA'!BU21=\"\",0,'CEN. POR AREA'!BU21)","v":0}]
[null,null,null,null,"24to lugar",null,{"$f":"IF('C. FILIACION'!C34=\"\",0,'C. FILIACION'!C34)","v":0},{"$f":"IF('CEN. POR AREA'!BU34=\"\",0,'CEN. POR AREA'!BU34)","v":0}]
[null,null,null,null,"25to lugar",null,{"$f":"IF('C. FILIACION'!C37=\"\",0,'C. FILIACION'!C37)","v":0},{"$f":"IF('CEN. POR AREA'!BU37=\"\",0,'CEN. POR AREA'!BU37)","v":0}]
[null,null,null,null,"26to lugar",null,{"$f":"IF('C. FILIACION'!C38=\"\",0,'C. FILIACION'!C38)","v":0},{"$f":"IF('CEN. POR AREA'!BU38=\"\",0,'CEN. POR AREA'!BU38)","v":0}]
[null,null,null,null,"27mo lugar",null,{"$f":"IF('C. FILIACION'!C39=\"\",0,'C. FILIACION'!C39)","v":0},{"$f":"IF('CEN. POR AREA'!BU39=\"\",0,'CEN. POR AREA'!BU39)","v":0}]
[null,null,null,null,"28vo lugar",null,{"$f":"IF('C. FILIACION'!C40=\"\",0,'C. FILIACION'!C40)","v":0},{"$f":"IF('CEN. POR AREA'!BU40=\"\",0,'CEN. POR AREA'!BU40)","v":0}]
[null,null,null,null,"29no lugar",null,{"$f":"IF('C. FILIACION'!C41=\"\",0,'C. FILIACION'!C41)","v":0},{"$f":"IF('CEN. POR AREA'!BU41=\"\",0,'CEN. POR AREA'!BU41)","v":0}]
[null,null,null,null,"30mo lugar",null,{"$f":"IF('C. FILIACION'!C42=\"\",0,'C. FILIACION'!C42)","v":0},{"$f":"IF('CEN. POR AREA'!BU42=\"\",0,'CEN. POR AREA'!BU42)","v":0}]
[null,null,null,null,"31ro lugar",null,{"$f":"IF('C. FILIACION'!C43=\"\",0,'C. FILIACION'!C43)","v":0},{"$f":"IF('CEN. POR AREA'!BU43=\"\",0,'CEN. POR AREA'!BU43)","v":0}]
[null,null,null,null,"32do lugar",null,{"$f":"IF('C. FILIACION'!C44=\"\",0,'C. FILIACION'!C44)","v":0},{"$f":"IF('CEN. POR AREA'!BU44=\"\",0,'CEN. POR AREA'!BU44)","v":0}]
[null,null,null,null,"33ro lugar",null,{"$f":"IF('C. FILIACION'!C45=\"\",0,'C. FILIACION'!C45)","v":0},{"$f":"IF('CEN. POR AREA'!BU45=\"\",0,'CEN. POR AREA'!BU45)","v":0}]
[null,null,null,null,"34to lugar",null,{"$f":"IF('C. FILIACION'!C46=\"\",0,'C. FILIACION'!C46)","v":0},{"$f":"IF('CEN. POR AREA'!BU46=\"\",0,'CEN. POR AREA'!BU46)","v":0}]
[null,null,null,null,"35to lugar",null,{"$f":"IF('C. FILIACION'!C47=\"\",0,'C. FILIACION'!C47)","v":0},{"$f":"IF('CEN. POR AREA'!BU47=\"\",0,'CEN. POR AREA'!BU47)","v":0}]
[null,null,null,null,"36to lugar",null,{"$f":"IF('C. FILIACION'!C49=\"\",0,'C. FILIACION'!C49)","v":0},{"$f":"IF('CEN. POR AREA'!BU49=\"\",0,'CEN. POR AREA'!BU49)","v":0}]
[null,null,null,null,"37mo lugar",null,{"$f":"IF('C. FILIACION'!C50=\"\",0,'C. FILIACION'!C50)","v":0},{"$f":"IF('CEN. POR AREA'!BU50=\"\",0,'CEN. POR AREA'!BU50)","v":0}]
[null,null,null,null,"38vo lugar",null,{"$f":"IF('C. FILIACION'!C51=\"\",0,'C. FILIACION'!C51)","v":0},{"$f":"IF('CEN. POR AREA'!BU51=\"\",0,'CEN. POR AREA'!BU51)","v":0}]
[null,null,null,null,"39no lugar",null,{"$f":"IF('C. FILIACION'!C52=\"\",0,'C. FILIACION'!C52)","v":0},{"$f":"IF('CEN. POR AREA'!BU52=\"\",0,'CEN. POR AREA'!BU52)","v":0}]
[null,null,null,null,"40mo lugar",null,{"$f":"IF('C. FILIACION'!C53=\"\",0,'C. FILIACION'!C53)","v":0},{"$f":"IF('CEN. POR AREA'!BU53=\"\",0,'CEN. POR AREA'!BU53)","v":0}]
[null,null,null,null,"41ro lugar",null,{"$f":"IF('C. FILIACION'!C54=\"\",0,'C. FILIACION'!C54)","v":0},{"$f":"IF('CEN. POR AREA'!BU54=\"\",0,'CEN. POR AREA'!BU54)","v":0}]
[null,null,null,null,"42do lugar",null,{"$f":"IF('C. FILIACION'!C55=\"\",0,'C. FILIACION'!C55)","v":0},{"$f":"IF('CEN. POR AREA'!BU55=\"\",0,'CEN. POR AREA'!BU55)","v":0}]
[null,null,null,null,"43ro lugar",null,{"$f":"IF('C. FILIACION'!C56=\"\",0,'C. FILIACION'!C56)","v":0},{"$f":"IF('CEN. POR AREA'!BU56=\"\",0,'CEN. POR AREA'!BU56)","v":0}]
[null,null,null,null,"44to lugar",null,{"$f":"IF('C. FILIACION'!C57=\"\",0,'C. FILIACION'!C57)","v":0},{"$f":"IF('CEN. POR AREA'!BU57=\"\",0,'CEN. POR AREA'!BU57)","v":0}]
[null,null,null,null,"45to lugar",null,{"$f":"IF('C. FILIACION'!C58=\"\",0,'C. FILIACION'!C58)","v":0},{"$f":"IF('CEN. POR AREA'!BU58=\"\",0,'CEN. POR AREA'!BU58)","v":0}]
[]
[]
[]
[]
[]
[null,null,{"$f":"IF((CARATULA!G24)=0,\"\",([5]INICIO!AX12))","v":""},null,null,null,null,{"$f":"IF((CARATULA!G22)=0,\"\",(CARATULA!G22))","v":""}]
[null,null,{"$f":"IF(H67=\"\",\"\",(CARATULA!G24))","v":""},null,null,null,null,{"$f":"IF(H67=\"\",\"\",(CARATULA!G22))","v":""}]
[]
[]
[null,null,null,null,null,null,null,null,null,null,"Fecha de impresión:",{"$f":"TODAY()","v":"2019-04-16"}]
[]
[]
[]
[]
[null,"ESTUDIANTES DESTACADOS 1° BIMESTRE"]
[null,"ESTUDIANTES DESTACADOS HASTA DEL 1° AL 2° BIMESTRE"]
[null,"ESTUDIANTES DESTACADOS HASTA DEL 1° AL 3° BIMESTRE"]
[null,"ESTUDIANTES DESTACADOS ANUAL"]